Department Family,Entity,Date,Expense Type,Expense Area,Supplier,Transaction Number,AP Amount,Description,Supplier Postcode
Department of Health,NHS Sheffield CCG,3/31/2020,C&M-PMS Contract Value,PRC DELEGATED CO-COMMISSIONING,ABBEY LANE SURGERY,31413022,"24,142.03",PRC DELEGATED CO-COMMISSIONING,S8 0BJ
Department of Health,NHS Sheffield CCG,3/31/2020,C&M-PMS DES Minor Surgery,PRC DELEGATED CO-COMMISSIONING,ABBEY LANE SURGERY,31413022,320.00,PRC DELEGATED CO-COMMISSIONING,S8 0BJ
Department of Health,NHS Sheffield CCG,3/31/2020,C&M-PMS GP Statutory Levy,PRC DELEGATED CO-COMMISSIONING,ABBEY LANE SURGERY,31413022,224.28,PRC DELEGATED CO-COMMISSIONING,S8 0BJ
Department of Health,NHS Sheffield CCG,3/31/2020,C&M-PMS Out of Hours Opt Outs,PRC DELEGATED CO-COMMISSIONING,ABBEY LANE SURGERY,31413022,23.10,PRC DELEGATED CO-COMMISSIONING,S8 0BJ
Department of Health,NHS Sheffield CCG,3/31/2020,C&M-PMS PCN DES Participation,PRC DELEGATED CO-COMMISSIONING,ABBEY LANE SURGERY,31413022,452.23,PRC DELEGATED CO-COMMISSIONING,S8 0BJ
Department of Health,NHS Sheffield CCG,3/31/2020,C&M-PMS PCO Locum Sickness,PRC DELEGATED CO-COMMISSIONING,ABBEY LANE SURGERY,31413022,"22,641.08",PRC DELEGATED CO-COMMISSIONING,S8 0BJ
Department of Health,NHS Sheffield CCG,3/31/2020,C&M-PMS Prem Notional Rent,PRC DELEGATED CO-COMMISSIONING,ABBEY LANE SURGERY,31413022,"2,122.92",PRC DELEGATED CO-COMMISSIONING,S8 0BJ
Department of Health,NHS Sheffield CCG,3/31/2020,C&M-PMS QOF Aspiration,PRC DELEGATED CO-COMMISSIONING,ABBEY LANE SURGERY,31413022,"2,636.98",PRC DELEGATED CO-COMMISSIONING,S8 0BJ
Department of Health,NHS Sheffield CCG,3/31/2020,Cont Care-Physical Disab (65+),CHC ADULT FULLY FUNDED,ABBEYCARE NURSING,31704264,"53,446.17",CHC ADULT FULLY FUNDED,S35 9YY
Department of Health,NHS Sheffield CCG,3/31/2020,C&M-PMS Contract Value,PRC DELEGATED CO-COMMISSIONING,AVENUE MEDICAL CENTRE SHEFFIELD,31387439,"55,216.47",PRC DELEGATED CO-COMMISSIONING,S8 7FH
Department of Health,NHS Sheffield CCG,3/31/2020,C&M-PMS DES Minor Surgery,PRC DELEGATED CO-COMMISSIONING,AVENUE MEDICAL CENTRE SHEFFIELD,31387439,"1,505.00",PRC DELEGATED CO-COMMISSIONING,S8 7FH
Department of Health,NHS Sheffield CCG,3/31/2020,C&M-PMS GP Statutory Levy,PRC DELEGATED CO-COMMISSIONING,AVENUE MEDICAL CENTRE SHEFFIELD,31387439,500.72,PRC DELEGATED CO-COMMISSIONING,S8 7FH
Department of Health,NHS Sheffield CCG,3/31/2020,C&M-PMS Out of Hours Opt Outs,PRC DELEGATED CO-COMMISSIONING,AVENUE MEDICAL CENTRE SHEFFIELD,31387439,33.78,PRC DELEGATED CO-COMMISSIONING,S8 7FH
Department of Health,NHS Sheffield CCG,3/31/2020,C&M-PMS PCN DES Participation,PRC DELEGATED CO-COMMISSIONING,AVENUE MEDICAL CENTRE SHEFFIELD,31387439,"1,058.32",PRC DELEGATED CO-COMMISSIONING,S8 7FH
Department of Health,NHS Sheffield CCG,3/31/2020,C&M-PMS PCO Seniority,PRC DELEGATED CO-COMMISSIONING,AVENUE MEDICAL CENTRE SHEFFIELD,31387439,346.56,PRC DELEGATED CO-COMMISSIONING,S8 7FH
Department of Health,NHS Sheffield CCG,3/31/2020,C&M-PMS Prem Notional Rent,PRC DELEGATED CO-COMMISSIONING,AVENUE MEDICAL CENTRE SHEFFIELD,31387439,"5,546.67",PRC DELEGATED CO-COMMISSIONING,S8 7FH
Department of Health,NHS Sheffield CCG,3/31/2020,C&M-PMS Prem Water Rates,PRC DELEGATED CO-COMMISSIONING,AVENUE MEDICAL CENTRE SHEFFIELD,31387439,142.28,PRC DELEGATED CO-COMMISSIONING,S8 7FH
Department of Health,NHS Sheffield CCG,3/31/2020,C&M-PMS QOF Aspiration,PRC DELEGATED CO-COMMISSIONING,AVENUE MEDICAL CENTRE SHEFFIELD,31387439,"5,847.72",PRC DELEGATED CO-COMMISSIONING,S8 7FH
Department of Health,NHS Sheffield CCG,3/31/2020,Clinical&Medical-Serv Recd-F Trsts,CLINICAL LEADS,BARNSLEY HOSPITAL NHS FOUNDATION TRUST,31408169,"126,416.00",Cancer Alliance - Transformation Funding to BHNFT - £64020 - 8a Proj Manager - £10000 - clinical admin backfill (Polyp) - £24410 - admin for RAS - £27986 - Navigator for Diagnostics £126416 - total,S75 2EP
Department of Health,NHS Sheffield CCG,3/31/2020,Hcare Srv Rec Fdtn Trust-Contract Baseline,ACUTE COMMISSIONING,BARNSLEY HOSPITAL NHS FOUNDATION TRUST,31440375,"86,710.00",https://nww.einvoice-prod.sbs.nhs.uk:8179/invoicepdf/e6177a69-3485-5380-b0e3-3653ba02d95b,S75 2EP
Department of Health,NHS Sheffield CCG,3/31/2020,Other Gen Supplies & Srv,BEREAVEMENT SERVICE,BARNSLEY HOSPITAL NHS FOUNDATION TRUST,31686535,"25,000.00",BEREAVEMENT SERVICE,S75 2EP
Department of Health,NHS Sheffield CCG,3/31/2020,NHS Payables <1Yr-Non PO Accruals,ACUTE CHILDRENS SERVICES,BARNSLEY HOSPITAL NHS FOUNDATION TRUST,31709562,"131,016.71",ACUTE CHILDRENS SERVICES,S75 2EP
Department of Health,NHS Sheffield CCG,3/31/2020,C&M-PMS Contract Value,PRC DELEGATED CO-COMMISSIONING,BARNSLEY ROAD SURGERY,31387445,"21,707.99",PRC DELEGATED CO-COMMISSIONING,S5 0QJ
Department of Health,NHS Sheffield CCG,3/31/2020,C&M-PMS GP Statutory Levy,PRC DELEGATED CO-COMMISSIONING,BARNSLEY ROAD SURGERY,31387445,178.86,PRC DELEGATED CO-COMMISSIONING,S5 0QJ
Department of Health,NHS Sheffield CCG,3/31/2020,C&M-PMS PCN DES Participation,PRC DELEGATED CO-COMMISSIONING,BARNSLEY ROAD SURGERY,31387445,410.63,PRC DELEGATED CO-COMMISSIONING,S5 0QJ
Department of Health,NHS Sheffield CCG,3/31/2020,C&M-PMS Prem Notional Rent,PRC DELEGATED CO-COMMISSIONING,BARNSLEY ROAD SURGERY,31387445,"2,652.17",PRC DELEGATED CO-COMMISSIONING,S5 0QJ
Department of Health,NHS Sheffield CCG,3/31/2020,C&M-PMS Prem Water Rates,PRC DELEGATED CO-COMMISSIONING,BARNSLEY ROAD SURGERY,31387445,68.70,PRC DELEGATED CO-COMMISSIONING,S5 0QJ
Department of Health,NHS Sheffield CCG,3/31/2020,C&M-PMS QOF Aspiration,PRC DELEGATED CO-COMMISSIONING,BARNSLEY ROAD SURGERY,31387445,"2,377.21",PRC DELEGATED CO-COMMISSIONING,S5 0QJ
Department of Health,NHS Sheffield CCG,3/31/2020,C&M-GMS Global Sum,PRC DELEGATED CO-COMMISSIONING,BASLOW ROAD & SHOREHAM STREET SURGERIES,31647699,"96,589.28",PRC DELEGATED CO-COMMISSIONING,S17 4DR
Department of Health,NHS Sheffield CCG,3/31/2020,C&M-GMS MPIG Correction Factor,PRC DELEGATED CO-COMMISSIONING,BASLOW ROAD & SHOREHAM STREET SURGERIES,31647699,146.21,PRC DELEGATED CO-COMMISSIONING,S17 4DR
Department of Health,NHS Sheffield CCG,3/31/2020,C&M-GMS PCN DES Participation,PRC DELEGATED CO-COMMISSIONING,BASLOW ROAD & SHOREHAM STREET SURGERIES,31647699,"2,012.54",PRC DELEGATED CO-COMMISSIONING,S17 4DR
Department of Health,NHS Sheffield CCG,3/31/2020,C&M-GMS PCO Seniority,PRC DELEGATED CO-COMMISSIONING,BASLOW ROAD & SHOREHAM STREET SURGERIES,31647699,"1,350.29",PRC DELEGATED CO-COMMISSIONING,S17 4DR
Department of Health,NHS Sheffield CCG,3/31/2020,C&M-GMS Prem Notional Rent,PRC DELEGATED CO-COMMISSIONING,BASLOW ROAD & SHOREHAM STREET SURGERIES,31647699,"8,222.71",PRC DELEGATED CO-COMMISSIONING,S17 4DR
Department of Health,NHS Sheffield CCG,3/31/2020,C&M-GMS QOF Aspiration,PRC DELEGATED CO-COMMISSIONING,BASLOW ROAD & SHOREHAM STREET SURGERIES,31647699,"10,278.96",PRC DELEGATED CO-COMMISSIONING,S17 4DR
Department of Health,NHS Sheffield CCG,3/31/2020,Cont Care-Physical Disab (65+),CHC ADULT FULLY FUNDED,BC SHEFFIELD LTD,31686099,"39,504.08",CHC ADULT FULLY FUNDED,S9 2TJ
Department of Health,NHS Sheffield CCG,3/31/2020,C&M-PMS Contract Value,PRC DELEGATED CO-COMMISSIONING,BIRLEY HEALTH CENTRE,31387449,"64,386.85",PRC DELEGATED CO-COMMISSIONING,S12 3BP
Department of Health,NHS Sheffield CCG,3/31/2020,C&M-PMS DES Minor Surgery,PRC DELEGATED CO-COMMISSIONING,BIRLEY HEALTH CENTRE,31387449,"4,135.00",PRC DELEGATED CO-COMMISSIONING,S12 3BP
Department of Health,NHS Sheffield CCG,3/31/2020,C&M-PMS GP Statutory Levy,PRC DELEGATED CO-COMMISSIONING,BIRLEY HEALTH CENTRE,31387449,598.78,PRC DELEGATED CO-COMMISSIONING,S12 3BP
Department of Health,NHS Sheffield CCG,3/31/2020,C&M-PMS Out of Hours Opt Outs,PRC DELEGATED CO-COMMISSIONING,BIRLEY HEALTH CENTRE,31387449,8.85,PRC DELEGATED CO-COMMISSIONING,S12 3BP
Department of Health,NHS Sheffield CCG,3/31/2020,C&M-PMS PCN DES Participation,PRC DELEGATED CO-COMMISSIONING,BIRLEY HEALTH CENTRE,31387449,"1,209.32",PRC DELEGATED CO-COMMISSIONING,S12 3BP
Department of Health,NHS Sheffield CCG,3/31/2020,C&M-PMS PCO Seniority,PRC DELEGATED CO-COMMISSIONING,BIRLEY HEALTH CENTRE,31387449,"2,550.06",PRC DELEGATED CO-COMMISSIONING,S12 3BP
Department of Health,NHS Sheffield CCG,3/31/2020,C&M-PMS Prem Notional Rent,PRC DELEGATED CO-COMMISSIONING,BIRLEY HEALTH CENTRE,31387449,"7,600.58",PRC DELEGATED CO-COMMISSIONING,S12 3BP
Department of Health,NHS Sheffield CCG,3/31/2020,C&M-PMS Prem Water Rates,PRC DELEGATED CO-COMMISSIONING,BIRLEY HEALTH CENTRE,31387449,122.05,PRC DELEGATED CO-COMMISSIONING,S12 3BP
Department of Health,NHS Sheffield CCG,3/31/2020,C&M-PMS QOF Aspiration,PRC DELEGATED CO-COMMISSIONING,BIRLEY HEALTH CENTRE,31387449,"7,981.39",PRC DELEGATED CO-COMMISSIONING,S12 3BP
Department of Health,NHS Sheffield CCG,3/31/2020,Clinical&Medical-Independent Sector,ACUTE COMMISSIONING,BMI HEALTHCARE LTD,31440366,"59,155.50",https://nww.einvoice-prod.sbs.nhs.uk:8179/invoicepdf/8730770b-c41b-51b3-bca7-bd5f5355cc50,SK3 0XN
Department of Health,NHS Sheffield CCG,3/31/2020,Cont Care-Physical Disab (<65),CHC ADULT FULLY FUNDED,BONDCARE,31569971,"28,148.26",CHC ADULT FULLY FUNDED,NW4 4EF
Department of Health,NHS Sheffield CCG,3/31/2020,Cont Care-Funded Nursing Care Allow,FUNDED NURSING CARE,BONDCARE,31573016,"38,646.25",FUNDED NURSING CARE,NW4 4EF
Department of Health,NHS Sheffield CCG,3/31/2020,C&M-GMS Cost of Drugs -Prescribing,LOCAL ENHANCED SERVICES,BROOMHILL SURGERY,31647706,"2,713.50",LOCAL ENHANCED SERVICES,S10 5BU
Department of Health,NHS Sheffield CCG,3/31/2020,C&M-GMS Global Sum,PRC DELEGATED CO-COMMISSIONING,BROOMHILL SURGERY,31647706,"64,851.54",PRC DELEGATED CO-COMMISSIONING,S10 5BU
Department of Health,NHS Sheffield CCG,3/31/2020,C&M-GMS MPIG Correction Factor,PRC DELEGATED CO-COMMISSIONING,BROOMHILL SURGERY,31647706,251.00,PRC DELEGATED CO-COMMISSIONING,S10 5BU
Department of Health,NHS Sheffield CCG,3/31/2020,C&M-GMS PCN DES Participation,PRC DELEGATED CO-COMMISSIONING,BROOMHILL SURGERY,31647706,"1,318.50",PRC DELEGATED CO-COMMISSIONING,S10 5BU
Department of Health,NHS Sheffield CCG,3/31/2020,C&M-GMS PCO Seniority,PRC DELEGATED CO-COMMISSIONING,BROOMHILL SURGERY,31647706,991.77,PRC DELEGATED CO-COMMISSIONING,S10 5BU
Department of Health,NHS Sheffield CCG,3/31/2020,C&M-GMS Prem Cost Rent,PRC DELEGATED CO-COMMISSIONING,BROOMHILL SURGERY,31647706,"2,975.42",PRC DELEGATED CO-COMMISSIONING,S10 5BU
Department of Health,NHS Sheffield CCG,3/31/2020,C&M-GMS Prem Notional Rent,PRC DELEGATED CO-COMMISSIONING,BROOMHILL SURGERY,31647706,"2,612.50",PRC DELEGATED CO-COMMISSIONING,S10 5BU
Department of Health,NHS Sheffield CCG,3/31/2020,C&M-GMS Prof Fees Prescribing,PRC DELEGATED CO-COMMISSIONING,BROOMHILL SURGERY,31647706,405.53,PRC DELEGATED CO-COMMISSIONING,S10 5BU
Department of Health,NHS Sheffield CCG,3/31/2020,C&M-GMS QOF Aspiration,PRC DELEGATED CO-COMMISSIONING,BROOMHILL SURGERY,31647706,"6,211.39",PRC DELEGATED CO-COMMISSIONING,S10 5BU
Department of Health,NHS Sheffield CCG,3/31/2020,C&M-GMS Cost of Drugs -Prescribing,LOCAL ENHANCED SERVICES,BUCHANAN ROAD SURGERY,31647702,4.58,LOCAL ENHANCED SERVICES,S5 8AL
Department of Health,NHS Sheffield CCG,3/31/2020,C&M-GMS Global Sum,PRC DELEGATED CO-COMMISSIONING,BUCHANAN ROAD SURGERY,31647702,"35,728.03",PRC DELEGATED CO-COMMISSIONING,S5 8AL
Department of Health,NHS Sheffield CCG,3/31/2020,C&M-GMS MPIG Correction Factor,PRC DELEGATED CO-COMMISSIONING,BUCHANAN ROAD SURGERY,31647702,655.25,PRC DELEGATED CO-COMMISSIONING,S5 8AL
Department of Health,NHS Sheffield CCG,3/31/2020,C&M-GMS PCN DES Participation,PRC DELEGATED CO-COMMISSIONING,BUCHANAN ROAD SURGERY,31647702,736.41,PRC DELEGATED CO-COMMISSIONING,S5 8AL
Department of Health,NHS Sheffield CCG,3/31/2020,C&M-GMS PCO Seniority,PRC DELEGATED CO-COMMISSIONING,BUCHANAN ROAD SURGERY,31647702,421.65,PRC DELEGATED CO-COMMISSIONING,S5 8AL
Department of Health,NHS Sheffield CCG,3/31/2020,C&M-GMS Prem Notional Rent,PRC DELEGATED CO-COMMISSIONING,BUCHANAN ROAD SURGERY,31647702,"2,595.83",PRC DELEGATED CO-COMMISSIONING,S5 8AL
Department of Health,NHS Sheffield CCG,3/31/2020,C&M-GMS Prof Fees Prescribing,PRC DELEGATED CO-COMMISSIONING,BUCHANAN ROAD SURGERY,31647702,2.07,PRC DELEGATED CO-COMMISSIONING,S5 8AL
Department of Health,NHS Sheffield CCG,3/31/2020,C&M-GMS QOF Aspiration,PRC DELEGATED CO-COMMISSIONING,BUCHANAN ROAD SURGERY,31647702,"4,303.24",PRC DELEGATED CO-COMMISSIONING,S5 8AL
Department of Health,NHS Sheffield CCG,3/31/2020,C&M-PMS Contract Value,PRC DELEGATED CO-COMMISSIONING,BURNCROSS SURGERY,31387455,"121,307.81",PRC DELEGATED CO-COMMISSIONING,S35 1RN
Department of Health,NHS Sheffield CCG,3/31/2020,C&M-PMS DES Minor Surgery,PRC DELEGATED CO-COMMISSIONING,BURNCROSS SURGERY,31387455,"3,320.00",PRC DELEGATED CO-COMMISSIONING,S35 1RN
Department of Health,NHS Sheffield CCG,3/31/2020,C&M-PMS GP Statutory Levy,PRC DELEGATED CO-COMMISSIONING,BURNCROSS SURGERY,31387455,"1,064.00",PRC DELEGATED CO-COMMISSIONING,S35 1RN
Department of Health,NHS Sheffield CCG,3/31/2020,C&M-PMS PCN DES Participation,PRC DELEGATED CO-COMMISSIONING,BURNCROSS SURGERY,31387455,"2,292.15",PRC DELEGATED CO-COMMISSIONING,S35 1RN
Department of Health,NHS Sheffield CCG,3/31/2020,C&M-PMS PCO Seniority,PRC DELEGATED CO-COMMISSIONING,BURNCROSS SURGERY,31387455,"2,036.42",PRC DELEGATED CO-COMMISSIONING,S35 1RN
Department of Health,NHS Sheffield CCG,3/31/2020,C&M-PMS Prem Notional Rent,PRC DELEGATED CO-COMMISSIONING,BURNCROSS SURGERY,31387455,"14,058.33",PRC DELEGATED CO-COMMISSIONING,S35 1RN
Department of Health,NHS Sheffield CCG,3/31/2020,C&M-PMS QOF Aspiration,PRC DELEGATED CO-COMMISSIONING,BURNCROSS SURGERY,31387455,"15,732.40",PRC DELEGATED CO-COMMISSIONING,S35 1RN
Department of Health,NHS Sheffield CCG,3/31/2020,C&M-PMS Contract Value,PRC DELEGATED CO-COMMISSIONING,BURNGREAVE SURGERY,31387459,"57,512.28",PRC DELEGATED CO-COMMISSIONING,S3 9DA
Department of Health,NHS Sheffield CCG,3/31/2020,C&M-PMS DES Minor Surgery,PRC DELEGATED CO-COMMISSIONING,BURNGREAVE SURGERY,31387459,"1,120.00",PRC DELEGATED CO-COMMISSIONING,S3 9DA
Department of Health,NHS Sheffield CCG,3/31/2020,C&M-PMS GP Statutory Levy,PRC DELEGATED CO-COMMISSIONING,BURNGREAVE SURGERY,31387459,482.16,PRC DELEGATED CO-COMMISSIONING,S3 9DA
Department of Health,NHS Sheffield CCG,3/31/2020,C&M-PMS Out of Hours Opt Outs,PRC DELEGATED CO-COMMISSIONING,BURNGREAVE SURGERY,31387459,6.70,PRC DELEGATED CO-COMMISSIONING,S3 9DA
Department of Health,NHS Sheffield CCG,3/31/2020,C&M-PMS PCN DES Participation,PRC DELEGATED CO-COMMISSIONING,BURNGREAVE SURGERY,31387459,"1,088.98",PRC DELEGATED CO-COMMISSIONING,S3 9DA
Department of Health,NHS Sheffield CCG,3/31/2020,C&M-PMS Prem Notional Rent,PRC DELEGATED CO-COMMISSIONING,BURNGREAVE SURGERY,31387459,"6,622.92",PRC DELEGATED CO-COMMISSIONING,S3 9DA
Department of Health,NHS Sheffield CCG,3/31/2020,C&M-PMS QOF Aspiration,PRC DELEGATED CO-COMMISSIONING,BURNGREAVE SURGERY,31387459,"5,288.96",PRC DELEGATED CO-COMMISSIONING,S3 9DA
Department of Health,NHS Sheffield CCG,3/31/2020,External Consultancy Fees,CLINICAL LEADS,CAJA LTD,31577963,"24,850.00",Cancer Alliance - Nudge Part 2 - to be released March 2020,ST5 5NB
Department of Health,NHS Sheffield CCG,3/31/2020,C&M-GMS Cost of Drugs -Prescribing,LOCAL ENHANCED SERVICES,CARTERKNOWLE & DORE MEDICAL PRACTICE,31647711,"3,299.31",LOCAL ENHANCED SERVICES,S7 2DW
Department of Health,NHS Sheffield CCG,3/31/2020,C&M-GMS Global Sum,PRC DELEGATED CO-COMMISSIONING,CARTERKNOWLE & DORE MEDICAL PRACTICE,31647711,"85,153.70",PRC DELEGATED CO-COMMISSIONING,S7 2DW
Department of Health,NHS Sheffield CCG,3/31/2020,C&M-GMS MPIG Correction Factor,PRC DELEGATED CO-COMMISSIONING,CARTERKNOWLE & DORE MEDICAL PRACTICE,31647711,747.29,PRC DELEGATED CO-COMMISSIONING,S7 2DW
Department of Health,NHS Sheffield CCG,3/31/2020,C&M-GMS PCN DES Participation,PRC DELEGATED CO-COMMISSIONING,CARTERKNOWLE & DORE MEDICAL PRACTICE,31647711,"1,742.96",PRC DELEGATED CO-COMMISSIONING,S7 2DW
Department of Health,NHS Sheffield CCG,3/31/2020,C&M-GMS PCO Seniority,PRC DELEGATED CO-COMMISSIONING,CARTERKNOWLE & DORE MEDICAL PRACTICE,31647711,"1,320.32",PRC DELEGATED CO-COMMISSIONING,S7 2DW
Department of Health,NHS Sheffield CCG,3/31/2020,C&M-GMS Prem Notional Rent,PRC DELEGATED CO-COMMISSIONING,CARTERKNOWLE & DORE MEDICAL PRACTICE,31647711,"7,596.50",PRC DELEGATED CO-COMMISSIONING,S7 2DW
Department of Health,NHS Sheffield CCG,3/31/2020,C&M-GMS Prof Fees Prescribing,PRC DELEGATED CO-COMMISSIONING,CARTERKNOWLE & DORE MEDICAL PRACTICE,31647711,275.19,PRC DELEGATED CO-COMMISSIONING,S7 2DW
Department of Health,NHS Sheffield CCG,3/31/2020,C&M-GMS QOF Aspiration,PRC DELEGATED CO-COMMISSIONING,CARTERKNOWLE & DORE MEDICAL PRACTICE,31647711,"10,055.02",PRC DELEGATED CO-COMMISSIONING,S7 2DW
Department of Health,NHS Sheffield CCG,3/31/2020,C&M-GMS Cost of Drugs -Prescribing,LOCAL ENHANCED SERVICES,CHARNOCK HEALTH PRIMARY CARE CENTRE,31647708,"2,306.65",LOCAL ENHANCED SERVICES,S12 3GH
Department of Health,NHS Sheffield CCG,3/31/2020,C&M-GMS Global Sum,PRC DELEGATED CO-COMMISSIONING,CHARNOCK HEALTH PRIMARY CARE CENTRE,31647708,"43,474.71",PRC DELEGATED CO-COMMISSIONING,S12 3GH
Department of Health,NHS Sheffield CCG,3/31/2020,C&M-GMS MPIG Correction Factor,PRC DELEGATED CO-COMMISSIONING,CHARNOCK HEALTH PRIMARY CARE CENTRE,31647708,206.62,PRC DELEGATED CO-COMMISSIONING,S12 3GH
Department of Health,NHS Sheffield CCG,3/31/2020,C&M-GMS PCN DES Participation,PRC DELEGATED CO-COMMISSIONING,CHARNOCK HEALTH PRIMARY CARE CENTRE,31647708,869.33,PRC DELEGATED CO-COMMISSIONING,S12 3GH
Department of Health,NHS Sheffield CCG,3/31/2020,C&M-GMS PCO Seniority,PRC DELEGATED CO-COMMISSIONING,CHARNOCK HEALTH PRIMARY CARE CENTRE,31647708,"1,547.77",PRC DELEGATED CO-COMMISSIONING,S12 3GH
Department of Health,NHS Sheffield CCG,3/31/2020,C&M-GMS Prem Notional Rent,PRC DELEGATED CO-COMMISSIONING,CHARNOCK HEALTH PRIMARY CARE CENTRE,31647708,335.00,PRC DELEGATED CO-COMMISSIONING,S12 3GH
Department of Health,NHS Sheffield CCG,3/31/2020,C&M-GMS Prof Fees Prescribing,PRC DELEGATED CO-COMMISSIONING,CHARNOCK HEALTH PRIMARY CARE CENTRE,31647708,353.80,PRC DELEGATED CO-COMMISSIONING,S12 3GH
Department of Health,NHS Sheffield CCG,3/31/2020,C&M-GMS QOF Aspiration,PRC DELEGATED CO-COMMISSIONING,CHARNOCK HEALTH PRIMARY CARE CENTRE,31647708,"4,932.79",PRC DELEGATED CO-COMMISSIONING,S12 3GH
Department of Health,NHS Sheffield CCG,3/31/2020,Hcare Srv Rec Fdtn Trust-Contract Baseline,ACUTE COMMISSIONING,CHESTERFIELD ROYAL HOSPITAL NHS FOUNDATION TRUST,31440371,"50,733.00",ACUTE COMMISSIONING,S44 5BL
Department of Health,NHS Sheffield CCG,3/31/2020,Hcare Srv Rec Fdtn Trust-Contract Baseline,ACUTE COMMISSIONING,CHESTERFIELD ROYAL HOSPITAL NHS FOUNDATION TRUST,31573084,"318,586.00",ACUTE COMMISSIONING,S44 5BL
Department of Health,NHS Sheffield CCG,3/31/2020,NHS Payables <1Yr-Non PO Accruals,ACUTE CHILDRENS SERVICES,CHESTERFIELD ROYAL HOSPITAL NHS FOUNDATION TRUST,31709563,"369,177.00",ACUTE CHILDRENS SERVICES,S44 5BL
Department of Health,NHS Sheffield CCG,3/31/2020,Clinical&Medical-Independent Sector,ACUTE COMMISSIONING,CLAREMONT HOSPITAL,31569932,"66,095.00",ACUTE COMMISSIONING,S10 5UB
Department of Health,NHS Sheffield CCG,3/31/2020,C&M-APMS Contract Value,PRC DELEGATED CO-COMMISSIONING,CLOVER CITY PRACTICE,31387531,"29,038.78",PRC DELEGATED CO-COMMISSIONING,S9 4QH
Department of Health,NHS Sheffield CCG,3/31/2020,C&M-APMS DES Minor Surgery,PRC DELEGATED CO-COMMISSIONING,CLOVER CITY PRACTICE,31387531,40.00,PRC DELEGATED CO-COMMISSIONING,S9 4QH
Department of Health,NHS Sheffield CCG,3/31/2020,C&M-APMS PCN DES Participation,PRC DELEGATED CO-COMMISSIONING,CLOVER CITY PRACTICE,31387531,529.90,PRC DELEGATED CO-COMMISSIONING,S9 4QH
Department of Health,NHS Sheffield CCG,3/31/2020,C&M-PMS QOF Aspiration,PRC DELEGATED CO-COMMISSIONING,CLOVER CITY PRACTICE,31387531,"1,537.57",PRC DELEGATED CO-COMMISSIONING,S9 4QH
Department of Health,NHS Sheffield CCG,3/31/2020,C&M-APMS Contract Value,PRC DELEGATED CO-COMMISSIONING,CLOVER GROUP PRACTICE,31413023,-469.17,PRC DELEGATED CO-COMMISSIONING,S9 4QH
Department of Health,NHS Sheffield CCG,3/31/2020,C&M-APMS OOH Opt Outs,PRC DELEGATED CO-COMMISSIONING,CLOVER GROUP PRACTICE,31413023,"-6,115.04",PRC DELEGATED CO-COMMISSIONING,S9 4QH
Department of Health,NHS Sheffield CCG,3/31/2020,C&M-APMS Prem Actual Rent,PRC DELEGATED CO-COMMISSIONING,CLOVER GROUP PRACTICE,31413023,"-2,804.17",PRC DELEGATED CO-COMMISSIONING,S9 4QH
Department of Health,NHS Sheffield CCG,3/31/2020,C&M-APMS Prem Healthcentre Rent,PRC DELEGATED CO-COMMISSIONING,CLOVER GROUP PRACTICE,31413023,-944.23,PRC DELEGATED CO-COMMISSIONING,S9 4QH
Department of Health,NHS Sheffield CCG,3/31/2020,C&M-APMS Contract Value,PRC DELEGATED CO-COMMISSIONING,CLOVER GROUP PRACTICE,31413024,"128,095.85",PRC DELEGATED CO-COMMISSIONING,S9 4QH
Department of Health,NHS Sheffield CCG,3/31/2020,C&M-APMS DES Minor Surgery,PRC DELEGATED CO-COMMISSIONING,CLOVER GROUP PRACTICE,31413024,160.00,PRC DELEGATED CO-COMMISSIONING,S9 4QH
Department of Health,NHS Sheffield CCG,3/31/2020,C&M-APMS OOH Opt Outs,PRC DELEGATED CO-COMMISSIONING,CLOVER GROUP PRACTICE,31413024,22.40,PRC DELEGATED CO-COMMISSIONING,S9 4QH
Department of Health,NHS Sheffield CCG,3/31/2020,C&M-APMS PCN DES Participation,PRC DELEGATED CO-COMMISSIONING,CLOVER GROUP PRACTICE,31413024,"2,421.56",PRC DELEGATED CO-COMMISSIONING,S9 4QH
Department of Health,NHS Sheffield CCG,3/31/2020,C&M-APMS PCO Locum Sickness,PRC DELEGATED CO-COMMISSIONING,CLOVER GROUP PRACTICE,31413024,"19,109.12",PRC DELEGATED CO-COMMISSIONING,S9 4QH
Department of Health,NHS Sheffield CCG,3/31/2020,C&M-APMS Prem Actual Rent,PRC DELEGATED CO-COMMISSIONING,CLOVER GROUP PRACTICE,31413024,"7,973.85",PRC DELEGATED CO-COMMISSIONING,S9 4QH
Department of Health,NHS Sheffield CCG,3/31/2020,C&M-APMS Prem Healthcentre Rent,PRC DELEGATED CO-COMMISSIONING,CLOVER GROUP PRACTICE,31413024,"59,658.86",PRC DELEGATED CO-COMMISSIONING,S9 4QH
Department of Health,NHS Sheffield CCG,3/31/2020,C&M-APMS Prem Notional Rent,PRC DELEGATED CO-COMMISSIONING,CLOVER GROUP PRACTICE,31413024,"2,804.17",PRC DELEGATED CO-COMMISSIONING,S9 4QH
Department of Health,NHS Sheffield CCG,3/31/2020,C&M-PMS QOF Aspiration,PRC DELEGATED CO-COMMISSIONING,CLOVER GROUP PRACTICE,31413024,"11,480.20",PRC DELEGATED CO-COMMISSIONING,S9 4QH
Department of Health,NHS Sheffield CCG,3/31/2020,Voids and Subsidies,PRC DELEGATED CO-COMMISSIONING,COMMUNITY HEALTH PARTNERSHIPS LTD,31361677,"37,050.51",PRC DELEGATED CO-COMMISSIONING,M1 5AN
Department of Health,NHS Sheffield CCG,3/31/2020,Voids and Subsidies,RECHARGES NHS PROPERTY SERVICES LTD,COMMUNITY HEALTH PARTNERSHIPS LTD,31361677,"125,768.90",https://nww.einvoice-prod.sbs.nhs.uk:8179/invoicepdf/6d91d287-8455-5d94-80e9-4b78955b69f9,M1 5AN
Department of Health,NHS Sheffield CCG,3/31/2020,C&M-GMS Cost of Drugs -Prescribing,LOCAL ENHANCED SERVICES,CROOKES PRACTICE,31647716,"1,342.46",LOCAL ENHANCED SERVICES,S10 1GN
Department of Health,NHS Sheffield CCG,3/31/2020,C&M-GMS Global Sum,PRC DELEGATED CO-COMMISSIONING,CROOKES PRACTICE,31647716,"52,152.17",PRC DELEGATED CO-COMMISSIONING,S10 1GN
Department of Health,NHS Sheffield CCG,3/31/2020,C&M-GMS MPIG Correction Factor,PRC DELEGATED CO-COMMISSIONING,CROOKES PRACTICE,31647716,772.96,PRC DELEGATED CO-COMMISSIONING,S10 1GN
Department of Health,NHS Sheffield CCG,3/31/2020,C&M-GMS PCN DES Participation,PRC DELEGATED CO-COMMISSIONING,CROOKES PRACTICE,31647716,"1,040.55",PRC DELEGATED CO-COMMISSIONING,S10 1GN
Department of Health,NHS Sheffield CCG,3/31/2020,C&M-GMS PCO Seniority,PRC DELEGATED CO-COMMISSIONING,CROOKES PRACTICE,31647716,"1,320.25",PRC DELEGATED CO-COMMISSIONING,S10 1GN
Department of Health,NHS Sheffield CCG,3/31/2020,C&M-GMS Prem Notional Rent,PRC DELEGATED CO-COMMISSIONING,CROOKES PRACTICE,31647716,"3,874.67",PRC DELEGATED CO-COMMISSIONING,S10 1GN
Department of Health,NHS Sheffield CCG,3/31/2020,C&M-GMS Prem Water Rates,PRC DELEGATED CO-COMMISSIONING,CROOKES PRACTICE,31647716,226.83,PRC DELEGATED CO-COMMISSIONING,S10 1GN
Department of Health,NHS Sheffield CCG,3/31/2020,C&M-GMS Prof Fees Prescribing,PRC DELEGATED CO-COMMISSIONING,CROOKES PRACTICE,31647716,273.11,PRC DELEGATED CO-COMMISSIONING,S10 1GN
Department of Health,NHS Sheffield CCG,3/31/2020,C&M-GMS QOF Aspiration,PRC DELEGATED CO-COMMISSIONING,CROOKES PRACTICE,31647716,"4,885.77",PRC DELEGATED CO-COMMISSIONING,S10 1GN
Department of Health,NHS Sheffield CCG,3/31/2020,C&M-PMS Contract Value,PRC DELEGATED CO-COMMISSIONING,DEEPCAR MEDICAL CENTRE,31387462,"42,322.95",PRC DELEGATED CO-COMMISSIONING,S36 2RA
Department of Health,NHS Sheffield CCG,3/31/2020,C&M-PMS GP Statutory Levy,PRC DELEGATED CO-COMMISSIONING,DEEPCAR MEDICAL CENTRE,31387462,374.64,PRC DELEGATED CO-COMMISSIONING,S36 2RA
Department of Health,NHS Sheffield CCG,3/31/2020,C&M-PMS Out of Hours Opt Outs,PRC DELEGATED CO-COMMISSIONING,DEEPCAR MEDICAL CENTRE,31387462,39.61,PRC DELEGATED CO-COMMISSIONING,S36 2RA
Department of Health,NHS Sheffield CCG,3/31/2020,C&M-PMS PCN DES Participation,PRC DELEGATED CO-COMMISSIONING,DEEPCAR MEDICAL CENTRE,31387462,789.85,PRC DELEGATED CO-COMMISSIONING,S36 2RA
Department of Health,NHS Sheffield CCG,3/31/2020,C&M-PMS PCO Seniority,PRC DELEGATED CO-COMMISSIONING,DEEPCAR MEDICAL CENTRE,31387462,"1,002.29",PRC DELEGATED CO-COMMISSIONING,S36 2RA
Department of Health,NHS Sheffield CCG,3/31/2020,C&M-PMS Prem Healthcentre Rent,PRC DELEGATED CO-COMMISSIONING,DEEPCAR MEDICAL CENTRE,31387462,"29,915.44",PRC DELEGATED CO-COMMISSIONING,S36 2RA
Department of Health,NHS Sheffield CCG,3/31/2020,C&M-PMS QOF Aspiration,PRC DELEGATED CO-COMMISSIONING,DEEPCAR MEDICAL CENTRE,31387462,"4,298.67",PRC DELEGATED CO-COMMISSIONING,S36 2RA
Department of Health,NHS Sheffield CCG,3/31/2020,C&M-GMS Cost of Drugs -Prescribing,LOCAL ENHANCED SERVICES,DEVONSHIRE GREEN MEDICAL CENTRE,31647719,719.97,LOCAL ENHANCED SERVICES,S3 7SF
Department of Health,NHS Sheffield CCG,3/31/2020,C&M-GMS DES Extended Hours Access,PRC DELEGATED CO-COMMISSIONING,DEVONSHIRE GREEN MEDICAL CENTRE,31647719,"6,816.36",PRC DELEGATED CO-COMMISSIONING,S3 7SF
Department of Health,NHS Sheffield CCG,3/31/2020,C&M-GMS Global Sum,PRC DELEGATED CO-COMMISSIONING,DEVONSHIRE GREEN MEDICAL CENTRE,31647719,"46,421.81",PRC DELEGATED CO-COMMISSIONING,S3 7SF
Department of Health,NHS Sheffield CCG,3/31/2020,C&M-GMS MPIG Correction Factor,PRC DELEGATED CO-COMMISSIONING,DEVONSHIRE GREEN MEDICAL CENTRE,31647719,"1,615.60",PRC DELEGATED CO-COMMISSIONING,S3 7SF
Department of Health,NHS Sheffield CCG,3/31/2020,C&M-GMS PCN DES Clinical Director,PRC DELEGATED CO-COMMISSIONING,DEVONSHIRE GREEN MEDICAL CENTRE,31647719,"3,188.00",PRC DELEGATED CO-COMMISSIONING,S3 7SF
Department of Health,NHS Sheffield CCG,3/31/2020,C&M-GMS PCN DES PCN support,LOCAL ENHANCED SERVICES,DEVONSHIRE GREEN MEDICAL CENTRE,31647719,"6,977.63",LOCAL ENHANCED SERVICES,S3 7SF
Department of Health,NHS Sheffield CCG,3/31/2020,C&M-GMS PCN DES Participation,PRC DELEGATED CO-COMMISSIONING,DEVONSHIRE GREEN MEDICAL CENTRE,31647719,931.75,PRC DELEGATED CO-COMMISSIONING,S3 7SF
Department of Health,NHS Sheffield CCG,3/31/2020,C&M-GMS PCO Seniority,PRC DELEGATED CO-COMMISSIONING,DEVONSHIRE GREEN MEDICAL CENTRE,31647719,"1,342.59",PRC DELEGATED CO-COMMISSIONING,S3 7SF
Department of Health,NHS Sheffield CCG,3/31/2020,C&M-GMS Prem Notional Rent,PRC DELEGATED CO-COMMISSIONING,DEVONSHIRE GREEN MEDICAL CENTRE,31647719,"5,987.50",PRC DELEGATED CO-COMMISSIONING,S3 7SF
Department of Health,NHS Sheffield CCG,3/31/2020,C&M-GMS Prem Water Rates,PRC DELEGATED CO-COMMISSIONING,DEVONSHIRE GREEN MEDICAL CENTRE,31647719,"6,828.80",PRC DELEGATED CO-COMMISSIONING,S3 7SF
Department of Health,NHS Sheffield CCG,3/31/2020,C&M-GMS Prof Fees Prescribing,PRC DELEGATED CO-COMMISSIONING,DEVONSHIRE GREEN MEDICAL CENTRE,31647719,132.42,PRC DELEGATED CO-COMMISSIONING,S3 7SF
Department of Health,NHS Sheffield CCG,3/31/2020,C&M-GMS QOF Aspiration,PRC DELEGATED CO-COMMISSIONING,DEVONSHIRE GREEN MEDICAL CENTRE,31647719,"4,805.68",PRC DELEGATED CO-COMMISSIONING,S3 7SF
Department of Health,NHS Sheffield CCG,3/31/2020,Miscellaneous Expenditure (L9),BEREAVEMENT SERVICE,DONCASTER AND BASSETLAW HOSPITALS NHS FOUNDATION TRUST,31348180,-0.55,BEREAVEMENT SERVICE,WF3 1WE
Department of Health,NHS Sheffield CCG,3/31/2020,Other Travel Costs - Car Parking,BEREAVEMENT SERVICE,DONCASTER AND BASSETLAW HOSPITALS NHS FOUNDATION TRUST,31348180,-42.84,BEREAVEMENT SERVICE,WF3 1WE
Department of Health,NHS Sheffield CCG,3/31/2020,Seconded-Basic Sal-Staff fm oth org,BEREAVEMENT SERVICE,DONCASTER AND BASSETLAW HOSPITALS NHS FOUNDATION TRUST,31348180,"39,308.56",SALARY NHS RECHARGES FOR,WF3 1WE
Department of Health,NHS Sheffield CCG,3/31/2020,Seconded-Employer's NHI Costs,BEREAVEMENT SERVICE,DONCASTER AND BASSETLAW HOSPITALS NHS FOUNDATION TRUST,31348180,"4,976.06",BEREAVEMENT SERVICE,WF3 1WE
Department of Health,NHS Sheffield CCG,3/31/2020,Hcare Srv Rec Fdtn Trust-Contract Baseline,ACUTE COMMISSIONING,DONCASTER AND BASSETLAW HOSPITALS NHS FOUNDATION TRUST,31417111,261.00,CQUINS @ 50% MONTH 12 2019/2020 CONTRACT,WF3 1WE
Department of Health,NHS Sheffield CCG,3/31/2020,Hcare Srv Rec Fdtn Trust-Contract Baseline,ACUTE COMMISSIONING,DONCASTER AND BASSETLAW HOSPITALS NHS FOUNDATION TRUST,31417111,"44,044.00",MONTH 12 2019/2020 CONTRACT,WF3 1WE
Department of Health,NHS Sheffield CCG,3/31/2020,Clinical&Medical-Serv Recd-F Trsts,CLINICAL LEADS,DONCASTER AND BASSETLAW HOSPITALS NHS FOUNDATION TRUST,31425649,"32,132.00",MACMILLAN CANCER SUPPORT RECHARGES,WF3 1WE
Department of Health,NHS Sheffield CCG,3/31/2020,Clinical&Medical-Serv Recd-F Trsts,CLINICAL LEADS,DONCASTER AND BASSETLAW HOSPITALS NHS FOUNDATION TRUST,31425650,"32,132.00",MACMILLAN CANCER SUPPORT RECHARGES,WF3 1WE
Department of Health,NHS Sheffield CCG,3/31/2020,Clinical&Medical-Serv Recd-F Trsts,CLINICAL LEADS,DONCASTER AND BASSETLAW HOSPITALS NHS FOUNDATION TRUST,31451058,"53,552.00",MACMILLAN CANCER SUPPORT RECHARGES,WF3 1WE
Department of Health,NHS Sheffield CCG,3/31/2020,Hcare Srv Rec Fdtn Trust-Non Contract,BEREAVEMENT SERVICE,DONCASTER AND BASSETLAW HOSPITALS NHS FOUNDATION TRUST,31514174,"-1,500,000.00",CANCEL INVOICE 56398001 TRANSFORMATION FUNDING,WF3 1WE
Department of Health,NHS Sheffield CCG,3/31/2020,Oth Travel Costs-Car Mileage,BEREAVEMENT SERVICE,DONCASTER AND BASSETLAW HOSPITALS NHS FOUNDATION TRUST,31548933,276.64,BEREAVEMENT SERVICE,WF3 1WE
Department of Health,NHS Sheffield CCG,3/31/2020,Other Travel Costs - Car Parking,BEREAVEMENT SERVICE,DONCASTER AND BASSETLAW HOSPITALS NHS FOUNDATION TRUST,31548933,22.61,BEREAVEMENT SERVICE,WF3 1WE
Department of Health,NHS Sheffield CCG,3/31/2020,Seconded-Basic Sal-Staff fm oth org,BEREAVEMENT SERVICE,DONCASTER AND BASSETLAW HOSPITALS NHS FOUNDATION TRUST,31548933,"30,086.74",SALARY NHS RECHARGES FOR,WF3 1WE
Department of Health,NHS Sheffield CCG,3/31/2020,Seconded-Employer's NHI Costs,BEREAVEMENT SERVICE,DONCASTER AND BASSETLAW HOSPITALS NHS FOUNDATION TRUST,31548933,"3,703.45",BEREAVEMENT SERVICE,WF3 1WE
Department of Health,NHS Sheffield CCG,3/31/2020,Hcare Srv Rec Fdtn Trust-Non Contract,BEREAVEMENT SERVICE,DONCASTER AND BASSETLAW HOSPITALS NHS FOUNDATION TRUST,31569898,"1,500,000.00",CANCEL CREDIT NOTE 56406146 MONIES TO BE REPAID BACK,WF3 1WE
Department of Health,NHS Sheffield CCG,3/31/2020,Clinical&Medical-Serv Recd-F Trsts,CLINICAL LEADS,DONCASTER AND BASSETLAW HOSPITALS NHS FOUNDATION TRUST,31577750,"53,800.00",OTHER OPERATING NON VATABLE INCOME SERVICES,WF3 1WE
Department of Health,NHS Sheffield CCG,3/31/2020,Clinical&Medical-Serv Recd-F Trsts,BEREAVEMENT SERVICE,DONCASTER AND BASSETLAW HOSPITALS NHS FOUNDATION TRUST,31589989,"25,000.00",OTHER OPERATING NON VATABLE INCOME SERVICES,WF3 1WE
Department of Health,NHS Sheffield CCG,3/31/2020,Miscellaneous Expenditure (L9),BEREAVEMENT SERVICE,DONCASTER AND BASSETLAW HOSPITALS NHS FOUNDATION TRUST,31590045,"25,000.00",OTHER OPERATING NON VATABLE INCOME SERVICES,WF3 1WE
Department of Health,NHS Sheffield CCG,3/31/2020,Clinical&Medical-Serv Recd-F Trsts,CLINICAL LEADS,DONCASTER AND BASSETLAW HOSPITALS NHS FOUNDATION TRUST,31704300,"320,000.00",RAPID DIAGNOSTIC FUNDING AS AGREED WITH JULIA JESSOP,WF3 1WE
Department of Health,NHS Sheffield CCG,3/31/2020,Clinical&Medical-Serv Recd-F Trsts,CLINICAL LEADS,DONCASTER AND BASSETLAW HOSPITALS NHS FOUNDATION TRUST,31704332,"-200,000.00",RAPID DIAGNOSTIC FUNDING AS AGREED WITH JULIA JESSOP,WF3 1WE
Department of Health,NHS Sheffield CCG,3/31/2020,NHS Payables <1Yr-Non PO Accruals,ACUTE CHILDRENS SERVICES,DONCASTER AND BASSETLAW HOSPITALS NHS FOUNDATION TRUST,31709564,"79,729.44",ACUTE CHILDRENS SERVICES,WF3 1WE
Department of Health,NHS Sheffield CCG,3/31/2020,C&M-PMS Contract Value,PRC DELEGATED CO-COMMISSIONING,DOVERCOURT SURGERY,31413025,"73,999.72",PRC DELEGATED CO-COMMISSIONING,S2 5FX
Department of Health,NHS Sheffield CCG,3/31/2020,C&M-PMS DES Minor Surgery,PRC DELEGATED CO-COMMISSIONING,DOVERCOURT SURGERY,31413025,"2,120.00",PRC DELEGATED CO-COMMISSIONING,S2 5FX
Department of Health,NHS Sheffield CCG,3/31/2020,C&M-PMS GP Statutory Levy,PRC DELEGATED CO-COMMISSIONING,DOVERCOURT SURGERY,31413025,599.06,PRC DELEGATED CO-COMMISSIONING,S2 5FX
Department of Health,NHS Sheffield CCG,3/31/2020,C&M-PMS Out of Hours Opt Outs,PRC DELEGATED CO-COMMISSIONING,DOVERCOURT SURGERY,31413025,16.14,PRC DELEGATED CO-COMMISSIONING,S2 5FX
Department of Health,NHS Sheffield CCG,3/31/2020,C&M-PMS PCN DES Participation,PRC DELEGATED CO-COMMISSIONING,DOVERCOURT SURGERY,31413025,"1,392.36",PRC DELEGATED CO-COMMISSIONING,S2 5FX
Department of Health,NHS Sheffield CCG,3/31/2020,C&M-PMS PCO Locum Sickness,PRC DELEGATED CO-COMMISSIONING,DOVERCOURT SURGERY,31413025,"4,718.04",PRC DELEGATED CO-COMMISSIONING,S2 5FX
Department of Health,NHS Sheffield CCG,3/31/2020,C&M-PMS PCO Seniority,PRC DELEGATED CO-COMMISSIONING,DOVERCOURT SURGERY,31413025,"1,127.85",PRC DELEGATED CO-COMMISSIONING,S2 5FX
Department of Health,NHS Sheffield CCG,3/31/2020,C&M-PMS Prem Actual Rent,PRC DELEGATED CO-COMMISSIONING,DOVERCOURT SURGERY,31413025,"12,400.00",PRC DELEGATED CO-COMMISSIONING,S2 5FX
Department of Health,NHS Sheffield CCG,3/31/2020,C&M-PMS Prem Notional Rent,PRC DELEGATED CO-COMMISSIONING,DOVERCOURT SURGERY,31413025,"1,708.33",PRC DELEGATED CO-COMMISSIONING,S2 5FX
Department of Health,NHS Sheffield CCG,3/31/2020,C&M-PMS Prem Water Rates,PRC DELEGATED CO-COMMISSIONING,DOVERCOURT SURGERY,31413025,63.52,PRC DELEGATED CO-COMMISSIONING,S2 5FX
Department of Health,NHS Sheffield CCG,3/31/2020,C&M-PMS QOF Aspiration,PRC DELEGATED CO-COMMISSIONING,DOVERCOURT SURGERY,31413025,"7,675.00",PRC DELEGATED CO-COMMISSIONING,S2 5FX
Department of Health,NHS Sheffield CCG,3/31/2020,C&M-PMS Contract Value,PRC DELEGATED CO-COMMISSIONING,DR MEHROTRA & PARTNER,31387466,"26,694.71",PRC DELEGATED CO-COMMISSIONING,S9 5DH
Department of Health,NHS Sheffield CCG,3/31/2020,C&M-PMS DES Minor Surgery,PRC DELEGATED CO-COMMISSIONING,DR MEHROTRA & PARTNER,31387466,160.00,PRC DELEGATED CO-COMMISSIONING,S9 5DH
Department of Health,NHS Sheffield CCG,3/31/2020,C&M-PMS GP Statutory Levy,PRC DELEGATED CO-COMMISSIONING,DR MEHROTRA & PARTNER,31387466,212.46,PRC DELEGATED CO-COMMISSIONING,S9 5DH
Department of Health,NHS Sheffield CCG,3/31/2020,C&M-PMS PCN DES Participation,PRC DELEGATED CO-COMMISSIONING,DR MEHROTRA & PARTNER,31387466,501.42,PRC DELEGATED CO-COMMISSIONING,S9 5DH
Department of Health,NHS Sheffield CCG,3/31/2020,C&M-PMS PCO Seniority,PRC DELEGATED CO-COMMISSIONING,DR MEHROTRA & PARTNER,31387466,446.56,PRC DELEGATED CO-COMMISSIONING,S9 5DH
Department of Health,NHS Sheffield CCG,3/31/2020,C&M-PMS Prem Actual Rent,PRC DELEGATED CO-COMMISSIONING,DR MEHROTRA & PARTNER,31387466,"2,650.00",PRC DELEGATED CO-COMMISSIONING,S9 5DH
Department of Health,NHS Sheffield CCG,3/31/2020,C&M-PMS Prem Notional Rent,PRC DELEGATED CO-COMMISSIONING,DR MEHROTRA & PARTNER,31387466,"5,157.29",PRC DELEGATED CO-COMMISSIONING,S9 5DH
Department of Health,NHS Sheffield CCG,3/31/2020,C&M-PMS QOF Aspiration,PRC DELEGATED CO-COMMISSIONING,DR MEHROTRA & PARTNER,31387466,"2,763.65",PRC DELEGATED CO-COMMISSIONING,S9 5DH
Department of Health,NHS Sheffield CCG,3/31/2020,C&M-PMS Contract Value,PRC DELEGATED CO-COMMISSIONING,DR MILNER & PARTNERS,31387470,"76,636.66",PRC DELEGATED CO-COMMISSIONING,S6 4JQ
Department of Health,NHS Sheffield CCG,3/31/2020,C&M-PMS DES Minor Surgery,PRC DELEGATED CO-COMMISSIONING,DR MILNER & PARTNERS,31387470,"3,035.00",PRC DELEGATED CO-COMMISSIONING,S6 4JQ
Department of Health,NHS Sheffield CCG,3/31/2020,C&M-PMS GP Statutory Levy,PRC DELEGATED CO-COMMISSIONING,DR MILNER & PARTNERS,31387470,748.38,PRC DELEGATED CO-COMMISSIONING,S6 4JQ
Department of Health,NHS Sheffield CCG,3/31/2020,C&M-PMS Out of Hours Opt Outs,PRC DELEGATED CO-COMMISSIONING,DR MILNER & PARTNERS,31387470,16.28,PRC DELEGATED CO-COMMISSIONING,S6 4JQ
Department of Health,NHS Sheffield CCG,3/31/2020,C&M-PMS PCN DES Participation,PRC DELEGATED CO-COMMISSIONING,DR MILNER & PARTNERS,31387470,"1,435.93",PRC DELEGATED CO-COMMISSIONING,S6 4JQ
Department of Health,NHS Sheffield CCG,3/31/2020,C&M-PMS PCO Seniority,PRC DELEGATED CO-COMMISSIONING,DR MILNER & PARTNERS,31387470,"1,238.94",PRC DELEGATED CO-COMMISSIONING,S6 4JQ
Department of Health,NHS Sheffield CCG,3/31/2020,C&M-PMS Prem Actual Rent,PRC DELEGATED CO-COMMISSIONING,DR MILNER & PARTNERS,31387470,"11,382.00",PRC DELEGATED CO-COMMISSIONING,S6 4JQ
Department of Health,NHS Sheffield CCG,3/31/2020,C&M-PMS Prem Notional Rent,PRC DELEGATED CO-COMMISSIONING,DR MILNER & PARTNERS,31387470,"4,462.42",PRC DELEGATED CO-COMMISSIONING,S6 4JQ
Department of Health,NHS Sheffield CCG,3/31/2020,C&M-PMS Prem Rates,PRC DELEGATED CO-COMMISSIONING,DR MILNER & PARTNERS,31387470,"2,593.00",PRC DELEGATED CO-COMMISSIONING,S6 4JQ
Department of Health,NHS Sheffield CCG,3/31/2020,C&M-PMS QOF Aspiration,PRC DELEGATED CO-COMMISSIONING,DR MILNER & PARTNERS,31387470,"6,513.90",PRC DELEGATED CO-COMMISSIONING,S6 4JQ
Department of Health,NHS Sheffield CCG,3/31/2020,C&M-GMS Cost of Drugs -Prescribing,LOCAL ENHANCED SERVICES,DUKE MEDICAL CENTRE,31647727,"1,950.33",LOCAL ENHANCED SERVICES,S2 2TD
Department of Health,NHS Sheffield CCG,3/31/2020,C&M-GMS DES Learn Dsblty Hlth Chk,PRC DELEGATED CO-COMMISSIONING,DUKE MEDICAL CENTRE,31647727,280.00,PRC DELEGATED CO-COMMISSIONING,S2 2TD
Department of Health,NHS Sheffield CCG,3/31/2020,C&M-GMS Global Sum,PRC DELEGATED CO-COMMISSIONING,DUKE MEDICAL CENTRE,31647727,"59,077.01",PRC DELEGATED CO-COMMISSIONING,S2 2TD
Department of Health,NHS Sheffield CCG,3/31/2020,C&M-GMS MPIG Correction Factor,PRC DELEGATED CO-COMMISSIONING,DUKE MEDICAL CENTRE,31647727,306.25,PRC DELEGATED CO-COMMISSIONING,S2 2TD
Department of Health,NHS Sheffield CCG,3/31/2020,C&M-GMS PCN DES Participation,PRC DELEGATED CO-COMMISSIONING,DUKE MEDICAL CENTRE,31647727,"1,138.79",PRC DELEGATED CO-COMMISSIONING,S2 2TD
Department of Health,NHS Sheffield CCG,3/31/2020,C&M-GMS PCO Seniority,PRC DELEGATED CO-COMMISSIONING,DUKE MEDICAL CENTRE,31647727,"1,208.39",PRC DELEGATED CO-COMMISSIONING,S2 2TD
Department of Health,NHS Sheffield CCG,3/31/2020,C&M-GMS Prem Notional Rent,PRC DELEGATED CO-COMMISSIONING,DUKE MEDICAL CENTRE,31647727,"5,721.67",PRC DELEGATED CO-COMMISSIONING,S2 2TD
Department of Health,NHS Sheffield CCG,3/31/2020,C&M-GMS Prem Water Rates,PRC DELEGATED CO-COMMISSIONING,DUKE MEDICAL CENTRE,31647727,253.17,PRC DELEGATED CO-COMMISSIONING,S2 2TD
Department of Health,NHS Sheffield CCG,3/31/2020,C&M-GMS Prof Fees Prescribing,PRC DELEGATED CO-COMMISSIONING,DUKE MEDICAL CENTRE,31647727,273.11,PRC DELEGATED CO-COMMISSIONING,S2 2TD
Department of Health,NHS Sheffield CCG,3/31/2020,C&M-GMS QOF Aspiration,PRC DELEGATED CO-COMMISSIONING,DUKE MEDICAL CENTRE,31647727,"5,166.69",PRC DELEGATED CO-COMMISSIONING,S2 2TD
Department of Health,NHS Sheffield CCG,3/31/2020,C&M-PMS Contract Value,PRC DELEGATED CO-COMMISSIONING,DUNNINC ROAD SURGERY,31387474,"23,890.16",PRC DELEGATED CO-COMMISSIONING,S5 0AE
Department of Health,NHS Sheffield CCG,3/31/2020,C&M-PMS DES Minor Surgery,PRC DELEGATED CO-COMMISSIONING,DUNNINC ROAD SURGERY,31387474,"1,855.00",PRC DELEGATED CO-COMMISSIONING,S5 0AE
Department of Health,NHS Sheffield CCG,3/31/2020,C&M-PMS GP Statutory Levy,PRC DELEGATED CO-COMMISSIONING,DUNNINC ROAD SURGERY,31387474,205.60,PRC DELEGATED CO-COMMISSIONING,S5 0AE
Department of Health,NHS Sheffield CCG,3/31/2020,C&M-PMS PCN DES Participation,PRC DELEGATED CO-COMMISSIONING,DUNNINC ROAD SURGERY,31387474,448.76,PRC DELEGATED CO-COMMISSIONING,S5 0AE
Department of Health,NHS Sheffield CCG,3/31/2020,C&M-PMS PCO Seniority,PRC DELEGATED CO-COMMISSIONING,DUNNINC ROAD SURGERY,31387474,"1,295.27",PRC DELEGATED CO-COMMISSIONING,S5 0AE
Department of Health,NHS Sheffield CCG,3/31/2020,C&M-PMS Prem Notional Rent,PRC DELEGATED CO-COMMISSIONING,DUNNINC ROAD SURGERY,31387474,"1,695.83",PRC DELEGATED CO-COMMISSIONING,S5 0AE
Department of Health,NHS Sheffield CCG,3/31/2020,C&M-PMS QOF Aspiration,PRC DELEGATED CO-COMMISSIONING,DUNNINC ROAD SURGERY,31387474,"2,054.91",PRC DELEGATED CO-COMMISSIONING,S5 0AE
Department of Health,NHS Sheffield CCG,3/31/2020,C&M-PMS Contract Value,PRC DELEGATED CO-COMMISSIONING,DYKES HALL MEDICAL CENTRE,31387476,"73,074.51",PRC DELEGATED CO-COMMISSIONING,S6 4GQ
Department of Health,NHS Sheffield CCG,3/31/2020,C&M-PMS DES Extended Hours Access,PRC DELEGATED CO-COMMISSIONING,DYKES HALL MEDICAL CENTRE,31387476,"4,412.49",PRC DELEGATED CO-COMMISSIONING,S6 4GQ
Department of Health,NHS Sheffield CCG,3/31/2020,C&M-PMS DES Minor Surgery,PRC DELEGATED CO-COMMISSIONING,DYKES HALL MEDICAL CENTRE,31387476,480.00,PRC DELEGATED CO-COMMISSIONING,S6 4GQ
Department of Health,NHS Sheffield CCG,3/31/2020,C&M-PMS GP Statutory Levy,PRC DELEGATED CO-COMMISSIONING,DYKES HALL MEDICAL CENTRE,31387476,677.04,PRC DELEGATED CO-COMMISSIONING,S6 4GQ
Department of Health,NHS Sheffield CCG,3/31/2020,C&M-PMS Out of Hours Opt Outs,PRC DELEGATED CO-COMMISSIONING,DYKES HALL MEDICAL CENTRE,31387476,79.45,PRC DELEGATED CO-COMMISSIONING,S6 4GQ
Department of Health,NHS Sheffield CCG,3/31/2020,C&M-PMS PCN DES Clinical Director,PRC DELEGATED CO-COMMISSIONING,DYKES HALL MEDICAL CENTRE,31387476,"2,063.71",PRC DELEGATED CO-COMMISSIONING,S6 4GQ
Department of Health,NHS Sheffield CCG,3/31/2020,C&M-PMS PCN DES PCN support,LOCAL ENHANCED SERVICES,DYKES HALL MEDICAL CENTRE,31387476,"4,516.88",LOCAL ENHANCED SERVICES,S6 4GQ
Department of Health,NHS Sheffield CCG,3/31/2020,C&M-PMS PCN DES Participation,PRC DELEGATED CO-COMMISSIONING,DYKES HALL MEDICAL CENTRE,31387476,"1,386.86",PRC DELEGATED CO-COMMISSIONING,S6 4GQ
Department of Health,NHS Sheffield CCG,3/31/2020,C&M-PMS PCO Seniority,PRC DELEGATED CO-COMMISSIONING,DYKES HALL MEDICAL CENTRE,31387476,"1,551.24",PRC DELEGATED CO-COMMISSIONING,S6 4GQ
Department of Health,NHS Sheffield CCG,3/31/2020,C&M-PMS Prem Notional Rent,PRC DELEGATED CO-COMMISSIONING,DYKES HALL MEDICAL CENTRE,31387476,"5,377.08",PRC DELEGATED CO-COMMISSIONING,S6 4GQ
Department of Health,NHS Sheffield CCG,3/31/2020,C&M-PMS QOF Aspiration,PRC DELEGATED CO-COMMISSIONING,DYKES HALL MEDICAL CENTRE,31387476,"8,323.49",PRC DELEGATED CO-COMMISSIONING,S6 4GQ
Department of Health,NHS Sheffield CCG,3/31/2020,C&M-PMS Contract Value,PRC DELEGATED CO-COMMISSIONING,EAST BANK MEDICAL CENTRE,31387478,"49,348.01",PRC DELEGATED CO-COMMISSIONING,S2 2AG
Department of Health,NHS Sheffield CCG,3/31/2020,C&M-PMS DES Minor Surgery,PRC DELEGATED CO-COMMISSIONING,EAST BANK MEDICAL CENTRE,31387478,630.00,PRC DELEGATED CO-COMMISSIONING,S2 2AG
Department of Health,NHS Sheffield CCG,3/31/2020,C&M-PMS GP Statutory Levy,PRC DELEGATED CO-COMMISSIONING,EAST BANK MEDICAL CENTRE,31387478,413.70,PRC DELEGATED CO-COMMISSIONING,S2 2AG
Department of Health,NHS Sheffield CCG,3/31/2020,C&M-PMS Out of Hours Opt Outs,PRC DELEGATED CO-COMMISSIONING,EAST BANK MEDICAL CENTRE,31387478,11.20,PRC DELEGATED CO-COMMISSIONING,S2 2AG
Department of Health,NHS Sheffield CCG,3/31/2020,C&M-PMS PCN DES Participation,PRC DELEGATED CO-COMMISSIONING,EAST BANK MEDICAL CENTRE,31387478,914.08,PRC DELEGATED CO-COMMISSIONING,S2 2AG
Department of Health,NHS Sheffield CCG,3/31/2020,C&M-PMS PCO Seniority,PRC DELEGATED CO-COMMISSIONING,EAST BANK MEDICAL CENTRE,31387478,832.41,PRC DELEGATED CO-COMMISSIONING,S2 2AG
Department of Health,NHS Sheffield CCG,3/31/2020,C&M-PMS Prem Notional Rent,PRC DELEGATED CO-COMMISSIONING,EAST BANK MEDICAL CENTRE,31387478,"10,583.33",PRC DELEGATED CO-COMMISSIONING,S2 2AG
Department of Health,NHS Sheffield CCG,3/31/2020,C&M-PMS QOF Aspiration,PRC DELEGATED CO-COMMISSIONING,EAST BANK MEDICAL CENTRE,31387478,"5,026.31",PRC DELEGATED CO-COMMISSIONING,S2 2AG
Department of Health,NHS Sheffield CCG,3/31/2020,C&M-GMS Cost of Drugs -Prescribing,LOCAL ENHANCED SERVICES,ECCLESFIELD GROUP PRACTICE,31647723,"3,437.90",LOCAL ENHANCED SERVICES,S35 9XQ
Department of Health,NHS Sheffield CCG,3/31/2020,C&M-GMS DES Extended Hours Access,PRC DELEGATED CO-COMMISSIONING,ECCLESFIELD GROUP PRACTICE,31647723,"5,190.33",PRC DELEGATED CO-COMMISSIONING,S35 9XQ
Department of Health,NHS Sheffield CCG,3/31/2020,C&M-GMS Global Sum,PRC DELEGATED CO-COMMISSIONING,ECCLESFIELD GROUP PRACTICE,31647723,"69,974.40",PRC DELEGATED CO-COMMISSIONING,S35 9XQ
Department of Health,NHS Sheffield CCG,3/31/2020,C&M-GMS PCN DES Clinical Director,PRC DELEGATED CO-COMMISSIONING,ECCLESFIELD GROUP PRACTICE,31647723,"2,427.51",PRC DELEGATED CO-COMMISSIONING,S35 9XQ
Department of Health,NHS Sheffield CCG,3/31/2020,C&M-GMS PCN DES PCN support,LOCAL ENHANCED SERVICES,ECCLESFIELD GROUP PRACTICE,31647723,"5,313.13",LOCAL ENHANCED SERVICES,S35 9XQ
Department of Health,NHS Sheffield CCG,3/31/2020,C&M-GMS PCN DES Participation,PRC DELEGATED CO-COMMISSIONING,ECCLESFIELD GROUP PRACTICE,31647723,"1,400.97",PRC DELEGATED CO-COMMISSIONING,S35 9XQ
Department of Health,NHS Sheffield CCG,3/31/2020,C&M-GMS PCO Locum Adop/Pat/Mat,PRC DELEGATED CO-COMMISSIONING,ECCLESFIELD GROUP PRACTICE,31647723,"4,554.10",PRC DELEGATED CO-COMMISSIONING,S35 9XQ
Department of Health,NHS Sheffield CCG,3/31/2020,C&M-GMS PCO Seniority,PRC DELEGATED CO-COMMISSIONING,ECCLESFIELD GROUP PRACTICE,31647723,"1,741.74",PRC DELEGATED CO-COMMISSIONING,S35 9XQ
Department of Health,NHS Sheffield CCG,3/31/2020,C&M-GMS Prem Notional Rent,PRC DELEGATED CO-COMMISSIONING,ECCLESFIELD GROUP PRACTICE,31647723,"6,805.42",PRC DELEGATED CO-COMMISSIONING,S35 9XQ
Department of Health,NHS Sheffield CCG,3/31/2020,C&M-GMS Prof Fees Prescribing,PRC DELEGATED CO-COMMISSIONING,ECCLESFIELD GROUP PRACTICE,31647723,420.01,PRC DELEGATED CO-COMMISSIONING,S35 9XQ
Department of Health,NHS Sheffield CCG,3/31/2020,C&M-GMS QOF Aspiration,PRC DELEGATED CO-COMMISSIONING,ECCLESFIELD GROUP PRACTICE,31647723,"9,179.49",PRC DELEGATED CO-COMMISSIONING,S35 9XQ
Department of Health,NHS Sheffield CCG,3/31/2020,Computer Software/License,CLINICAL LEADS,EDGE HEALTH LTD,31704309,"52,800.00",CLINICAL LEADS,SE16 4UL
Department of Health,NHS Sheffield CCG,3/31/2020,C&M-GMS Cost of Drugs -Prescribing,LOCAL ENHANCED SERVICES,ELM LANE SURGERY,31647725,"1,455.65",LOCAL ENHANCED SERVICES,S5 7TW
Department of Health,NHS Sheffield CCG,3/31/2020,C&M-GMS DES Learn Dsblty Hlth Chk,PRC DELEGATED CO-COMMISSIONING,ELM LANE SURGERY,31647725,280.00,PRC DELEGATED CO-COMMISSIONING,S5 7TW
Department of Health,NHS Sheffield CCG,3/31/2020,C&M-GMS Global Sum,PRC DELEGATED CO-COMMISSIONING,ELM LANE SURGERY,31647725,"41,403.18",PRC DELEGATED CO-COMMISSIONING,S5 7TW
Department of Health,NHS Sheffield CCG,3/31/2020,C&M-GMS MPIG Correction Factor,PRC DELEGATED CO-COMMISSIONING,ELM LANE SURGERY,31647725,419.26,PRC DELEGATED CO-COMMISSIONING,S5 7TW
Department of Health,NHS Sheffield CCG,3/31/2020,C&M-GMS PCN DES Participation,PRC DELEGATED CO-COMMISSIONING,ELM LANE SURGERY,31647725,821.44,PRC DELEGATED CO-COMMISSIONING,S5 7TW
Department of Health,NHS Sheffield CCG,3/31/2020,C&M-GMS Prem Notional Rent,PRC DELEGATED CO-COMMISSIONING,ELM LANE SURGERY,31647725,"5,343.00",PRC DELEGATED CO-COMMISSIONING,S5 7TW
Department of Health,NHS Sheffield CCG,3/31/2020,C&M-GMS Prof Fees Prescribing,PRC DELEGATED CO-COMMISSIONING,ELM LANE SURGERY,31647725,151.04,PRC DELEGATED CO-COMMISSIONING,S5 7TW
Department of Health,NHS Sheffield CCG,3/31/2020,C&M-GMS QOF Aspiration,PRC DELEGATED CO-COMMISSIONING,ELM LANE SURGERY,31647725,"4,720.25",PRC DELEGATED CO-COMMISSIONING,S5 7TW
Department of Health,NHS Sheffield CCG,3/31/2020,Cont Care-Physical Disab (<65),CHC ADULT FULLY FUNDED,FAIRWINDS HEALTH CARE LTD,31569977,"34,685.06",CHC ADULT FULLY FUNDED,S61 1AJ
Department of Health,NHS Sheffield CCG,3/31/2020,C&M-PMS Contract Value,PRC DELEGATED CO-COMMISSIONING,FALKLAND HOUSE,31387482,"26,085.22",PRC DELEGATED CO-COMMISSIONING,S11 7PL
Department of Health,NHS Sheffield CCG,3/31/2020,C&M-PMS DES Learn Dsblty Hlth Chk,PRC DELEGATED CO-COMMISSIONING,FALKLAND HOUSE,31387482,420.00,PRC DELEGATED CO-COMMISSIONING,S11 7PL
Department of Health,NHS Sheffield CCG,3/31/2020,C&M-PMS DES Minor Surgery,PRC DELEGATED CO-COMMISSIONING,FALKLAND HOUSE,31387482,520.00,PRC DELEGATED CO-COMMISSIONING,S11 7PL
Department of Health,NHS Sheffield CCG,3/31/2020,C&M-PMS GP Statutory Levy,PRC DELEGATED CO-COMMISSIONING,FALKLAND HOUSE,31387482,277.56,PRC DELEGATED CO-COMMISSIONING,S11 7PL
Department of Health,NHS Sheffield CCG,3/31/2020,C&M-PMS Out of Hours Opt Outs,PRC DELEGATED CO-COMMISSIONING,FALKLAND HOUSE,31387482,4.13,PRC DELEGATED CO-COMMISSIONING,S11 7PL
Department of Health,NHS Sheffield CCG,3/31/2020,C&M-PMS PCN DES Participation,PRC DELEGATED CO-COMMISSIONING,FALKLAND HOUSE,31387482,495.54,PRC DELEGATED CO-COMMISSIONING,S11 7PL
Department of Health,NHS Sheffield CCG,3/31/2020,C&M-PMS PCO Seniority,PRC DELEGATED CO-COMMISSIONING,FALKLAND HOUSE,31387482,"1,358.65",PRC DELEGATED CO-COMMISSIONING,S11 7PL
Department of Health,NHS Sheffield CCG,3/31/2020,C&M-PMS Prem Notional Rent,PRC DELEGATED CO-COMMISSIONING,FALKLAND HOUSE,31387482,"1,866.67",PRC DELEGATED CO-COMMISSIONING,S11 7PL
Department of Health,NHS Sheffield CCG,3/31/2020,C&M-PMS QOF Aspiration,PRC DELEGATED CO-COMMISSIONING,FALKLAND HOUSE,31387482,"2,925.24",PRC DELEGATED CO-COMMISSIONING,S11 7PL
Department of Health,NHS Sheffield CCG,3/31/2020,C&M-GMS Cost of Drugs -Prescribing,LOCAL ENHANCED SERVICES,FAR LANE MEDICAL CENTRE,31647734,431.20,LOCAL ENHANCED SERVICES,S6 4FA
Department of Health,NHS Sheffield CCG,3/31/2020,C&M-GMS Global Sum,PRC DELEGATED CO-COMMISSIONING,FAR LANE MEDICAL CENTRE,31647734,"55,386.09",PRC DELEGATED CO-COMMISSIONING,S6 4FA
Department of Health,NHS Sheffield CCG,3/31/2020,C&M-GMS PCN DES Participation,PRC DELEGATED CO-COMMISSIONING,FAR LANE MEDICAL CENTRE,31647734,"1,138.48",PRC DELEGATED CO-COMMISSIONING,S6 4FA
Department of Health,NHS Sheffield CCG,3/31/2020,C&M-GMS PCO Seniority,PRC DELEGATED CO-COMMISSIONING,FAR LANE MEDICAL CENTRE,31647734,"3,070.97",PRC DELEGATED CO-COMMISSIONING,S6 4FA
Department of Health,NHS Sheffield CCG,3/31/2020,C&M-GMS Prem Notional Rent,PRC DELEGATED CO-COMMISSIONING,FAR LANE MEDICAL CENTRE,31647734,"3,462.50",PRC DELEGATED CO-COMMISSIONING,S6 4FA
Department of Health,NHS Sheffield CCG,3/31/2020,C&M-GMS Prof Fees Prescribing,PRC DELEGATED CO-COMMISSIONING,FAR LANE MEDICAL CENTRE,31647734,72.42,PRC DELEGATED CO-COMMISSIONING,S6 4FA
Department of Health,NHS Sheffield CCG,3/31/2020,C&M-GMS QOF Aspiration,PRC DELEGATED CO-COMMISSIONING,FAR LANE MEDICAL CENTRE,31647734,"5,719.80",PRC DELEGATED CO-COMMISSIONING,S6 4FA
Department of Health,NHS Sheffield CCG,3/31/2020,C&M-PMS Contract Value,PRC DELEGATED CO-COMMISSIONING,FIRTH PARK SURGERY,31387480,"75,092.62",PRC DELEGATED CO-COMMISSIONING,S5 6HH
Department of Health,NHS Sheffield CCG,3/31/2020,C&M-PMS DES Learn Dsblty Hlth Chk,PRC DELEGATED CO-COMMISSIONING,FIRTH PARK SURGERY,31387480,"1,680.00",PRC DELEGATED CO-COMMISSIONING,S5 6HH
Department of Health,NHS Sheffield CCG,3/31/2020,C&M-PMS DES Minor Surgery,PRC DELEGATED CO-COMMISSIONING,FIRTH PARK SURGERY,31387480,"2,625.00",PRC DELEGATED CO-COMMISSIONING,S5 6HH
Department of Health,NHS Sheffield CCG,3/31/2020,C&M-PMS GP Statutory Levy,PRC DELEGATED CO-COMMISSIONING,FIRTH PARK SURGERY,31387480,704.62,PRC DELEGATED CO-COMMISSIONING,S5 6HH
Department of Health,NHS Sheffield CCG,3/31/2020,C&M-PMS Out of Hours Opt Outs,PRC DELEGATED CO-COMMISSIONING,FIRTH PARK SURGERY,31387480,43.75,PRC DELEGATED CO-COMMISSIONING,S5 6HH
Department of Health,NHS Sheffield CCG,3/31/2020,C&M-PMS PCN DES Participation,PRC DELEGATED CO-COMMISSIONING,FIRTH PARK SURGERY,31387480,"1,468.51",PRC DELEGATED CO-COMMISSIONING,S5 6HH
Department of Health,NHS Sheffield CCG,3/31/2020,C&M-PMS PCO Seniority,PRC DELEGATED CO-COMMISSIONING,FIRTH PARK SURGERY,31387480,"2,011.40",PRC DELEGATED CO-COMMISSIONING,S5 6HH
Department of Health,NHS Sheffield CCG,3/31/2020,C&M-PMS Prem Notional Rent,PRC DELEGATED CO-COMMISSIONING,FIRTH PARK SURGERY,31387480,"4,500.00",PRC DELEGATED CO-COMMISSIONING,S5 6HH
Department of Health,NHS Sheffield CCG,3/31/2020,C&M-PMS Prem Rates,PRC DELEGATED CO-COMMISSIONING,FIRTH PARK SURGERY,31387480,"1,360.00",PRC DELEGATED CO-COMMISSIONING,S5 6HH
Department of Health,NHS Sheffield CCG,3/31/2020,C&M-PMS Prem Water Rates,PRC DELEGATED CO-COMMISSIONING,FIRTH PARK SURGERY,31387480,176.73,PRC DELEGATED CO-COMMISSIONING,S5 6HH
Department of Health,NHS Sheffield CCG,3/31/2020,C&M-PMS QOF Aspiration,PRC DELEGATED CO-COMMISSIONING,FIRTH PARK SURGERY,31387480,"7,493.92",PRC DELEGATED CO-COMMISSIONING,S5 6HH
Department of Health,NHS Sheffield CCG,3/31/2020,C&M-PMS Contract Value,PRC DELEGATED CO-COMMISSIONING,FORGE HEALTH GROUP,31387528,-213.91,PRC DELEGATED CO-COMMISSIONING,S3 9DL
Department of Health,NHS Sheffield CCG,3/31/2020,C&M-PMS GP Statutory Levy,PRC DELEGATED CO-COMMISSIONING,FORGE HEALTH GROUP,31387528,"-1,536.26",PRC DELEGATED CO-COMMISSIONING,S3 9DL
Department of Health,NHS Sheffield CCG,3/31/2020,C&M-PMS Out of Hours Opt Outs,PRC DELEGATED CO-COMMISSIONING,FORGE HEALTH GROUP,31387528,"-5,631.47",PRC DELEGATED CO-COMMISSIONING,S3 9DL
Department of Health,NHS Sheffield CCG,3/31/2020,C&M-PMS Contract Value,PRC DELEGATED CO-COMMISSIONING,FORGE HEALTH GROUP,31387529,"119,497.59",PRC DELEGATED CO-COMMISSIONING,S3 9DL
Department of Health,NHS Sheffield CCG,3/31/2020,C&M-PMS DES Extended Hours Access,PRC DELEGATED CO-COMMISSIONING,FORGE HEALTH GROUP,31387529,"6,869.48",PRC DELEGATED CO-COMMISSIONING,S3 9DL
Department of Health,NHS Sheffield CCG,3/31/2020,C&M-PMS DES Minor Surgery,PRC DELEGATED CO-COMMISSIONING,FORGE HEALTH GROUP,31387529,"2,410.00",PRC DELEGATED CO-COMMISSIONING,S3 9DL
Department of Health,NHS Sheffield CCG,3/31/2020,C&M-PMS GP Statutory Levy,PRC DELEGATED CO-COMMISSIONING,FORGE HEALTH GROUP,31387529,"1,019.42",PRC DELEGATED CO-COMMISSIONING,S3 9DL
Department of Health,NHS Sheffield CCG,3/31/2020,C&M-PMS Out of Hours Opt Outs,PRC DELEGATED CO-COMMISSIONING,FORGE HEALTH GROUP,31387529,10.15,PRC DELEGATED CO-COMMISSIONING,S3 9DL
Department of Health,NHS Sheffield CCG,3/31/2020,C&M-PMS PCN DES Clinical Director,PRC DELEGATED CO-COMMISSIONING,FORGE HEALTH GROUP,31387529,"3,212.84",PRC DELEGATED CO-COMMISSIONING,S3 9DL
Department of Health,NHS Sheffield CCG,3/31/2020,C&M-PMS PCN DES PCN support,LOCAL ENHANCED SERVICES,FORGE HEALTH GROUP,31387529,"7,032.00",LOCAL ENHANCED SERVICES,S3 9DL
Department of Health,NHS Sheffield CCG,3/31/2020,C&M-PMS PCN DES Participation,PRC DELEGATED CO-COMMISSIONING,FORGE HEALTH GROUP,31387529,"2,225.15",PRC DELEGATED CO-COMMISSIONING,S3 9DL
Department of Health,NHS Sheffield CCG,3/31/2020,C&M-PMS PCO Locum Adop/Pat/Mat,PRC DELEGATED CO-COMMISSIONING,FORGE HEALTH GROUP,31387529,"32,374.92",PRC DELEGATED CO-COMMISSIONING,S3 9DL
Department of Health,NHS Sheffield CCG,3/31/2020,C&M-PMS PCO Seniority,PRC DELEGATED CO-COMMISSIONING,FORGE HEALTH GROUP,31387529,979.30,PRC DELEGATED CO-COMMISSIONING,S3 9DL
Department of Health,NHS Sheffield CCG,3/31/2020,C&M-PMS Prem Healthcentre Rent,PRC DELEGATED CO-COMMISSIONING,FORGE HEALTH GROUP,31387529,"32,899.56",PRC DELEGATED CO-COMMISSIONING,S3 9DL
Department of Health,NHS Sheffield CCG,3/31/2020,C&M-PMS Prem Notional Rent,PRC DELEGATED CO-COMMISSIONING,FORGE HEALTH GROUP,31387529,"9,650.00",PRC DELEGATED CO-COMMISSIONING,S3 9DL
Department of Health,NHS Sheffield CCG,3/31/2020,C&M-PMS QOF Aspiration,PRC DELEGATED CO-COMMISSIONING,FORGE HEALTH GROUP,31387529,"11,432.76",PRC DELEGATED CO-COMMISSIONING,S3 9DL
Department of Health,NHS Sheffield CCG,3/31/2020,Cont Care-Physical Disab (<65),CHC ADULT FULLY FUNDED,FOUR SEASONS HEALTH CARE LTD,31569978,"29,182.96",CHC ADULT FULLY FUNDED,DL1 1RW
Department of Health,NHS Sheffield CCG,3/31/2020,C&M-PMS Contract Value,PRC DELEGATED CO-COMMISSIONING,FOXHILL MEDICAL CENTRE SHEFFIELD,31387527,"51,898.29",PRC DELEGATED CO-COMMISSIONING,S6 1GA
Department of Health,NHS Sheffield CCG,3/31/2020,C&M-PMS DES Minor Surgery,PRC DELEGATED CO-COMMISSIONING,FOXHILL MEDICAL CENTRE SHEFFIELD,31387527,400.00,PRC DELEGATED CO-COMMISSIONING,S6 1GA
Department of Health,NHS Sheffield CCG,3/31/2020,C&M-PMS GP Statutory Levy,PRC DELEGATED CO-COMMISSIONING,FOXHILL MEDICAL CENTRE SHEFFIELD,31387527,431.62,PRC DELEGATED CO-COMMISSIONING,S6 1GA
Department of Health,NHS Sheffield CCG,3/31/2020,C&M-PMS Out of Hours Opt Outs,PRC DELEGATED CO-COMMISSIONING,FOXHILL MEDICAL CENTRE SHEFFIELD,31387527,6.40,PRC DELEGATED CO-COMMISSIONING,S6 1GA
Department of Health,NHS Sheffield CCG,3/31/2020,C&M-PMS PCN DES Participation,PRC DELEGATED CO-COMMISSIONING,FOXHILL MEDICAL CENTRE SHEFFIELD,31387527,977.79,PRC DELEGATED CO-COMMISSIONING,S6 1GA
Department of Health,NHS Sheffield CCG,3/31/2020,C&M-PMS PCO Seniority,PRC DELEGATED CO-COMMISSIONING,FOXHILL MEDICAL CENTRE SHEFFIELD,31387527,"2,146.95",PRC DELEGATED CO-COMMISSIONING,S6 1GA
Department of Health,NHS Sheffield CCG,3/31/2020,C&M-PMS Prem Healthcentre Rent,PRC DELEGATED CO-COMMISSIONING,FOXHILL MEDICAL CENTRE SHEFFIELD,31387527,"46,751.17",PRC DELEGATED CO-COMMISSIONING,S6 1GA
Department of Health,NHS Sheffield CCG,3/31/2020,C&M-PMS QOF Aspiration,PRC DELEGATED CO-COMMISSIONING,FOXHILL MEDICAL CENTRE SHEFFIELD,31387527,"5,618.87",PRC DELEGATED CO-COMMISSIONING,S6 1GA
Department of Health,NHS Sheffield CCG,3/31/2020,C&M-PMS Contract Value,PRC DELEGATED CO-COMMISSIONING,GLEADLESS MEDICAL CENTRE,31387484,"69,417.30",PRC DELEGATED CO-COMMISSIONING,S14 1PQ
Department of Health,NHS Sheffield CCG,3/31/2020,C&M-PMS DES Minor Surgery,PRC DELEGATED CO-COMMISSIONING,GLEADLESS MEDICAL CENTRE,31387484,240.00,PRC DELEGATED CO-COMMISSIONING,S14 1PQ
Department of Health,NHS Sheffield CCG,3/31/2020,C&M-PMS GP Statutory Levy,PRC DELEGATED CO-COMMISSIONING,GLEADLESS MEDICAL CENTRE,31387484,617.76,PRC DELEGATED CO-COMMISSIONING,S14 1PQ
Department of Health,NHS Sheffield CCG,3/31/2020,C&M-PMS Out of Hours Opt Outs,PRC DELEGATED CO-COMMISSIONING,GLEADLESS MEDICAL CENTRE,31387484,1.29,PRC DELEGATED CO-COMMISSIONING,S14 1PQ
Department of Health,NHS Sheffield CCG,3/31/2020,C&M-PMS PCN DES Participation,PRC DELEGATED CO-COMMISSIONING,GLEADLESS MEDICAL CENTRE,31387484,"1,300.70",PRC DELEGATED CO-COMMISSIONING,S14 1PQ
Department of Health,NHS Sheffield CCG,3/31/2020,C&M-PMS PCO Seniority,PRC DELEGATED CO-COMMISSIONING,GLEADLESS MEDICAL CENTRE,31387484,"2,372.62",PRC DELEGATED CO-COMMISSIONING,S14 1PQ
Department of Health,NHS Sheffield CCG,3/31/2020,C&M-PMS Prem Notional Rent,PRC DELEGATED CO-COMMISSIONING,GLEADLESS MEDICAL CENTRE,31387484,"6,750.00",PRC DELEGATED CO-COMMISSIONING,S14 1PQ
Department of Health,NHS Sheffield CCG,3/31/2020,C&M-PMS QOF Aspiration,PRC DELEGATED CO-COMMISSIONING,GLEADLESS MEDICAL CENTRE,31387484,"7,710.90",PRC DELEGATED CO-COMMISSIONING,S14 1PQ
Department of Health,NHS Sheffield CCG,3/31/2020,C&M-GMS Cost of Drugs -Prescribing,LOCAL ENHANCED SERVICES,GRENOSIDE SURGERY,31668196,"1,198.21",LOCAL ENHANCED SERVICES,S35 8NX
Department of Health,NHS Sheffield CCG,3/31/2020,C&M-GMS Global Sum,PRC DELEGATED CO-COMMISSIONING,GRENOSIDE SURGERY,31668196,"59,340.93",PRC DELEGATED CO-COMMISSIONING,S35 8NX
Department of Health,NHS Sheffield CCG,3/31/2020,C&M-GMS PCN DES Participation,PRC DELEGATED CO-COMMISSIONING,GRENOSIDE SURGERY,31668196,"1,190.25",PRC DELEGATED CO-COMMISSIONING,S35 8NX
Department of Health,NHS Sheffield CCG,3/31/2020,C&M-GMS PCO Locum Sickness,PRC DELEGATED CO-COMMISSIONING,GRENOSIDE SURGERY,31668196,"5,039.06",PRC DELEGATED CO-COMMISSIONING,S35 8NX
Department of Health,NHS Sheffield CCG,3/31/2020,C&M-GMS PCO Seniority,PRC DELEGATED CO-COMMISSIONING,GRENOSIDE SURGERY,31668196,"1,373.88",PRC DELEGATED CO-COMMISSIONING,S35 8NX
Department of Health,NHS Sheffield CCG,3/31/2020,C&M-GMS Prem Notional Rent,PRC DELEGATED CO-COMMISSIONING,GRENOSIDE SURGERY,31668196,"8,110.42",PRC DELEGATED CO-COMMISSIONING,S35 8NX
Department of Health,NHS Sheffield CCG,3/31/2020,C&M-GMS Prem Water Rates,PRC DELEGATED CO-COMMISSIONING,GRENOSIDE SURGERY,31668196,167.76,PRC DELEGATED CO-COMMISSIONING,S35 8NX
Department of Health,NHS Sheffield CCG,3/31/2020,C&M-GMS Prof Fees Prescribing,PRC DELEGATED CO-COMMISSIONING,GRENOSIDE SURGERY,31668196,151.04,PRC DELEGATED CO-COMMISSIONING,S35 8NX
Department of Health,NHS Sheffield CCG,3/31/2020,C&M-GMS QOF Aspiration,PRC DELEGATED CO-COMMISSIONING,GRENOSIDE SURGERY,31668196,"5,686.85",PRC DELEGATED CO-COMMISSIONING,S35 8NX
Department of Health,NHS Sheffield CCG,3/31/2020,C&M-GMS Cost of Drugs -Prescribing,LOCAL ENHANCED SERVICES,GREYSTONES MEDICAL CENTRE,31647743,201.32,LOCAL ENHANCED SERVICES,S11 7BJ
Department of Health,NHS Sheffield CCG,3/31/2020,C&M-GMS Global Sum,PRC DELEGATED CO-COMMISSIONING,GREYSTONES MEDICAL CENTRE,31647743,"19,868.44",PRC DELEGATED CO-COMMISSIONING,S11 7BJ
Department of Health,NHS Sheffield CCG,3/31/2020,C&M-GMS MPIG Correction Factor,PRC DELEGATED CO-COMMISSIONING,GREYSTONES MEDICAL CENTRE,31647743,552.23,PRC DELEGATED CO-COMMISSIONING,S11 7BJ
Department of Health,NHS Sheffield CCG,3/31/2020,C&M-GMS PCN DES Participation,PRC DELEGATED CO-COMMISSIONING,GREYSTONES MEDICAL CENTRE,31647743,405.94,PRC DELEGATED CO-COMMISSIONING,S11 7BJ
Department of Health,NHS Sheffield CCG,3/31/2020,C&M-GMS PCO Seniority,PRC DELEGATED CO-COMMISSIONING,GREYSTONES MEDICAL CENTRE,31647743,405.96,PRC DELEGATED CO-COMMISSIONING,S11 7BJ
Department of Health,NHS Sheffield CCG,3/31/2020,C&M-GMS Prem Notional Rent,PRC DELEGATED CO-COMMISSIONING,GREYSTONES MEDICAL CENTRE,31647743,"2,885.42",PRC DELEGATED CO-COMMISSIONING,S11 7BJ
Department of Health,NHS Sheffield CCG,3/31/2020,C&M-GMS Prem Rates,PRC DELEGATED CO-COMMISSIONING,GREYSTONES MEDICAL CENTRE,31647743,606.00,PRC DELEGATED CO-COMMISSIONING,S11 7BJ
Department of Health,NHS Sheffield CCG,3/31/2020,C&M-GMS Prof Fees Prescribing,PRC DELEGATED CO-COMMISSIONING,GREYSTONES MEDICAL CENTRE,31647743,31.04,PRC DELEGATED CO-COMMISSIONING,S11 7BJ
Department of Health,NHS Sheffield CCG,3/31/2020,C&M-GMS QOF Aspiration,PRC DELEGATED CO-COMMISSIONING,GREYSTONES MEDICAL CENTRE,31647743,"2,314.72",PRC DELEGATED CO-COMMISSIONING,S11 7BJ
Department of Health,NHS Sheffield CCG,3/31/2020,C&M-PMS Contract Value,PRC DELEGATED CO-COMMISSIONING,HACKENTHORPE MEDICAL CENTRE,31387486,"49,166.53",PRC DELEGATED CO-COMMISSIONING,S12 4LA
Department of Health,NHS Sheffield CCG,3/31/2020,C&M-PMS DES Minor Surgery,PRC DELEGATED CO-COMMISSIONING,HACKENTHORPE MEDICAL CENTRE,31387486,760.00,PRC DELEGATED CO-COMMISSIONING,S12 4LA
Department of Health,NHS Sheffield CCG,3/31/2020,C&M-PMS GP Statutory Levy,PRC DELEGATED CO-COMMISSIONING,HACKENTHORPE MEDICAL CENTRE,31387486,473.00,PRC DELEGATED CO-COMMISSIONING,S12 4LA
Department of Health,NHS Sheffield CCG,3/31/2020,C&M-PMS Out of Hours Opt Outs,PRC DELEGATED CO-COMMISSIONING,HACKENTHORPE MEDICAL CENTRE,31387486,24.74,PRC DELEGATED CO-COMMISSIONING,S12 4LA
Department of Health,NHS Sheffield CCG,3/31/2020,C&M-PMS PCN DES Participation,PRC DELEGATED CO-COMMISSIONING,HACKENTHORPE MEDICAL CENTRE,31387486,926.86,PRC DELEGATED CO-COMMISSIONING,S12 4LA
Department of Health,NHS Sheffield CCG,3/31/2020,C&M-PMS PCO Locum Sickness,PRC DELEGATED CO-COMMISSIONING,HACKENTHORPE MEDICAL CENTRE,31387486,"5,046.17",PRC DELEGATED CO-COMMISSIONING,S12 4LA
Department of Health,NHS Sheffield CCG,3/31/2020,C&M-PMS PCO Seniority,PRC DELEGATED CO-COMMISSIONING,HACKENTHORPE MEDICAL CENTRE,31387486,929.61,PRC DELEGATED CO-COMMISSIONING,S12 4LA
Department of Health,NHS Sheffield CCG,3/31/2020,C&M-PMS Prem Notional Rent,PRC DELEGATED CO-COMMISSIONING,HACKENTHORPE MEDICAL CENTRE,31387486,"5,116.67",PRC DELEGATED CO-COMMISSIONING,S12 4LA
Department of Health,NHS Sheffield CCG,3/31/2020,C&M-PMS QOF Aspiration,PRC DELEGATED CO-COMMISSIONING,HACKENTHORPE MEDICAL CENTRE,31387486,"6,528.39",PRC DELEGATED CO-COMMISSIONING,S12 4LA
Department of Health,NHS Sheffield CCG,3/31/2020,C&M-GMS Cost of Drugs -Prescribing,LOCAL ENHANCED SERVICES,HANDSWORTH MEDICAL PRACTICE SHEFFIELD,31647740,"1,709.06",LOCAL ENHANCED SERVICES,S13 9BZ
Department of Health,NHS Sheffield CCG,3/31/2020,C&M-GMS Global Sum,PRC DELEGATED CO-COMMISSIONING,HANDSWORTH MEDICAL PRACTICE SHEFFIELD,31647740,"77,844.19",PRC DELEGATED CO-COMMISSIONING,S13 9BZ
Department of Health,NHS Sheffield CCG,3/31/2020,C&M-GMS PCN DES Participation,PRC DELEGATED CO-COMMISSIONING,HANDSWORTH MEDICAL PRACTICE SHEFFIELD,31647740,"1,567.06",PRC DELEGATED CO-COMMISSIONING,S13 9BZ
Department of Health,NHS Sheffield CCG,3/31/2020,C&M-GMS PCO Locum Adop/Pat/Mat,PRC DELEGATED CO-COMMISSIONING,HANDSWORTH MEDICAL PRACTICE SHEFFIELD,31647740,"6,869.56",PRC DELEGATED CO-COMMISSIONING,S13 9BZ
Department of Health,NHS Sheffield CCG,3/31/2020,C&M-GMS PCO Seniority,PRC DELEGATED CO-COMMISSIONING,HANDSWORTH MEDICAL PRACTICE SHEFFIELD,31647740,"1,358.65",PRC DELEGATED CO-COMMISSIONING,S13 9BZ
Department of Health,NHS Sheffield CCG,3/31/2020,C&M-GMS Prem Notional Rent,PRC DELEGATED CO-COMMISSIONING,HANDSWORTH MEDICAL PRACTICE SHEFFIELD,31647740,"3,321.66",PRC DELEGATED CO-COMMISSIONING,S13 9BZ
Department of Health,NHS Sheffield CCG,3/31/2020,C&M-GMS Prof Fees Prescribing,PRC DELEGATED CO-COMMISSIONING,HANDSWORTH MEDICAL PRACTICE SHEFFIELD,31647740,308.28,PRC DELEGATED CO-COMMISSIONING,S13 9BZ
Department of Health,NHS Sheffield CCG,3/31/2020,C&M-GMS QOF Aspiration,PRC DELEGATED CO-COMMISSIONING,HANDSWORTH MEDICAL PRACTICE SHEFFIELD,31647740,"7,811.29",PRC DELEGATED CO-COMMISSIONING,S13 9BZ
Department of Health,NHS Sheffield CCG,3/31/2020,C&M-GMS Global Sum,PRC DELEGATED CO-COMMISSIONING,HAROLD STREET MEDICAL CENTRE,31647737,"19,680.04",PRC DELEGATED CO-COMMISSIONING,S6 3QW
Department of Health,NHS Sheffield CCG,3/31/2020,C&M-GMS PCN DES Participation,PRC DELEGATED CO-COMMISSIONING,HAROLD STREET MEDICAL CENTRE,31647737,432.48,PRC DELEGATED CO-COMMISSIONING,S6 3QW
Department of Health,NHS Sheffield CCG,3/31/2020,C&M-GMS PCO Seniority,PRC DELEGATED CO-COMMISSIONING,HAROLD STREET MEDICAL CENTRE,31647737,852.36,PRC DELEGATED CO-COMMISSIONING,S6 3QW
Department of Health,NHS Sheffield CCG,3/31/2020,C&M-GMS Prem Notional Rent,PRC DELEGATED CO-COMMISSIONING,HAROLD STREET MEDICAL CENTRE,31647737,"2,337.50",PRC DELEGATED CO-COMMISSIONING,S6 3QW
Department of Health,NHS Sheffield CCG,3/31/2020,C&M-GMS QOF Aspiration,PRC DELEGATED CO-COMMISSIONING,HAROLD STREET MEDICAL CENTRE,31647737,"2,228.59",PRC DELEGATED CO-COMMISSIONING,S6 3QW
Department of Health,NHS Sheffield CCG,3/31/2020,C&M-GMS Cost of Drugs -Prescribing,LOCAL ENHANCED SERVICES,HEALTH CARE SURGERY,31647749,"1,308.89",LOCAL ENHANCED SERVICES,S5 8GS
Department of Health,NHS Sheffield CCG,3/31/2020,C&M-GMS Global Sum,PRC DELEGATED CO-COMMISSIONING,HEALTH CARE SURGERY,31647749,"39,031.56",PRC DELEGATED CO-COMMISSIONING,S5 8GS
Department of Health,NHS Sheffield CCG,3/31/2020,C&M-GMS MPIG Correction Factor,PRC DELEGATED CO-COMMISSIONING,HEALTH CARE SURGERY,31647749,390.01,PRC DELEGATED CO-COMMISSIONING,S5 8GS
Department of Health,NHS Sheffield CCG,3/31/2020,C&M-GMS PCN DES Participation,PRC DELEGATED CO-COMMISSIONING,HEALTH CARE SURGERY,31647749,796.77,PRC DELEGATED CO-COMMISSIONING,S5 8GS
Department of Health,NHS Sheffield CCG,3/31/2020,C&M-GMS Prem Notional Rent,PRC DELEGATED CO-COMMISSIONING,HEALTH CARE SURGERY,31647749,"3,862.50",PRC DELEGATED CO-COMMISSIONING,S5 8GS
Department of Health,NHS Sheffield CCG,3/31/2020,C&M-GMS Prem Rates,PRC DELEGATED CO-COMMISSIONING,HEALTH CARE SURGERY,31647749,645.88,PRC DELEGATED CO-COMMISSIONING,S5 8GS
Department of Health,NHS Sheffield CCG,3/31/2020,C&M-GMS Prof Fees Prescribing,PRC DELEGATED CO-COMMISSIONING,HEALTH CARE SURGERY,31647749,138.63,PRC DELEGATED CO-COMMISSIONING,S5 8GS
Department of Health,NHS Sheffield CCG,3/31/2020,C&M-GMS QOF Aspiration,PRC DELEGATED CO-COMMISSIONING,HEALTH CARE SURGERY,31647749,"4,056.36",PRC DELEGATED CO-COMMISSIONING,S5 8GS
Department of Health,NHS Sheffield CCG,3/31/2020,C&M-GMS Cost of Drugs -Prescribing,LOCAL ENHANCED SERVICES,HEELEY GREEN SURGERY,31647745,"1,169.47",LOCAL ENHANCED SERVICES,S2 3AJ
Department of Health,NHS Sheffield CCG,3/31/2020,C&M-GMS Global Sum,PRC DELEGATED CO-COMMISSIONING,HEELEY GREEN SURGERY,31647745,"41,717.36",PRC DELEGATED CO-COMMISSIONING,S2 3AJ
Department of Health,NHS Sheffield CCG,3/31/2020,C&M-GMS MPIG Correction Factor,PRC DELEGATED CO-COMMISSIONING,HEELEY GREEN SURGERY,31647745,188.10,PRC DELEGATED CO-COMMISSIONING,S2 3AJ
Department of Health,NHS Sheffield CCG,3/31/2020,C&M-GMS PCN DES Participation,PRC DELEGATED CO-COMMISSIONING,HEELEY GREEN SURGERY,31647745,875.00,PRC DELEGATED CO-COMMISSIONING,S2 3AJ
Department of Health,NHS Sheffield CCG,3/31/2020,C&M-GMS PCO Seniority,PRC DELEGATED CO-COMMISSIONING,HEELEY GREEN SURGERY,31647745,567.73,PRC DELEGATED CO-COMMISSIONING,S2 3AJ
Department of Health,NHS Sheffield CCG,3/31/2020,C&M-GMS Prem Notional Rent,PRC DELEGATED CO-COMMISSIONING,HEELEY GREEN SURGERY,31647745,"3,254.17",PRC DELEGATED CO-COMMISSIONING,S2 3AJ
Department of Health,NHS Sheffield CCG,3/31/2020,C&M-GMS Prof Fees Prescribing,PRC DELEGATED CO-COMMISSIONING,HEELEY GREEN SURGERY,31647745,148.97,PRC DELEGATED CO-COMMISSIONING,S2 3AJ
Department of Health,NHS Sheffield CCG,3/31/2020,C&M-GMS QOF Aspiration,PRC DELEGATED CO-COMMISSIONING,HEELEY GREEN SURGERY,31647745,"4,709.02",PRC DELEGATED CO-COMMISSIONING,S2 3AJ
Department of Health,NHS Sheffield CCG,3/31/2020,C&M-GMS Cost of Drugs -Prescribing,LOCAL ENHANCED SERVICES,HOLLIES MEDICAL CENTRE,31647747,"2,300.07",LOCAL ENHANCED SERVICES,S11 9AL
Department of Health,NHS Sheffield CCG,3/31/2020,C&M-GMS Global Sum,PRC DELEGATED CO-COMMISSIONING,HOLLIES MEDICAL CENTRE,31647747,"61,231.91",PRC DELEGATED CO-COMMISSIONING,S11 9AL
Department of Health,NHS Sheffield CCG,3/31/2020,C&M-GMS MPIG Correction Factor,PRC DELEGATED CO-COMMISSIONING,HOLLIES MEDICAL CENTRE,31647747,726.36,PRC DELEGATED CO-COMMISSIONING,S11 9AL
Department of Health,NHS Sheffield CCG,3/31/2020,C&M-GMS PCN DES Participation,PRC DELEGATED CO-COMMISSIONING,HOLLIES MEDICAL CENTRE,31647747,"1,215.60",PRC DELEGATED CO-COMMISSIONING,S11 9AL
Department of Health,NHS Sheffield CCG,3/31/2020,C&M-GMS PCO Other,PRC DELEGATED CO-COMMISSIONING,HOLLIES MEDICAL CENTRE,31647747,"5,889.00",PRC DELEGATED CO-COMMISSIONING,S11 9AL
Department of Health,NHS Sheffield CCG,3/31/2020,C&M-GMS PCO Seniority,PRC DELEGATED CO-COMMISSIONING,HOLLIES MEDICAL CENTRE,31647747,"1,684.83",PRC DELEGATED CO-COMMISSIONING,S11 9AL
Department of Health,NHS Sheffield CCG,3/31/2020,C&M-GMS Prem Notional Rent,PRC DELEGATED CO-COMMISSIONING,HOLLIES MEDICAL CENTRE,31647747,"3,229.17",PRC DELEGATED CO-COMMISSIONING,S11 9AL
Department of Health,NHS Sheffield CCG,3/31/2020,C&M-GMS Prem Water Rates,PRC DELEGATED CO-COMMISSIONING,HOLLIES MEDICAL CENTRE,31647747,"1,240.88",PRC DELEGATED CO-COMMISSIONING,S11 9AL
Department of Health,NHS Sheffield CCG,3/31/2020,C&M-GMS Prof Fees Prescribing,PRC DELEGATED CO-COMMISSIONING,HOLLIES MEDICAL CENTRE,31647747,287.58,PRC DELEGATED CO-COMMISSIONING,S11 9AL
Department of Health,NHS Sheffield CCG,3/31/2020,C&M-GMS QOF Aspiration,PRC DELEGATED CO-COMMISSIONING,HOLLIES MEDICAL CENTRE,31647747,"6,991.81",PRC DELEGATED CO-COMMISSIONING,S11 9AL
Department of Health,NHS Sheffield CCG,3/31/2020,Cont Care-Physical Disab (<65),CHC ADULT FULLY FUNDED,HORIZON CARE HOMES LTD,31550108,"58,605.47",CHC ADULT FULLY FUNDED,S25 3QA
Department of Health,NHS Sheffield CCG,3/31/2020,Cont Care-Physical Disab (<65),CHC ADULT FULLY FUNDED,HORIZON CARE HOMES LTD,31573023,"26,804.53",CHC ADULT FULLY FUNDED,S25 3QA
Department of Health,NHS Sheffield CCG,3/31/2020,Cont Care-Physical Disab (<65),CHC ADULT FULLY FUNDED,HORIZON CARE HOMES LTD,31573025,"34,945.22",CHC ADULT FULLY FUNDED,S25 3QA
Department of Health,NHS Sheffield CCG,3/31/2020,External Consultancy Fees,BEREAVEMENT SERVICE,HUMBER TEACHING NHS FOUNDATION TRUST,31514206,"75,310.00",SALE OF GOODS & SERVICES - NHS,WF3 1WE
Department of Health,NHS Sheffield CCG,3/31/2020,External Consultancy Fees,COUNSELLING SERVICES,HUMBER TEACHING NHS FOUNDATION TRUST,31514206,"22,440.00",COUNSELLING SERVICES,WF3 1WE
Department of Health,NHS Sheffield CCG,3/31/2020,C&M-PMS Contract Value,PRC DELEGATED CO-COMMISSIONING,JAUNTY SPRINGS HEALTH CENTRE,31413027,"31,192.54",PRC DELEGATED CO-COMMISSIONING,S12 3DZ
Department of Health,NHS Sheffield CCG,3/31/2020,C&M-PMS DES Extended Hours Access,PRC DELEGATED CO-COMMISSIONING,JAUNTY SPRINGS HEALTH CENTRE,31413027,"4,210.64",PRC DELEGATED CO-COMMISSIONING,S12 3DZ
Department of Health,NHS Sheffield CCG,3/31/2020,C&M-PMS DES Minor Surgery,PRC DELEGATED CO-COMMISSIONING,JAUNTY SPRINGS HEALTH CENTRE,31413027,160.00,PRC DELEGATED CO-COMMISSIONING,S12 3DZ
Department of Health,NHS Sheffield CCG,3/31/2020,C&M-PMS GP Statutory Levy,PRC DELEGATED CO-COMMISSIONING,JAUNTY SPRINGS HEALTH CENTRE,31413027,262.72,PRC DELEGATED CO-COMMISSIONING,S12 3DZ
Department of Health,NHS Sheffield CCG,3/31/2020,C&M-PMS Out of Hours Opt Outs,PRC DELEGATED CO-COMMISSIONING,JAUNTY SPRINGS HEALTH CENTRE,31413027,0.65,PRC DELEGATED CO-COMMISSIONING,S12 3DZ
Department of Health,NHS Sheffield CCG,3/31/2020,C&M-PMS PCN DES Clinical Director,PRC DELEGATED CO-COMMISSIONING,JAUNTY SPRINGS HEALTH CENTRE,31413027,"1,969.31",PRC DELEGATED CO-COMMISSIONING,S12 3DZ
Department of Health,NHS Sheffield CCG,3/31/2020,C&M-PMS PCN DES PCN support,LOCAL ENHANCED SERVICES,JAUNTY SPRINGS HEALTH CENTRE,31413027,"4,310.25",LOCAL ENHANCED SERVICES,S12 3DZ
Department of Health,NHS Sheffield CCG,3/31/2020,C&M-PMS PCN DES Participation,PRC DELEGATED CO-COMMISSIONING,JAUNTY SPRINGS HEALTH CENTRE,31413027,583.08,PRC DELEGATED CO-COMMISSIONING,S12 3DZ
Department of Health,NHS Sheffield CCG,3/31/2020,C&M-PMS PCO Locum Sickness,PRC DELEGATED CO-COMMISSIONING,JAUNTY SPRINGS HEALTH CENTRE,31413027,"3,854.93",PRC DELEGATED CO-COMMISSIONING,S12 3DZ
Department of Health,NHS Sheffield CCG,3/31/2020,C&M-PMS PCO Seniority,PRC DELEGATED CO-COMMISSIONING,JAUNTY SPRINGS HEALTH CENTRE,31413027,669.32,PRC DELEGATED CO-COMMISSIONING,S12 3DZ
Department of Health,NHS Sheffield CCG,3/31/2020,C&M-PMS Prem Notional Rent,PRC DELEGATED CO-COMMISSIONING,JAUNTY SPRINGS HEALTH CENTRE,31413027,"3,208.33",PRC DELEGATED CO-COMMISSIONING,S12 3DZ
Department of Health,NHS Sheffield CCG,3/31/2020,C&M-PMS Prem Water Rates,PRC DELEGATED CO-COMMISSIONING,JAUNTY SPRINGS HEALTH CENTRE,31413027,61.76,PRC DELEGATED CO-COMMISSIONING,S12 3DZ
Department of Health,NHS Sheffield CCG,3/31/2020,C&M-PMS QOF Aspiration,PRC DELEGATED CO-COMMISSIONING,JAUNTY SPRINGS HEALTH CENTRE,31413027,"4,020.11",PRC DELEGATED CO-COMMISSIONING,S12 3DZ
Department of Health,NHS Sheffield CCG,3/31/2020,C&M-GMS IT Comm Servs -GP Practices,PRIMARY CARE IT,KIER BUSINESS SERVICES LTD,31361693,"83,452.00",https://nww.einvoice-prod.sbs.nhs.uk:8179/invoicepdf/0a861d2b-ad9d-55ce-bb08-34837cdee981,SG19 2BD
Department of Health,NHS Sheffield CCG,3/31/2020,C&M-GMS IT Comm Servs -GP Practices,PRIMARY CARE IT,KIER BUSINESS SERVICES LTD,31361693,"16,690.40",PRIMARY CARE IT,SG19 2BD
Department of Health,NHS Sheffield CCG,3/31/2020,FM Computer Contracts,BUSINESS INFORMATICS,KIER BUSINESS SERVICES LTD,31361693,"36,193.20",BUSINESS INFORMATICS,SG19 2BD
Department of Health,NHS Sheffield CCG,3/31/2020,C&M-GMS IT Comm Servs -GP Practices,PRIMARY CARE IT,KIER BUSINESS SERVICES LTD,31587898,"40,027.64",https://nww.einvoice-prod.sbs.nhs.uk:8179/invoicepdf/3f7cb07b-333e-52f2-837e-90e8ea94920d,SG19 2BD
Department of Health,NHS Sheffield CCG,3/31/2020,C&M-GMS LES Translation Fees,INTERPRETING SERVICES,LANGUAGELINE SOLUTIONS,31361684,"47,777.65",https://nww.einvoice-prod.sbs.nhs.uk:8179/invoicepdf/cbd54821-7313-5668-8e0d-828ff587176e,E14 5NR
Department of Health,NHS Sheffield CCG,3/31/2020,C&M-GMS LES Translation Fees,INTERPRETING SERVICES,LANGUAGELINE SOLUTIONS,31361687,"29,902.20",https://nww.einvoice-prod.sbs.nhs.uk:8179/invoicepdf/f64b1b3e-2243-52da-8bc5-97add79d5e5f,E14 5NR
Department of Health,NHS Sheffield CCG,3/31/2020,Hcare Srv Rec NHS Trust-Contract Baseline,ACUTE COMMISSIONING,LEEDS TEACHING HOSPITALS NHS TRUST,31440363,"57,500.00",https://nww.einvoice-prod.sbs.nhs.uk:8179/invoicepdf/41868d3b-51a3-56a7-a2f5-7555417eb9b4,LS9 7TF
Department of Health,NHS Sheffield CCG,3/31/2020,Hcare Srv Rec NHS Trust-Contract Baseline,ACUTE COMMISSIONING,LEEDS TEACHING HOSPITALS NHS TRUST,31548937,"-32,388.67",https://nww.einvoice-prod.sbs.nhs.uk:8179/invoicepdf/aecd0e6d-b650-5cf4-a799-2fcdab7fc581,LS9 7TF
Department of Health,NHS Sheffield CCG,3/31/2020,Hcare Srv Rec NHS Trust-Contract Baseline,ACUTE COMMISSIONING,LEEDS TEACHING HOSPITALS NHS TRUST,31550011,"32,388.67",https://nww.einvoice-prod.sbs.nhs.uk:8179/invoicepdf/168affde-f045-5b43-9eef-daf865895167,LS9 7TF
Department of Health,NHS Sheffield CCG,3/31/2020,Hcare Srv Rec NHS Trust-Contract Baseline,ACUTE COMMISSIONING,LEEDS TEACHING HOSPITALS NHS TRUST,31569865,"-32,388.67",https://nww.einvoice-prod.sbs.nhs.uk:8179/invoicepdf/58197916-bebe-5682-b9a4-67af8f7960de,LS9 7TF
Department of Health,NHS Sheffield CCG,3/31/2020,NHS Payables <1Yr-Non PO Accruals,ACUTE CHILDRENS SERVICES,LEEDS TEACHING HOSPITALS NHS TRUST,31709566,"47,860.51",ACUTE CHILDRENS SERVICES,LS9 7TF
Department of Health,NHS Sheffield CCG,3/31/2020,Cont Care-Physical Disab (<65),CHC ADULT FULLY FUNDED,LONGLEY HEALTH CARE LTD,31550008,"118,788.23",CHC ADULT FULLY FUNDED,S5 7JZ
Department of Health,NHS Sheffield CCG,3/31/2020,Cont Care-Physical Disab (<65),CHC ADULT FULLY FUNDED,LOXLEY HEALTH CARE LTD,31550104,"108,250.19",CHC ADULT FULLY FUNDED,S4 8NB
Department of Health,NHS Sheffield CCG,3/31/2020,C&M-PMS Contract Value,PRC DELEGATED CO-COMMISSIONING,MANCHESTER ROAD SURGERY SHEFFIELD,31387491,"33,169.85",PRC DELEGATED CO-COMMISSIONING,S10 5PN
Department of Health,NHS Sheffield CCG,3/31/2020,C&M-PMS DES Minor Surgery,PRC DELEGATED CO-COMMISSIONING,MANCHESTER ROAD SURGERY SHEFFIELD,31387491,770.00,PRC DELEGATED CO-COMMISSIONING,S10 5PN
Department of Health,NHS Sheffield CCG,3/31/2020,C&M-PMS GP Statutory Levy,PRC DELEGATED CO-COMMISSIONING,MANCHESTER ROAD SURGERY SHEFFIELD,31387491,337.48,PRC DELEGATED CO-COMMISSIONING,S10 5PN
Department of Health,NHS Sheffield CCG,3/31/2020,C&M-PMS PCN DES Participation,PRC DELEGATED CO-COMMISSIONING,MANCHESTER ROAD SURGERY SHEFFIELD,31387491,618.32,PRC DELEGATED CO-COMMISSIONING,S10 5PN
Department of Health,NHS Sheffield CCG,3/31/2020,C&M-PMS PCO Seniority,PRC DELEGATED CO-COMMISSIONING,MANCHESTER ROAD SURGERY SHEFFIELD,31387491,649.78,PRC DELEGATED CO-COMMISSIONING,S10 5PN
Department of Health,NHS Sheffield CCG,3/31/2020,C&M-PMS Prem Cost Rent,PRC DELEGATED CO-COMMISSIONING,MANCHESTER ROAD SURGERY SHEFFIELD,31387491,"3,472.17",PRC DELEGATED CO-COMMISSIONING,S10 5PN
Department of Health,NHS Sheffield CCG,3/31/2020,C&M-PMS Prem Notional Rent,PRC DELEGATED CO-COMMISSIONING,MANCHESTER ROAD SURGERY SHEFFIELD,31387491,442.92,PRC DELEGATED CO-COMMISSIONING,S10 5PN
Department of Health,NHS Sheffield CCG,3/31/2020,C&M-PMS Prem Water Rates,PRC DELEGATED CO-COMMISSIONING,MANCHESTER ROAD SURGERY SHEFFIELD,31387491,128.48,PRC DELEGATED CO-COMMISSIONING,S10 5PN
Department of Health,NHS Sheffield CCG,3/31/2020,C&M-PMS QOF Aspiration,PRC DELEGATED CO-COMMISSIONING,MANCHESTER ROAD SURGERY SHEFFIELD,31387491,"3,985.36",PRC DELEGATED CO-COMMISSIONING,S10 5PN
Department of Health,NHS Sheffield CCG,3/31/2020,Hcare Srv Rec Fdtn Trust-Contract Baseline,ACUTE COMMISSIONING,MANCHESTER UNIVERSITY NHS FOUNDATION TRUST,31514383,"36,631.00",https://nww.einvoice-prod.sbs.nhs.uk:8179/invoicepdf/544f269b-31c7-58a7-934f-7f2aadf606d4,M41 5SL
Department of Health,NHS Sheffield CCG,3/31/2020,NHS Payables <1Yr-Non PO Accruals,ACUTE CHILDRENS SERVICES,MANCHESTER UNIVERSITY NHS FOUNDATION TRUST,31709575,"25,929.20",ACUTE CHILDRENS SERVICES,M41 5SL
Department of Health,NHS Sheffield CCG,3/31/2020,C&M-PMS Contract Value,PRC DELEGATED CO-COMMISSIONING,MANOR & PARK GROUP PRACTICE,31389429,"73,737.28",PRC DELEGATED CO-COMMISSIONING,S2 5QQ
Department of Health,NHS Sheffield CCG,3/31/2020,C&M-PMS GP Statutory Levy,PRC DELEGATED CO-COMMISSIONING,MANOR & PARK GROUP PRACTICE,31389429,633.30,PRC DELEGATED CO-COMMISSIONING,S2 5QQ
Department of Health,NHS Sheffield CCG,3/31/2020,C&M-PMS Out of Hours Opt Outs,PRC DELEGATED CO-COMMISSIONING,MANOR & PARK GROUP PRACTICE,31389429,142.26,PRC DELEGATED CO-COMMISSIONING,S2 5QQ
Department of Health,NHS Sheffield CCG,3/31/2020,C&M-PMS PCN DES Participation,PRC DELEGATED CO-COMMISSIONING,MANOR & PARK GROUP PRACTICE,31389429,"1,445.35",PRC DELEGATED CO-COMMISSIONING,S2 5QQ
Department of Health,NHS Sheffield CCG,3/31/2020,C&M-PMS PCO Other,PRC DELEGATED CO-COMMISSIONING,MANOR & PARK GROUP PRACTICE,31389429,"5,750.00",PRC DELEGATED CO-COMMISSIONING,S2 5QQ
Department of Health,NHS Sheffield CCG,3/31/2020,C&M-PMS PCO Seniority,PRC DELEGATED CO-COMMISSIONING,MANOR & PARK GROUP PRACTICE,31389429,669.32,PRC DELEGATED CO-COMMISSIONING,S2 5QQ
Department of Health,NHS Sheffield CCG,3/31/2020,C&M-PMS Prem Notional Rent,PRC DELEGATED CO-COMMISSIONING,MANOR & PARK GROUP PRACTICE,31389429,"9,050.00",PRC DELEGATED CO-COMMISSIONING,S2 5QQ
Department of Health,NHS Sheffield CCG,3/31/2020,C&M-PMS Prem Water Rates,PRC DELEGATED CO-COMMISSIONING,MANOR & PARK GROUP PRACTICE,31389429,"1,727.33",PRC DELEGATED CO-COMMISSIONING,S2 5QQ
Department of Health,NHS Sheffield CCG,3/31/2020,C&M-PMS QOF Aspiration,PRC DELEGATED CO-COMMISSIONING,MANOR & PARK GROUP PRACTICE,31389429,"7,420.75",PRC DELEGATED CO-COMMISSIONING,S2 5QQ
Department of Health,NHS Sheffield CCG,3/31/2020,C&M-GMS Cost of Drugs -Prescribing,LOCAL ENHANCED SERVICES,MATHEWS PRACTICE,31647757,109.01,LOCAL ENHANCED SERVICES,S2 4UJ
Department of Health,NHS Sheffield CCG,3/31/2020,C&M-GMS Global Sum,PRC DELEGATED CO-COMMISSIONING,MATHEWS PRACTICE,31647757,"57,960.36",PRC DELEGATED CO-COMMISSIONING,S2 4UJ
Department of Health,NHS Sheffield CCG,3/31/2020,C&M-GMS MPIG Correction Factor,PRC DELEGATED CO-COMMISSIONING,MATHEWS PRACTICE,31647757,299.48,PRC DELEGATED CO-COMMISSIONING,S2 4UJ
Department of Health,NHS Sheffield CCG,3/31/2020,C&M-GMS PCN DES Participation,PRC DELEGATED CO-COMMISSIONING,MATHEWS PRACTICE,31647757,"1,281.64",PRC DELEGATED CO-COMMISSIONING,S2 4UJ
Department of Health,NHS Sheffield CCG,3/31/2020,C&M-GMS Prem Notional Rent,PRC DELEGATED CO-COMMISSIONING,MATHEWS PRACTICE,31647757,"8,660.42",PRC DELEGATED CO-COMMISSIONING,S2 4UJ
Department of Health,NHS Sheffield CCG,3/31/2020,C&M-GMS Prof Fees Prescribing,PRC DELEGATED CO-COMMISSIONING,MATHEWS PRACTICE,31647757,64.14,PRC DELEGATED CO-COMMISSIONING,S2 4UJ
Department of Health,NHS Sheffield CCG,3/31/2020,C&M-GMS QOF Aspiration,PRC DELEGATED CO-COMMISSIONING,MATHEWS PRACTICE,31647757,"7,156.84",PRC DELEGATED CO-COMMISSIONING,S2 4UJ
Department of Health,NHS Sheffield CCG,3/31/2020,C&M-PMS Contract Value,PRC DELEGATED CO-COMMISSIONING,MEADOWHEAD GROUP PRACTICE,31387489,"74,447.56",PRC DELEGATED CO-COMMISSIONING,S8 7RL
Department of Health,NHS Sheffield CCG,3/31/2020,C&M-PMS DES Minor Surgery,PRC DELEGATED CO-COMMISSIONING,MEADOWHEAD GROUP PRACTICE,31387489,"1,385.00",PRC DELEGATED CO-COMMISSIONING,S8 7RL
Department of Health,NHS Sheffield CCG,3/31/2020,C&M-PMS GP Statutory Levy,PRC DELEGATED CO-COMMISSIONING,MEADOWHEAD GROUP PRACTICE,31387489,658.22,PRC DELEGATED CO-COMMISSIONING,S8 7RL
Department of Health,NHS Sheffield CCG,3/31/2020,C&M-PMS Out of Hours Opt Outs,PRC DELEGATED CO-COMMISSIONING,MEADOWHEAD GROUP PRACTICE,31387489,64.51,PRC DELEGATED CO-COMMISSIONING,S8 7RL
Department of Health,NHS Sheffield CCG,3/31/2020,C&M-PMS PCN DES Participation,PRC DELEGATED CO-COMMISSIONING,MEADOWHEAD GROUP PRACTICE,31387489,"1,403.48",PRC DELEGATED CO-COMMISSIONING,S8 7RL
Department of Health,NHS Sheffield CCG,3/31/2020,C&M-PMS PCO Seniority,PRC DELEGATED CO-COMMISSIONING,MEADOWHEAD GROUP PRACTICE,31387489,"2,570.12",PRC DELEGATED CO-COMMISSIONING,S8 7RL
Department of Health,NHS Sheffield CCG,3/31/2020,C&M-PMS Prem Cost Rent,PRC DELEGATED CO-COMMISSIONING,MEADOWHEAD GROUP PRACTICE,31387489,"3,647.42",PRC DELEGATED CO-COMMISSIONING,S8 7RL
Department of Health,NHS Sheffield CCG,3/31/2020,C&M-PMS Prem Notional Rent,PRC DELEGATED CO-COMMISSIONING,MEADOWHEAD GROUP PRACTICE,31387489,"3,358.33",PRC DELEGATED CO-COMMISSIONING,S8 7RL
Department of Health,NHS Sheffield CCG,3/31/2020,C&M-PMS Prem Water Rates,PRC DELEGATED CO-COMMISSIONING,MEADOWHEAD GROUP PRACTICE,31387489,219.95,PRC DELEGATED CO-COMMISSIONING,S8 7RL
Department of Health,NHS Sheffield CCG,3/31/2020,C&M-PMS QOF Aspiration,PRC DELEGATED CO-COMMISSIONING,MEADOWHEAD GROUP PRACTICE,31387489,"9,076.52",PRC DELEGATED CO-COMMISSIONING,S8 7RL
Department of Health,NHS Sheffield CCG,3/31/2020,C&M-GMS Cost of Drugs -Prescribing,LOCAL ENHANCED SERVICES,MEDICAL CENTRE CRYSTAL PEAKS,31647753,"2,124.34",LOCAL ENHANCED SERVICES,S20 7HZ
Department of Health,NHS Sheffield CCG,3/31/2020,C&M-GMS Global Sum,PRC DELEGATED CO-COMMISSIONING,MEDICAL CENTRE CRYSTAL PEAKS,31647753,"47,371.83",PRC DELEGATED CO-COMMISSIONING,S20 7HZ
Department of Health,NHS Sheffield CCG,3/31/2020,C&M-GMS MPIG Correction Factor,PRC DELEGATED CO-COMMISSIONING,MEDICAL CENTRE CRYSTAL PEAKS,31647753,565.67,PRC DELEGATED CO-COMMISSIONING,S20 7HZ
Department of Health,NHS Sheffield CCG,3/31/2020,C&M-GMS PCN DES Participation,PRC DELEGATED CO-COMMISSIONING,MEDICAL CENTRE CRYSTAL PEAKS,31647753,950.00,PRC DELEGATED CO-COMMISSIONING,S20 7HZ
Department of Health,NHS Sheffield CCG,3/31/2020,C&M-GMS PCO Seniority,PRC DELEGATED CO-COMMISSIONING,MEDICAL CENTRE CRYSTAL PEAKS,31647753,"1,572.47",PRC DELEGATED CO-COMMISSIONING,S20 7HZ
Department of Health,NHS Sheffield CCG,3/31/2020,C&M-GMS Prem Notional Rent,PRC DELEGATED CO-COMMISSIONING,MEDICAL CENTRE CRYSTAL PEAKS,31647753,270.00,PRC DELEGATED CO-COMMISSIONING,S20 7HZ
Department of Health,NHS Sheffield CCG,3/31/2020,C&M-GMS Prof Fees Prescribing,PRC DELEGATED CO-COMMISSIONING,MEDICAL CENTRE CRYSTAL PEAKS,31647753,415.86,PRC DELEGATED CO-COMMISSIONING,S20 7HZ
Department of Health,NHS Sheffield CCG,3/31/2020,C&M-GMS QOF Aspiration,PRC DELEGATED CO-COMMISSIONING,MEDICAL CENTRE CRYSTAL PEAKS,31647753,"6,211.79",PRC DELEGATED CO-COMMISSIONING,S20 7HZ
Department of Health,NHS Sheffield CCG,3/31/2020,NHS Payables <1Yr-Non PO Accruals,ACUTE CHILDRENS SERVICES,MID YORKSHIRE HOSPITALS NHS TRUST,31709567,"26,386.10",ACUTE CHILDRENS SERVICES,WF1 4DG
Department of Health,NHS Sheffield CCG,3/31/2020,C&M-GMS Cost of Drugs -Prescribing,LOCAL ENHANCED SERVICES,MILL ROAD SURGERY SHEFFIELD,31647760,"1,862.64",LOCAL ENHANCED SERVICES,S35 9XQ
Department of Health,NHS Sheffield CCG,3/31/2020,C&M-GMS Global Sum,PRC DELEGATED CO-COMMISSIONING,MILL ROAD SURGERY SHEFFIELD,31647760,"40,567.83",PRC DELEGATED CO-COMMISSIONING,S35 9XQ
Department of Health,NHS Sheffield CCG,3/31/2020,C&M-GMS MPIG Correction Factor,PRC DELEGATED CO-COMMISSIONING,MILL ROAD SURGERY SHEFFIELD,31647760,61.02,PRC DELEGATED CO-COMMISSIONING,S35 9XQ
Department of Health,NHS Sheffield CCG,3/31/2020,C&M-GMS PCN DES Participation,PRC DELEGATED CO-COMMISSIONING,MILL ROAD SURGERY SHEFFIELD,31647760,842.44,PRC DELEGATED CO-COMMISSIONING,S35 9XQ
Department of Health,NHS Sheffield CCG,3/31/2020,C&M-GMS PCO Seniority,PRC DELEGATED CO-COMMISSIONING,MILL ROAD SURGERY SHEFFIELD,31647760,366.27,PRC DELEGATED CO-COMMISSIONING,S35 9XQ
Department of Health,NHS Sheffield CCG,3/31/2020,C&M-GMS Prem Notional Rent,PRC DELEGATED CO-COMMISSIONING,MILL ROAD SURGERY SHEFFIELD,31647760,"4,593.33",PRC DELEGATED CO-COMMISSIONING,S35 9XQ
Department of Health,NHS Sheffield CCG,3/31/2020,C&M-GMS Prof Fees Prescribing,PRC DELEGATED CO-COMMISSIONING,MILL ROAD SURGERY SHEFFIELD,31647760,204.84,PRC DELEGATED CO-COMMISSIONING,S35 9XQ
Department of Health,NHS Sheffield CCG,3/31/2020,C&M-GMS QOF Aspiration,PRC DELEGATED CO-COMMISSIONING,MILL ROAD SURGERY SHEFFIELD,31647760,"5,088.50",PRC DELEGATED CO-COMMISSIONING,S35 9XQ
Department of Health,NHS Sheffield CCG,3/31/2020,Clinical&Medical-Independent Sector,Mental Health Services - S117 Mental Health,MOORVILLE RESIDENTIAL,31313785,"28,754.36",Mental Health Services - S117 Mental Health,S10 5FA
Department of Health,NHS Sheffield CCG,3/31/2020,Cont Care-Learning Disab(<65),CHC ADULT FULLY FUNDED,MOORVILLE RESIDENTIAL,31313785,"9,149.03",CHC ADULT FULLY FUNDED,S10 5FA
Department of Health,NHS Sheffield CCG,3/31/2020,Cont Care-Learning Disab(<65),CHC ADULT JOINT FUNDED,MOORVILLE RESIDENTIAL,31313785,"4,024.73",CHC ADULT JOINT FUNDED,S10 5FA
Department of Health,NHS Sheffield CCG,3/31/2020,Cont Care-Mental Health (<65),CHC ADULT JOINT FUNDED,MOORVILLE RESIDENTIAL,31313785,491.66,CHC ADULT JOINT FUNDED,S10 5FA
Department of Health,NHS Sheffield CCG,3/31/2020,C&M-PMS Contract Value,PRC DELEGATED CO-COMMISSIONING,MOSBOROUGH HEALTH CENTRE,31387493,"50,263.61",PRC DELEGATED CO-COMMISSIONING,S20 5BQ
Department of Health,NHS Sheffield CCG,3/31/2020,C&M-PMS DES Minor Surgery,PRC DELEGATED CO-COMMISSIONING,MOSBOROUGH HEALTH CENTRE,31387493,"1,280.00",PRC DELEGATED CO-COMMISSIONING,S20 5BQ
Department of Health,NHS Sheffield CCG,3/31/2020,C&M-PMS GP Statutory Levy,PRC DELEGATED CO-COMMISSIONING,MOSBOROUGH HEALTH CENTRE,31387493,473.90,PRC DELEGATED CO-COMMISSIONING,S20 5BQ
Department of Health,NHS Sheffield CCG,3/31/2020,C&M-PMS Out of Hours Opt Outs,PRC DELEGATED CO-COMMISSIONING,MOSBOROUGH HEALTH CENTRE,31387493,5.34,PRC DELEGATED CO-COMMISSIONING,S20 5BQ
Department of Health,NHS Sheffield CCG,3/31/2020,C&M-PMS PCN DES Participation,PRC DELEGATED CO-COMMISSIONING,MOSBOROUGH HEALTH CENTRE,31387493,927.38,PRC DELEGATED CO-COMMISSIONING,S20 5BQ
Department of Health,NHS Sheffield CCG,3/31/2020,C&M-PMS PCO Seniority,PRC DELEGATED CO-COMMISSIONING,MOSBOROUGH HEALTH CENTRE,31387493,"1,418.73",PRC DELEGATED CO-COMMISSIONING,S20 5BQ
Department of Health,NHS Sheffield CCG,3/31/2020,C&M-PMS Prem Notional Rent,PRC DELEGATED CO-COMMISSIONING,MOSBOROUGH HEALTH CENTRE,31387493,"4,091.67",PRC DELEGATED CO-COMMISSIONING,S20 5BQ
Department of Health,NHS Sheffield CCG,3/31/2020,C&M-PMS QOF Aspiration,PRC DELEGATED CO-COMMISSIONING,MOSBOROUGH HEALTH CENTRE,31387493,"5,736.56",PRC DELEGATED CO-COMMISSIONING,S20 5BQ
Department of Health,NHS Sheffield CCG,3/31/2020,C&M-PMS Contract Value,PRC DELEGATED CO-COMMISSIONING,NETHERGREEN SURGERY,31387495,"63,791.23",PRC DELEGATED CO-COMMISSIONING,S11 7EJ
Department of Health,NHS Sheffield CCG,3/31/2020,C&M-PMS DES Minor Surgery,PRC DELEGATED CO-COMMISSIONING,NETHERGREEN SURGERY,31387495,"2,740.00",PRC DELEGATED CO-COMMISSIONING,S11 7EJ
Department of Health,NHS Sheffield CCG,3/31/2020,C&M-PMS GP Statutory Levy,PRC DELEGATED CO-COMMISSIONING,NETHERGREEN SURGERY,31387495,653.32,PRC DELEGATED CO-COMMISSIONING,S11 7EJ
Department of Health,NHS Sheffield CCG,3/31/2020,C&M-PMS Out of Hours Opt Outs,PRC DELEGATED CO-COMMISSIONING,NETHERGREEN SURGERY,31387495,21.69,PRC DELEGATED CO-COMMISSIONING,S11 7EJ
Department of Health,NHS Sheffield CCG,3/31/2020,C&M-PMS PCN DES Participation,PRC DELEGATED CO-COMMISSIONING,NETHERGREEN SURGERY,31387495,"1,208.31",PRC DELEGATED CO-COMMISSIONING,S11 7EJ
Department of Health,NHS Sheffield CCG,3/31/2020,C&M-PMS PCO Seniority,PRC DELEGATED CO-COMMISSIONING,NETHERGREEN SURGERY,31387495,"2,843.01",PRC DELEGATED CO-COMMISSIONING,S11 7EJ
Department of Health,NHS Sheffield CCG,3/31/2020,C&M-PMS Prem Cost Rent,PRC DELEGATED CO-COMMISSIONING,NETHERGREEN SURGERY,31387495,"5,057.33",PRC DELEGATED CO-COMMISSIONING,S11 7EJ
Department of Health,NHS Sheffield CCG,3/31/2020,C&M-PMS QOF Aspiration,PRC DELEGATED CO-COMMISSIONING,NETHERGREEN SURGERY,31387495,"6,406.79",PRC DELEGATED CO-COMMISSIONING,S11 7EJ
Department of Health,NHS Sheffield CCG,3/31/2020,Clinical&Medical-Serv Recd-CCGs,CHC ADULT FULLY FUNDED,NHS DONCASTER CCG,31440361,"138,573.47",CLINICAL & MEDICAL SERVICES - COMMERCIAL SECTOR,WF3 1WE
Department of Health,NHS Sheffield CCG,3/31/2020,Recharge : Received,CONTINUING HEALTHCARE ASSESSMENT & SUPPORT,NHS DONCASTER CCG,31514252,"189,396.00",CCG INCOME - NON CONTRACT 44811015,WF3 1WE
Department of Health,NHS Sheffield CCG,3/31/2020,Other Gen Supplies & Srv,COMMISSIONING,NHS GREATER HUDDERSFIELD CCG,31548838,"36,579.00",FEES AND CHARGES - CCG REVENUE CONTRACT,WF3 1WE
Department of Health,NHS Sheffield CCG,3/31/2020,Other Gen Supplies & Srv,BEREAVEMENT SERVICE,NHS ROTHERHAM CCG,31313473,"400,000.00",NHS OTHER - INCOME 44849001,WF3 1WE
Department of Health,NHS Sheffield CCG,3/31/2020,C&M-GMS Cost of Drugs -Prescribing,LOCAL ENHANCED SERVICES,NORFOLK PARK HEALTH CENTRE,31647765,614.79,LOCAL ENHANCED SERVICES,S2 3TA
Department of Health,NHS Sheffield CCG,3/31/2020,C&M-GMS Global Sum,PRC DELEGATED CO-COMMISSIONING,NORFOLK PARK HEALTH CENTRE,31647765,"39,830.85",PRC DELEGATED CO-COMMISSIONING,S2 3TA
Department of Health,NHS Sheffield CCG,3/31/2020,C&M-GMS MPIG Correction Factor,PRC DELEGATED CO-COMMISSIONING,NORFOLK PARK HEALTH CENTRE,31647765,462.30,PRC DELEGATED CO-COMMISSIONING,S2 3TA
Department of Health,NHS Sheffield CCG,3/31/2020,C&M-GMS PCN DES Participation,PRC DELEGATED CO-COMMISSIONING,NORFOLK PARK HEALTH CENTRE,31647765,763.41,PRC DELEGATED CO-COMMISSIONING,S2 3TA
Department of Health,NHS Sheffield CCG,3/31/2020,C&M-GMS PCO Seniority,PRC DELEGATED CO-COMMISSIONING,NORFOLK PARK HEALTH CENTRE,31647765,"2,012.26",PRC DELEGATED CO-COMMISSIONING,S2 3TA
Department of Health,NHS Sheffield CCG,3/31/2020,C&M-GMS Prem Healthcentre Rent,PRC DELEGATED CO-COMMISSIONING,NORFOLK PARK HEALTH CENTRE,31647765,"24,820.01",PRC DELEGATED CO-COMMISSIONING,S2 3TA
Department of Health,NHS Sheffield CCG,3/31/2020,C&M-GMS Prof Fees Prescribing,PRC DELEGATED CO-COMMISSIONING,NORFOLK PARK HEALTH CENTRE,31647765,134.49,PRC DELEGATED CO-COMMISSIONING,S2 3TA
Department of Health,NHS Sheffield CCG,3/31/2020,C&M-GMS QOF Aspiration,PRC DELEGATED CO-COMMISSIONING,NORFOLK PARK HEALTH CENTRE,31647765,"3,941.29",PRC DELEGATED CO-COMMISSIONING,S2 3TA
Department of Health,NHS Sheffield CCG,3/31/2020,C&M-GMS Global Sum,PRC DELEGATED CO-COMMISSIONING,NORWOOD MEDICAL CENTRE SHEFFIELD,31647768,"65,363.97",PRC DELEGATED CO-COMMISSIONING,S5 7HD
Department of Health,NHS Sheffield CCG,3/31/2020,C&M-GMS PCN DES Participation,PRC DELEGATED CO-COMMISSIONING,NORWOOD MEDICAL CENTRE SHEFFIELD,31647768,"1,337.61",PRC DELEGATED CO-COMMISSIONING,S5 7HD
Department of Health,NHS Sheffield CCG,3/31/2020,C&M-GMS PCO Seniority,PRC DELEGATED CO-COMMISSIONING,NORWOOD MEDICAL CENTRE SHEFFIELD,31647768,"2,139.02",PRC DELEGATED CO-COMMISSIONING,S5 7HD
Department of Health,NHS Sheffield CCG,3/31/2020,C&M-GMS Prem Notional Rent,PRC DELEGATED CO-COMMISSIONING,NORWOOD MEDICAL CENTRE SHEFFIELD,31647768,"5,187.50",PRC DELEGATED CO-COMMISSIONING,S5 7HD
Department of Health,NHS Sheffield CCG,3/31/2020,C&M-GMS QOF Aspiration,PRC DELEGATED CO-COMMISSIONING,NORWOOD MEDICAL CENTRE SHEFFIELD,31647768,"8,171.17",PRC DELEGATED CO-COMMISSIONING,S5 7HD
Department of Health,NHS Sheffield CCG,3/31/2020,Clinical&Medical-Independent Sector,ACUTE COMMISSIONING,ONEHEALTH GROUP,31440383,"71,286.25",https://nww.einvoice-prod.sbs.nhs.uk:8179/invoicepdf/054af094-e1ad-525d-ba0d-9fe86f851154,S11 8UX
Department of Health,NHS Sheffield CCG,3/31/2020,Clinical&Medical-Independent Sector,ACUTE COMMISSIONING,ONEHEALTH GROUP,31550025,"31,863.84",https://nww.einvoice-prod.sbs.nhs.uk:8179/invoicepdf/51a71e17-f22a-5bf5-9ba4-9aad26d50580,S11 8UX
Department of Health,NHS Sheffield CCG,3/31/2020,C&M-GMS Cost of Drugs -Dispensing,LOCAL ENHANCED SERVICES,OUGHTIBRIDGE SURGERY,31647772,"26,947.28",LOCAL ENHANCED SERVICES,S35 0FW
Department of Health,NHS Sheffield CCG,3/31/2020,C&M-GMS Global Sum,PRC DELEGATED CO-COMMISSIONING,OUGHTIBRIDGE SURGERY,31647772,"43,420.45",PRC DELEGATED CO-COMMISSIONING,S35 0FW
Department of Health,NHS Sheffield CCG,3/31/2020,C&M-GMS PCN DES Participation,PRC DELEGATED CO-COMMISSIONING,OUGHTIBRIDGE SURGERY,31647772,889.02,PRC DELEGATED CO-COMMISSIONING,S35 0FW
Department of Health,NHS Sheffield CCG,3/31/2020,C&M-GMS PCO Seniority,PRC DELEGATED CO-COMMISSIONING,OUGHTIBRIDGE SURGERY,31647772,"1,163.19",PRC DELEGATED CO-COMMISSIONING,S35 0FW
Department of Health,NHS Sheffield CCG,3/31/2020,C&M-GMS Prem Notional Rent,PRC DELEGATED CO-COMMISSIONING,OUGHTIBRIDGE SURGERY,31647772,"3,957.33",PRC DELEGATED CO-COMMISSIONING,S35 0FW
Department of Health,NHS Sheffield CCG,3/31/2020,C&M-GMS Prof Fees Dispensing,PRC DELEGATED CO-COMMISSIONING,OUGHTIBRIDGE SURGERY,31647772,"4,239.84",PRC DELEGATED CO-COMMISSIONING,S35 0FW
Department of Health,NHS Sheffield CCG,3/31/2020,C&M-GMS PrscrptnChrgsColl&RmttdbyGP,LOCAL ENHANCED SERVICES,OUGHTIBRIDGE SURGERY,31647772,585.00,LOCAL ENHANCED SERVICES,S35 0FW
Department of Health,NHS Sheffield CCG,3/31/2020,C&M-GMS QOF Aspiration,PRC DELEGATED CO-COMMISSIONING,OUGHTIBRIDGE SURGERY,31647772,"4,261.60",PRC DELEGATED CO-COMMISSIONING,S35 0FW
Department of Health,NHS Sheffield CCG,3/31/2020,C&M-PMS Contract Value,PRC DELEGATED CO-COMMISSIONING,OWLTHORPE MEDICAL CENTRE,31387497,"33,441.80",PRC DELEGATED CO-COMMISSIONING,S20 6PD
Department of Health,NHS Sheffield CCG,3/31/2020,C&M-PMS DES Minor Surgery,PRC DELEGATED CO-COMMISSIONING,OWLTHORPE MEDICAL CENTRE,31387497,320.00,PRC DELEGATED CO-COMMISSIONING,S20 6PD
Department of Health,NHS Sheffield CCG,3/31/2020,C&M-PMS GP Statutory Levy,PRC DELEGATED CO-COMMISSIONING,OWLTHORPE MEDICAL CENTRE,31387497,313.82,PRC DELEGATED CO-COMMISSIONING,S20 6PD
Department of Health,NHS Sheffield CCG,3/31/2020,C&M-PMS Out of Hours Opt Outs,PRC DELEGATED CO-COMMISSIONING,OWLTHORPE MEDICAL CENTRE,31387497,23.50,PRC DELEGATED CO-COMMISSIONING,S20 6PD
Department of Health,NHS Sheffield CCG,3/31/2020,C&M-PMS PCN DES Participation,PRC DELEGATED CO-COMMISSIONING,OWLTHORPE MEDICAL CENTRE,31387497,639.06,PRC DELEGATED CO-COMMISSIONING,S20 6PD
Department of Health,NHS Sheffield CCG,3/31/2020,C&M-PMS Prem Actual Rent,PRC DELEGATED CO-COMMISSIONING,OWLTHORPE MEDICAL CENTRE,31387497,"7,539.58",PRC DELEGATED CO-COMMISSIONING,S20 6PD
Department of Health,NHS Sheffield CCG,3/31/2020,C&M-PMS Prem Water Rates,PRC DELEGATED CO-COMMISSIONING,OWLTHORPE MEDICAL CENTRE,31387497,100.37,PRC DELEGATED CO-COMMISSIONING,S20 6PD
Department of Health,NHS Sheffield CCG,3/31/2020,C&M-PMS QOF Aspiration,PRC DELEGATED CO-COMMISSIONING,OWLTHORPE MEDICAL CENTRE,31387497,"3,873.48",PRC DELEGATED CO-COMMISSIONING,S20 6PD
Department of Health,NHS Sheffield CCG,3/31/2020,C&M-PMS Contract Value,PRC DELEGATED CO-COMMISSIONING,PAGE HALL MEDICAL CENTRE,31387499,"58,141.61",PRC DELEGATED CO-COMMISSIONING,S4 8GB
Department of Health,NHS Sheffield CCG,3/31/2020,C&M-PMS DES Learn Dsblty Hlth Chk,PRC DELEGATED CO-COMMISSIONING,PAGE HALL MEDICAL CENTRE,31387499,"2,380.00",PRC DELEGATED CO-COMMISSIONING,S4 8GB
Department of Health,NHS Sheffield CCG,3/31/2020,C&M-PMS DES Minor Surgery,PRC DELEGATED CO-COMMISSIONING,PAGE HALL MEDICAL CENTRE,31387499,400.00,PRC DELEGATED CO-COMMISSIONING,S4 8GB
Department of Health,NHS Sheffield CCG,3/31/2020,C&M-PMS GP Statutory Levy,PRC DELEGATED CO-COMMISSIONING,PAGE HALL MEDICAL CENTRE,31387499,548.46,PRC DELEGATED CO-COMMISSIONING,S4 8GB
Department of Health,NHS Sheffield CCG,3/31/2020,C&M-PMS Out of Hours Opt Outs,PRC DELEGATED CO-COMMISSIONING,PAGE HALL MEDICAL CENTRE,31387499,20.84,PRC DELEGATED CO-COMMISSIONING,S4 8GB
Department of Health,NHS Sheffield CCG,3/31/2020,C&M-PMS PCN DES Participation,PRC DELEGATED CO-COMMISSIONING,PAGE HALL MEDICAL CENTRE,31387499,"1,083.01",PRC DELEGATED CO-COMMISSIONING,S4 8GB
Department of Health,NHS Sheffield CCG,3/31/2020,C&M-PMS PCO Seniority,PRC DELEGATED CO-COMMISSIONING,PAGE HALL MEDICAL CENTRE,31387499,"1,682.92",PRC DELEGATED CO-COMMISSIONING,S4 8GB
Department of Health,NHS Sheffield CCG,3/31/2020,C&M-PMS Prem Notional Rent,PRC DELEGATED CO-COMMISSIONING,PAGE HALL MEDICAL CENTRE,31387499,"4,833.33",PRC DELEGATED CO-COMMISSIONING,S4 8GB
Department of Health,NHS Sheffield CCG,3/31/2020,C&M-PMS Prem Water Rates,PRC DELEGATED CO-COMMISSIONING,PAGE HALL MEDICAL CENTRE,31387499,177.01,PRC DELEGATED CO-COMMISSIONING,S4 8GB
Department of Health,NHS Sheffield CCG,3/31/2020,C&M-PMS QOF Aspiration,PRC DELEGATED CO-COMMISSIONING,PAGE HALL MEDICAL CENTRE,31387499,"4,558.05",PRC DELEGATED CO-COMMISSIONING,S4 8GB
Department of Health,NHS Sheffield CCG,3/31/2020,Other Gen Supplies & Srv,COUNSELLING SERVICES,PEAK HEALTH COACHING LTD,31696269,"50,000.00",peak health coaching acp contract- please contact jane ginniver for further information,S11 9RA
Department of Health,NHS Sheffield CCG,3/31/2020,C&M-PMS Contract Value,PRC DELEGATED CO-COMMISSIONING,PORTER BROOK MEDICAL CENTRE,31387500,"-8,258.39",PRC DELEGATED CO-COMMISSIONING,S11 8HN
Department of Health,NHS Sheffield CCG,3/31/2020,C&M-PMS GP Statutory Levy,PRC DELEGATED CO-COMMISSIONING,PORTER BROOK MEDICAL CENTRE,31387500,"-3,123.33",PRC DELEGATED CO-COMMISSIONING,S11 8HN
Department of Health,NHS Sheffield CCG,3/31/2020,C&M-PMS Out of Hours Opt Outs,PRC DELEGATED CO-COMMISSIONING,PORTER BROOK MEDICAL CENTRE,31387500,"-8,210.37",PRC DELEGATED CO-COMMISSIONING,S11 8HN
Department of Health,NHS Sheffield CCG,3/31/2020,C&M-PMS Contract Value,PRC DELEGATED CO-COMMISSIONING,PORTER BROOK MEDICAL CENTRE,31387501,"176,064.97",PRC DELEGATED CO-COMMISSIONING,S11 8HN
Department of Health,NHS Sheffield CCG,3/31/2020,C&M-PMS DES Learn Dsblty Hlth Chk,PRC DELEGATED CO-COMMISSIONING,PORTER BROOK MEDICAL CENTRE,31387501,280.00,PRC DELEGATED CO-COMMISSIONING,S11 8HN
Department of Health,NHS Sheffield CCG,3/31/2020,C&M-PMS DES Minor Surgery,PRC DELEGATED CO-COMMISSIONING,PORTER BROOK MEDICAL CENTRE,31387501,"6,300.00",PRC DELEGATED CO-COMMISSIONING,S11 8HN
Department of Health,NHS Sheffield CCG,3/31/2020,C&M-PMS GP Statutory Levy,PRC DELEGATED CO-COMMISSIONING,PORTER BROOK MEDICAL CENTRE,31387501,"1,978.34",PRC DELEGATED CO-COMMISSIONING,S11 8HN
Department of Health,NHS Sheffield CCG,3/31/2020,C&M-PMS Out of Hours Opt Outs,PRC DELEGATED CO-COMMISSIONING,PORTER BROOK MEDICAL CENTRE,31387501,385.38,PRC DELEGATED CO-COMMISSIONING,S11 8HN
Department of Health,NHS Sheffield CCG,3/31/2020,C&M-PMS PCN DES Participation,PRC DELEGATED CO-COMMISSIONING,PORTER BROOK MEDICAL CENTRE,31387501,"3,163.47",PRC DELEGATED CO-COMMISSIONING,S11 8HN
Department of Health,NHS Sheffield CCG,3/31/2020,C&M-PMS PCO Seniority,PRC DELEGATED CO-COMMISSIONING,PORTER BROOK MEDICAL CENTRE,31387501,"5,592.00",PRC DELEGATED CO-COMMISSIONING,S11 8HN
Department of Health,NHS Sheffield CCG,3/31/2020,C&M-PMS Prem Actual Rent,PRC DELEGATED CO-COMMISSIONING,PORTER BROOK MEDICAL CENTRE,31387501,"1,666.66",PRC DELEGATED CO-COMMISSIONING,S11 8HN
Department of Health,NHS Sheffield CCG,3/31/2020,C&M-PMS Prem Notional Rent,PRC DELEGATED CO-COMMISSIONING,PORTER BROOK MEDICAL CENTRE,31387501,"9,666.67",PRC DELEGATED CO-COMMISSIONING,S11 8HN
Department of Health,NHS Sheffield CCG,3/31/2020,C&M-PMS QOF Aspiration,PRC DELEGATED CO-COMMISSIONING,PORTER BROOK MEDICAL CENTRE,31387501,"8,838.31",PRC DELEGATED CO-COMMISSIONING,S11 8HN
Department of Health,NHS Sheffield CCG,3/31/2020,Clinical&Medical-Commercial Sector,PATIENT TRANSPORT,PREMIER CARE DIRECT LTD,31361505,"112,480.55",https://nww.einvoice-prod.sbs.nhs.uk:8179/invoicepdf/1abe9b6f-b0bd-567d-b85e-4aaabc8adb3d,DN4 5NU
Department of Health,NHS Sheffield CCG,3/31/2020,Clinical&Medical-Commercial Sector,PATIENT TRANSPORT,PREMIER CARE DIRECT LTD,31704268,"112,480.55",https://nww.einvoice-prod.sbs.nhs.uk:8179/invoicepdf/04fcdad1-7551-50d3-9056-bb06d22b4a8c,DN4 5NU
Department of Health,NHS Sheffield CCG,3/31/2020,Clinical&Medical-Independent Sector,BEREAVEMENT SERVICE,PRIMARY CARE DONCASTER LTD,31704341,"304,000.00",BEREAVEMENT SERVICE,DN1 2DJ
Department of Health,NHS Sheffield CCG,3/31/2020,Clinical&Medical-Independent Sector,BEREAVEMENT SERVICE,PRIMARY CARE DONCASTER LTD,31704345,"238,000.00",BEREAVEMENT SERVICE,DN1 2DJ
Department of Health,NHS Sheffield CCG,3/31/2020,C&M-GMS LES Basket of Procedures,LOCAL ENHANCED SERVICES,PRIMARY CARE SHEFFIELD LTD,31590223,"52,308.33",LOCAL ENHANCED SERVICES,S9 4EU
Department of Health,NHS Sheffield CCG,3/31/2020,C&M-APMS DES Extended Hours Access,GP FORWARD VIEW,PRIMARY CARE SHEFFIELD LTD,31590290,"295,941.67",GP FORWARD VIEW,S9 4EU
Department of Health,NHS Sheffield CCG,3/31/2020,C&M-APMS DES Extended Hours Access,GP FORWARD VIEW,PRIMARY CARE SHEFFIELD LTD,31653835,"295,941.67",GP FORWARD VIEW,S9 4EU
Department of Health,NHS Sheffield CCG,3/31/2020,C&M-OES Glaucoma,LOCAL ENHANCED SERVICES,PRIMARY EYECARE SERVICES LTD,31653791,"1,090.00",LOCAL ENHANCED SERVICES,EC1R 0DG
Department of Health,NHS Sheffield CCG,3/31/2020,C&M-OES Intra-ocular Ocular Hypertn,LOCAL ENHANCED SERVICES,PRIMARY EYECARE SERVICES LTD,31653791,280.00,LOCAL ENHANCED SERVICES,EC1R 0DG
Department of Health,NHS Sheffield CCG,3/31/2020,C&M-OES PEARS,LOCAL ENHANCED SERVICES,PRIMARY EYECARE SERVICES LTD,31653791,"30,798.00",LOCAL ENHANCED SERVICES,EC1R 0DG
Department of Health,NHS Sheffield CCG,3/31/2020,C&M-PMS Contract Value,PRC DELEGATED CO-COMMISSIONING,RICHMOND MEDICAL CENTRE,31387503,"67,613.83",PRC DELEGATED CO-COMMISSIONING,S13 8NA
Department of Health,NHS Sheffield CCG,3/31/2020,C&M-PMS DES Learn Dsblty Hlth Chk,PRC DELEGATED CO-COMMISSIONING,RICHMOND MEDICAL CENTRE,31387503,420.00,PRC DELEGATED CO-COMMISSIONING,S13 8NA
Department of Health,NHS Sheffield CCG,3/31/2020,C&M-PMS DES Minor Surgery,PRC DELEGATED CO-COMMISSIONING,RICHMOND MEDICAL CENTRE,31387503,"2,150.00",PRC DELEGATED CO-COMMISSIONING,S13 8NA
Department of Health,NHS Sheffield CCG,3/31/2020,C&M-PMS GP Statutory Levy,PRC DELEGATED CO-COMMISSIONING,RICHMOND MEDICAL CENTRE,31387503,631.76,PRC DELEGATED CO-COMMISSIONING,S13 8NA
Department of Health,NHS Sheffield CCG,3/31/2020,C&M-PMS Out of Hours Opt Outs,PRC DELEGATED CO-COMMISSIONING,RICHMOND MEDICAL CENTRE,31387503,31.48,PRC DELEGATED CO-COMMISSIONING,S13 8NA
Department of Health,NHS Sheffield CCG,3/31/2020,C&M-PMS PCN DES Participation,PRC DELEGATED CO-COMMISSIONING,RICHMOND MEDICAL CENTRE,31387503,"1,271.70",PRC DELEGATED CO-COMMISSIONING,S13 8NA
Department of Health,NHS Sheffield CCG,3/31/2020,C&M-PMS PCO Seniority,PRC DELEGATED CO-COMMISSIONING,RICHMOND MEDICAL CENTRE,31387503,"1,667.65",PRC DELEGATED CO-COMMISSIONING,S13 8NA
Department of Health,NHS Sheffield CCG,3/31/2020,C&M-PMS Prem Notional Rent,PRC DELEGATED CO-COMMISSIONING,RICHMOND MEDICAL CENTRE,31387503,"4,731.00",PRC DELEGATED CO-COMMISSIONING,S13 8NA
Department of Health,NHS Sheffield CCG,3/31/2020,C&M-PMS QOF Aspiration,PRC DELEGATED CO-COMMISSIONING,RICHMOND MEDICAL CENTRE,31387503,"8,208.20",PRC DELEGATED CO-COMMISSIONING,S13 8NA
Department of Health,NHS Sheffield CCG,3/31/2020,Cont Care-Physical Disab (<65),CHC ADULT FULLY FUNDED,ROSEBERRY CARE CENTRES,31569976,"32,357.78",CHC ADULT FULLY FUNDED,S5 6AB
Department of Health,NHS Sheffield CCG,3/31/2020,Cont Care-Physical Disab (<65),CHC ADULT FULLY FUNDED,ROSEBERRY CARE CENTRES,31569985,"33,784.29",CHC ADULT FULLY FUNDED,S4 7AJ
Department of Health,NHS Sheffield CCG,3/31/2020,Cont Care-Funded Nursing Care Allow,FUNDED NURSING CARE,ROSEBERRY CARE CENTRES,31573047,"28,388.60",FUNDED NURSING CARE,S5 6AB
Department of Health,NHS Sheffield CCG,3/31/2020,Hcare Srv Rec Fdtn Trust-Contract Baseline,MENTAL HEALTH CONTRACTS,ROTHERHAM DONCASTER AND SOUTH HUMBER NHS FOUNDATION TRUST,31573079,"25,487.95",MENTAL HEALTH CONTRACTS,DN4 8QN
Department of Health,NHS Sheffield CCG,3/31/2020,Other Gen Supplies & Srv,BEREAVEMENT SERVICE,ROTHERHAM DONCASTER AND SOUTH HUMBER NHS FOUNDATION TRUST,31589992,"105,000.00",BEREAVEMENT SERVICE,DN4 8QN
Department of Health,NHS Sheffield CCG,3/31/2020,Clinical&Medical-Serv Recd-F Trsts,LEARNING DIFFICULTIES,ROTHERHAM DONCASTER AND SOUTH HUMBER NHS FOUNDATION TRUST,31672668,"25,000.00",LEARNING DIFFICULTIES,DN4 8QN
Department of Health,NHS Sheffield CCG,3/31/2020,NHS Payables <1Yr-Non PO Accruals,ACUTE CHILDRENS SERVICES,ROTHERHAM DONCASTER AND SOUTH HUMBER NHS FOUNDATION TRUST,31709574,"37,808.66",ACUTE CHILDRENS SERVICES,DN4 8QN
Department of Health,NHS Sheffield CCG,3/31/2020,Hcare Srv Rec Fdtn Trust-Contract Baseline,ACUTE COMMISSIONING,ROTHERHAM NHS FOUNDATION TRUST,31440369,"466,729.00",ACUTE COMMISSIONING,S60 2UD
Department of Health,NHS Sheffield CCG,3/31/2020,Seconded-Basic Sal-Staff fm oth org,BEREAVEMENT SERVICE,ROTHERHAM NHS FOUNDATION TRUST,31514462,"67,879.18",BEREAVEMENT SERVICE,S60 2UD
Department of Health,NHS Sheffield CCG,3/31/2020,Seconded-Employer's NHI Costs,BEREAVEMENT SERVICE,ROTHERHAM NHS FOUNDATION TRUST,31514462,"9,760.92",BEREAVEMENT SERVICE,S60 2UD
Department of Health,NHS Sheffield CCG,3/31/2020,Seconded-Basic Sal-Staff fm oth org,BEREAVEMENT SERVICE,ROTHERHAM NHS FOUNDATION TRUST,31686543,"26,232.21",BEREAVEMENT SERVICE,S60 2UD
Department of Health,NHS Sheffield CCG,3/31/2020,Seconded-Employer's NHI Costs,BEREAVEMENT SERVICE,ROTHERHAM NHS FOUNDATION TRUST,31686543,"3,533.81",BEREAVEMENT SERVICE,S60 2UD
Department of Health,NHS Sheffield CCG,3/31/2020,NHS Payables <1Yr-Non PO Accruals,ACUTE CHILDRENS SERVICES,ROTHERHAM NHS FOUNDATION TRUST,31709572,"618,988.29",ACUTE CHILDRENS SERVICES,S60 2UD
Department of Health,NHS Sheffield CCG,3/31/2020,C&M-PMS Contract Value,PRC DELEGATED CO-COMMISSIONING,RUSTLINGS ROAD MEDICAL CENTRE,31387507,"28,425.84",PRC DELEGATED CO-COMMISSIONING,S11 7AB
Department of Health,NHS Sheffield CCG,3/31/2020,C&M-PMS GP Statutory Levy,PRC DELEGATED CO-COMMISSIONING,RUSTLINGS ROAD MEDICAL CENTRE,31387507,325.16,PRC DELEGATED CO-COMMISSIONING,S11 7AB
Department of Health,NHS Sheffield CCG,3/31/2020,C&M-PMS Out of Hours Opt Outs,PRC DELEGATED CO-COMMISSIONING,RUSTLINGS ROAD MEDICAL CENTRE,31387507,10.26,PRC DELEGATED CO-COMMISSIONING,S11 7AB
Department of Health,NHS Sheffield CCG,3/31/2020,C&M-PMS PCN DES Participation,PRC DELEGATED CO-COMMISSIONING,RUSTLINGS ROAD MEDICAL CENTRE,31387507,527.62,PRC DELEGATED CO-COMMISSIONING,S11 7AB
Department of Health,NHS Sheffield CCG,3/31/2020,C&M-PMS PCO Seniority,PRC DELEGATED CO-COMMISSIONING,RUSTLINGS ROAD MEDICAL CENTRE,31387507,"1,309.16",PRC DELEGATED CO-COMMISSIONING,S11 7AB
Department of Health,NHS Sheffield CCG,3/31/2020,C&M-PMS Prem Notional Rent,PRC DELEGATED CO-COMMISSIONING,RUSTLINGS ROAD MEDICAL CENTRE,31387507,"1,312.50",PRC DELEGATED CO-COMMISSIONING,S11 7AB
Department of Health,NHS Sheffield CCG,3/31/2020,C&M-PMS QOF Aspiration,PRC DELEGATED CO-COMMISSIONING,RUSTLINGS ROAD MEDICAL CENTRE,31387507,"2,653.37",PRC DELEGATED CO-COMMISSIONING,S11 7AB
Department of Health,NHS Sheffield CCG,3/31/2020,C&M-GMS Cost of Drugs -Prescribing,LOCAL ENHANCED SERVICES,SHARROW LANE MEDICAL CENTRE,31647776,549.02,LOCAL ENHANCED SERVICES,S11 8AN
Department of Health,NHS Sheffield CCG,3/31/2020,C&M-GMS Global Sum,PRC DELEGATED CO-COMMISSIONING,SHARROW LANE MEDICAL CENTRE,31647776,"23,764.52",PRC DELEGATED CO-COMMISSIONING,S11 8AN
Department of Health,NHS Sheffield CCG,3/31/2020,C&M-GMS MPIG Correction Factor,PRC DELEGATED CO-COMMISSIONING,SHARROW LANE MEDICAL CENTRE,31647776,980.16,PRC DELEGATED CO-COMMISSIONING,S11 8AN
Department of Health,NHS Sheffield CCG,3/31/2020,C&M-GMS PCN DES Participation,PRC DELEGATED CO-COMMISSIONING,SHARROW LANE MEDICAL CENTRE,31647776,481.39,PRC DELEGATED CO-COMMISSIONING,S11 8AN
Department of Health,NHS Sheffield CCG,3/31/2020,C&M-GMS PCO Seniority,PRC DELEGATED CO-COMMISSIONING,SHARROW LANE MEDICAL CENTRE,31647776,335.57,PRC DELEGATED CO-COMMISSIONING,S11 8AN
Department of Health,NHS Sheffield CCG,3/31/2020,C&M-GMS Prem Notional Rent,PRC DELEGATED CO-COMMISSIONING,SHARROW LANE MEDICAL CENTRE,31647776,"2,741.67",PRC DELEGATED CO-COMMISSIONING,S11 8AN
Department of Health,NHS Sheffield CCG,3/31/2020,C&M-GMS Prof Fees Prescribing,PRC DELEGATED CO-COMMISSIONING,SHARROW LANE MEDICAL CENTRE,31647776,95.17,PRC DELEGATED CO-COMMISSIONING,S11 8AN
Department of Health,NHS Sheffield CCG,3/31/2020,C&M-GMS QOF Aspiration,PRC DELEGATED CO-COMMISSIONING,SHARROW LANE MEDICAL CENTRE,31647776,"2,666.85",PRC DELEGATED CO-COMMISSIONING,S11 8AN
Department of Health,NHS Sheffield CCG,3/31/2020,Hcare Srv Rec Fdtn Trust-Contract Baseline,ACUTE CHILDRENS SERVICES,SHEFFIELD CHILDRENS NHS FOUNDATION TRUST,31653660,"3,430,788.00",https://nww.einvoice-prod.sbs.nhs.uk:8179/invoicepdf/c3afa9ad-124a-5622-8ad1-776f08172b6d,S10 2TH
Department of Health,NHS Sheffield CCG,3/31/2020,Hcare Srv Rec Fdtn Trust-Contract Baseline,ACUTE CHILDRENS SERVICES,SHEFFIELD CHILDRENS NHS FOUNDATION TRUST,31653766,"840,278.00",https://nww.einvoice-prod.sbs.nhs.uk:8179/invoicepdf/1564ae7d-9dd5-5936-ba84-b336563947e5,S10 2TH
Department of Health,NHS Sheffield CCG,3/31/2020,NHS Payables <1Yr-Non PO Accruals,ACUTE CHILDRENS SERVICES,SHEFFIELD CHILDRENS NHS FOUNDATION TRUST,31709569,"3,460,348.98",ACUTE CHILDRENS SERVICES,S10 2TH
Department of Health,NHS Sheffield CCG,3/31/2020,Cont Care- Prior Year Payments,CHC ADULT FULLY FUNDED,SHEFFIELD CITY COUNCIL,31298530,"40,237.42",CHC ADULT FULLY FUNDED,S1 1UJ
Department of Health,NHS Sheffield CCG,3/31/2020,Cont Care- Children,CHC CHILDREN,SHEFFIELD CITY COUNCIL,31298635,"43,725.24",CHC CHILDREN,S1 1UJ
Department of Health,NHS Sheffield CCG,3/31/2020,Clinical&Medical-Othe Public Sector,MENTAL HEALTH SERVICES - OTHER,SHEFFIELD CITY COUNCIL,31466681,"30,000.00",MENTAL HEALTH SERVICES - OTHER,S1 2HH
Department of Health,NHS Sheffield CCG,3/31/2020,Clinical&Medical-Othe Public Sector,CHILD AND ADOLESCENT MENTAL HEALTH,SHEFFIELD CITY COUNCIL,31514240,"40,000.00",CHILD AND ADOLESCENT MENTAL HEALTH,S1 1UJ
Department of Health,NHS Sheffield CCG,3/31/2020,Basic Sal-Senior Manager band 8A,NON RECURRENT PROGRAMMES,SHEFFIELD CITY COUNCIL,31548891,"-2,087,712.00",NON RECURRENT PROGRAMMES,S1 2HH
Department of Health,NHS Sheffield CCG,3/31/2020,Cont Care- Children,CHC CHILDREN,SHEFFIELD CITY COUNCIL,31550116,"271,628.71",CHC CHILDREN,S1 1UJ
Department of Health,NHS Sheffield CCG,3/31/2020,Cont Care-Physical Disab (65+),CHC ADULT FULLY FUNDED,SHEFFIELD CITY COUNCIL,31550135,"976,367.37",CHC ADULT FULLY FUNDED,S1 1UJ
Department of Health,NHS Sheffield CCG,3/31/2020,Cont Care- Prior Year Payments,CHC ADULT FULLY FUNDED,SHEFFIELD CITY COUNCIL,31569883,"32,554.08",CHC ADULT FULLY FUNDED,S1 1UJ
Department of Health,NHS Sheffield CCG,3/31/2020,Clinical&Medical-Othe Public Sector,LEARNING DIFFICULTIES,SHEFFIELD CITY COUNCIL,31573081,"506,500.00",LEARNING DIFFICULTIES,S1 2HH
Department of Health,NHS Sheffield CCG,3/31/2020,Clinical&Medical-Othe Public Sector,COMMUNITY SERVICES,SHEFFIELD CITY COUNCIL,31611195,"150,416.67",COMMUNITY SERVICES,S1 1UJ
Department of Health,NHS Sheffield CCG,3/31/2020,Clinical&Medical-Othe Public Sector,MENTAL HEALTH SERVICES - COLLABORATIVE COMMISSIONING,SHEFFIELD CITY COUNCIL,31611195,"83,669.00",MENTAL HEALTH SERVICES - COLLABORATIVE COMMISSIONING,S1 1UJ
Department of Health,NHS Sheffield CCG,3/31/2020,Clinical&Medical-Othe Public Sector,REABLEMENT,SHEFFIELD CITY COUNCIL,31611195,"21,830.67",REABLEMENT,S1 1UJ
Department of Health,NHS Sheffield CCG,3/31/2020,Clinical&Medical-Othe Public Sector,SAFEGUARDING,SHEFFIELD CITY COUNCIL,31611195,"12,234.75",SAFEGUARDING,S1 1UJ
Department of Health,NHS Sheffield CCG,3/31/2020,Cont Care-Physical Disab (65+),CHC ADULT FULLY FUNDED,SHEFFIELD CITY COUNCIL,31611195,"56,571.82",CHC ADULT FULLY FUNDED,S1 1UJ
Department of Health,NHS Sheffield CCG,3/31/2020,Soc Care-Joint H&C Teams/Working,INTERMEDIATE CARE,SHEFFIELD CITY COUNCIL,31611195,"151,447.58",INTERMEDIATE CARE,S1 1UJ
Department of Health,NHS Sheffield CCG,3/31/2020,Soc Care-Other Soc Care,COMMISSIONING - NON ACUTE,SHEFFIELD CITY COUNCIL,31611195,"1,467,750.00",COMMISSIONING - NON ACUTE,S1 1UJ
Department of Health,NHS Sheffield CCG,3/31/2020,Soc Care-Support Prim Care,COMMUNITY SERVICES,SHEFFIELD CITY COUNCIL,31611195,"59,500.67",COMMUNITY SERVICES,S1 1UJ
Department of Health,NHS Sheffield CCG,3/31/2020,Soc Care-Other Soc Care,COMMISSIONING - NON ACUTE,SHEFFIELD CITY COUNCIL,31611201,"1,200,000.00",COMMISSIONING - NON ACUTE,S1 1UJ
Department of Health,NHS Sheffield CCG,3/31/2020,Services From Local Authorities,MENTAL HEALTH SERVICES - COLLABORATIVE COMMISSIONING,SHEFFIELD CITY COUNCIL,31628671,"36,429.04",MENTAL HEALTH SERVICES - COLLABORATIVE COMMISSIONING,S1 1UJ
Department of Health,NHS Sheffield CCG,3/31/2020,Basic Sal-Senior Manager band 8A,NON RECURRENT PROGRAMMES,SHEFFIELD CITY COUNCIL,31653655,"1,739,760.00",NON RECURRENT PROGRAMMES,S1 2HH
Department of Health,NHS Sheffield CCG,3/31/2020,Basic Sal-Senior Manager band 8A,NON RECURRENT PROGRAMMES,SHEFFIELD CITY COUNCIL,31653665,"289,960.00",NON RECURRENT PROGRAMMES,S1 2HH
Department of Health,NHS Sheffield CCG,3/31/2020,Basic Sal-Senior Manager band 8A,NON RECURRENT PROGRAMMES,SHEFFIELD CITY COUNCIL,31653669,"57,412.08",NON RECURRENT PROGRAMMES,S1 2HH
Department of Health,NHS Sheffield CCG,3/31/2020,Hcare Srv Rec Fdtn Trust-Non Contract,MENTAL HEALTH CONTRACTS,SHEFFIELD HEALTH & SOCIAL CARE NHS FOUNDATION TRUST,31298225,"42,656.54",MENTAL HEALTH CONTRACTS,S10 3TH
Department of Health,NHS Sheffield CCG,3/31/2020,Hcare Srv Rec Fdtn Trust-Non Contract,MENTAL HEALTH CONTRACTS,SHEFFIELD HEALTH & SOCIAL CARE NHS FOUNDATION TRUST,31298266,"27,941.85",MENTAL HEALTH CONTRACTS,S10 3TH
Department of Health,NHS Sheffield CCG,3/31/2020,Cont Care-NHSFT-Adult 100% Funded,CHC ADULT FULLY FUNDED,SHEFFIELD HEALTH & SOCIAL CARE NHS FOUNDATION TRUST,31313664,"188,035.86",CHC ADULT FULLY FUNDED,S10 3TH
Department of Health,NHS Sheffield CCG,3/31/2020,Hcare Srv Rec Fdtn Trust-Non Contract,MENTAL HEALTH CONTRACTS,SHEFFIELD HEALTH & SOCIAL CARE NHS FOUNDATION TRUST,31440373,"74,853.27",MENTAL HEALTH CONTRACTS,S10 3TH
Department of Health,NHS Sheffield CCG,3/31/2020,Hcare Srv Rec Fdtn Trust-Non Contract,MENTAL HEALTH CONTRACTS,SHEFFIELD HEALTH & SOCIAL CARE NHS FOUNDATION TRUST,31548913,"27,941.85",MENTAL HEALTH CONTRACTS,S10 3TH
Department of Health,NHS Sheffield CCG,3/31/2020,Other Gen Supplies & Srv,BEREAVEMENT SERVICE,SHEFFIELD HEALTH & SOCIAL CARE NHS FOUNDATION TRUST,31587962,"300,000.00",BEREAVEMENT SERVICE,S10 3TH
Department of Health,NHS Sheffield CCG,3/31/2020,NHS Payables <1Yr-Non PO Accruals,ACUTE CHILDRENS SERVICES,SHEFFIELD HEALTH & SOCIAL CARE NHS FOUNDATION TRUST,31709570,"7,311,989.53",ACUTE CHILDRENS SERVICES,S10 3TH
Department of Health,NHS Sheffield CCG,3/31/2020,OVERSEAS NON EEA PATIENTS,OVERSEAS NON EEA PATIENTS,SHEFFIELD TEACHING HOSPITALS NHS FOUNDATION TRUST,31398132,"26,942.97",OVERSEAS NON EEA PATIENTS,S5 7AU
Department of Health,NHS Sheffield CCG,3/31/2020,Hcare Srv Rec Fdtn Trust-Non Contract,ACUTE COMMISSIONING,SHEFFIELD TEACHING HOSPITALS NHS FOUNDATION TRUST,31569877,"25,000.00",ACUTE COMMISSIONING,S5 7AU
Department of Health,NHS Sheffield CCG,3/31/2020,Hcare Srv Rec Fdtn Trust-Contract Baseline,ACUTE COMMISSIONING,SHEFFIELD TEACHING HOSPITALS NHS FOUNDATION TRUST,31573060,"264,622.00",ACUTE COMMISSIONING,S5 7AU
Department of Health,NHS Sheffield CCG,3/31/2020,Hcare Srv Rec Fdtn Trust-Contract Baseline,ACUTE COMMISSIONING,SHEFFIELD TEACHING HOSPITALS NHS FOUNDATION TRUST,31573080,"3,102,932.00",ACUTE COMMISSIONING,S5 7AU
Department of Health,NHS Sheffield CCG,3/31/2020,NHS Payables <1Yr-Non PO Accruals,ACUTE CHILDRENS SERVICES,SHEFFIELD TEACHING HOSPITALS NHS FOUNDATION TRUST,31709571,"37,588,203.57",ACUTE CHILDRENS SERVICES,S5 7AU
Department of Health,NHS Sheffield CCG,3/31/2020,C&M-GMS Cost of Drugs -Prescribing,LOCAL ENHANCED SERVICES,SHIREGREEN MEDICAL CENTRE,31647784,"2,858.04",LOCAL ENHANCED SERVICES,S5 0RG
Department of Health,NHS Sheffield CCG,3/31/2020,C&M-GMS Global Sum,PRC DELEGATED CO-COMMISSIONING,SHIREGREEN MEDICAL CENTRE,31647784,"58,191.33",PRC DELEGATED CO-COMMISSIONING,S5 0RG
Department of Health,NHS Sheffield CCG,3/31/2020,C&M-GMS MPIG Correction Factor,PRC DELEGATED CO-COMMISSIONING,SHIREGREEN MEDICAL CENTRE,31647784,226.84,PRC DELEGATED CO-COMMISSIONING,S5 0RG
Department of Health,NHS Sheffield CCG,3/31/2020,C&M-GMS PCN DES Participation,PRC DELEGATED CO-COMMISSIONING,SHIREGREEN MEDICAL CENTRE,31647784,"1,217.78",PRC DELEGATED CO-COMMISSIONING,S5 0RG
Department of Health,NHS Sheffield CCG,3/31/2020,C&M-GMS PCO Seniority,PRC DELEGATED CO-COMMISSIONING,SHIREGREEN MEDICAL CENTRE,31647784,"1,127.85",PRC DELEGATED CO-COMMISSIONING,S5 0RG
Department of Health,NHS Sheffield CCG,3/31/2020,C&M-GMS Prem Cost Rent,PRC DELEGATED CO-COMMISSIONING,SHIREGREEN MEDICAL CENTRE,31647784,"1,792.33",PRC DELEGATED CO-COMMISSIONING,S5 0RG
Department of Health,NHS Sheffield CCG,3/31/2020,C&M-GMS Prem Notional Rent,PRC DELEGATED CO-COMMISSIONING,SHIREGREEN MEDICAL CENTRE,31647784,"5,375.00",PRC DELEGATED CO-COMMISSIONING,S5 0RG
Department of Health,NHS Sheffield CCG,3/31/2020,C&M-GMS Prof Fees Prescribing,PRC DELEGATED CO-COMMISSIONING,SHIREGREEN MEDICAL CENTRE,31647784,496.55,PRC DELEGATED CO-COMMISSIONING,S5 0RG
Department of Health,NHS Sheffield CCG,3/31/2020,C&M-GMS QOF Aspiration,PRC DELEGATED CO-COMMISSIONING,SHIREGREEN MEDICAL CENTRE,31647784,"6,849.89",PRC DELEGATED CO-COMMISSIONING,S5 0RG
Department of Health,NHS Sheffield CCG,3/31/2020,C&M-PMS Contract Value,PRC DELEGATED CO-COMMISSIONING,SLOAN MEDICAL CENTRE,31387509,"96,050.35",PRC DELEGATED CO-COMMISSIONING,S8 0YH
Department of Health,NHS Sheffield CCG,3/31/2020,C&M-PMS DES Minor Surgery,PRC DELEGATED CO-COMMISSIONING,SLOAN MEDICAL CENTRE,31387509,"2,760.00",PRC DELEGATED CO-COMMISSIONING,S8 0YH
Department of Health,NHS Sheffield CCG,3/31/2020,C&M-PMS GP Statutory Levy,PRC DELEGATED CO-COMMISSIONING,SLOAN MEDICAL CENTRE,31387509,928.00,PRC DELEGATED CO-COMMISSIONING,S8 0YH
Department of Health,NHS Sheffield CCG,3/31/2020,C&M-PMS PCN DES Participation,PRC DELEGATED CO-COMMISSIONING,SLOAN MEDICAL CENTRE,31387509,"1,809.97",PRC DELEGATED CO-COMMISSIONING,S8 0YH
Department of Health,NHS Sheffield CCG,3/31/2020,C&M-PMS PCO Locum Sickness,PRC DELEGATED CO-COMMISSIONING,SLOAN MEDICAL CENTRE,31387509,"8,493.74",PRC DELEGATED CO-COMMISSIONING,S8 0YH
Department of Health,NHS Sheffield CCG,3/31/2020,C&M-PMS PCO Seniority,PRC DELEGATED CO-COMMISSIONING,SLOAN MEDICAL CENTRE,31387509,"3,471.39",PRC DELEGATED CO-COMMISSIONING,S8 0YH
Department of Health,NHS Sheffield CCG,3/31/2020,C&M-PMS Prem Actual Rent,PRC DELEGATED CO-COMMISSIONING,SLOAN MEDICAL CENTRE,31387509,"15,970.83",PRC DELEGATED CO-COMMISSIONING,S8 0YH
Department of Health,NHS Sheffield CCG,3/31/2020,C&M-PMS Prem Notional Rent,PRC DELEGATED CO-COMMISSIONING,SLOAN MEDICAL CENTRE,31387509,747.50,PRC DELEGATED CO-COMMISSIONING,S8 0YH
Department of Health,NHS Sheffield CCG,3/31/2020,C&M-PMS Prem Water Rates,PRC DELEGATED CO-COMMISSIONING,SLOAN MEDICAL CENTRE,31387509,390.72,PRC DELEGATED CO-COMMISSIONING,S8 0YH
Department of Health,NHS Sheffield CCG,3/31/2020,C&M-PMS QOF Aspiration,PRC DELEGATED CO-COMMISSIONING,SLOAN MEDICAL CENTRE,31387509,"10,003.70",PRC DELEGATED CO-COMMISSIONING,S8 0YH
Department of Health,NHS Sheffield CCG,3/31/2020,Computer Software/License,PRIMARY CARE IT,SOFTCAT PLC,31663279,"141,222.00",As per quote ref SPTITH290120: Sophos Central Intercept X Endpoint Protection and X Server Protection both for 60 months. Configure Sophos Central & migrate/deploy to all servers & endpoints. IT Health support wrapper for all products 60 mo,SL7 1LW
Department of Health,NHS Sheffield CCG,3/31/2020,Computer Software/License,PRIMARY CARE IT,SOFTCAT PLC,31663279,"28,244.40",PRIMARY CARE IT,SL7 1LW
Department of Health,NHS Sheffield CCG,3/31/2020,C&M-PMS Contract Value,PRC DELEGATED CO-COMMISSIONING,SOTHALL MEDICAL CENTRE,31387511,"71,918.09",PRC DELEGATED CO-COMMISSIONING,S20 1HQ
Department of Health,NHS Sheffield CCG,3/31/2020,C&M-PMS DES Minor Surgery,PRC DELEGATED CO-COMMISSIONING,SOTHALL MEDICAL CENTRE,31387511,"1,395.00",PRC DELEGATED CO-COMMISSIONING,S20 1HQ
Department of Health,NHS Sheffield CCG,3/31/2020,C&M-PMS GP Statutory Levy,PRC DELEGATED CO-COMMISSIONING,SOTHALL MEDICAL CENTRE,31387511,705.96,PRC DELEGATED CO-COMMISSIONING,S20 1HQ
Department of Health,NHS Sheffield CCG,3/31/2020,C&M-PMS Out of Hours Opt Outs,PRC DELEGATED CO-COMMISSIONING,SOTHALL MEDICAL CENTRE,31387511,31.54,PRC DELEGATED CO-COMMISSIONING,S20 1HQ
Department of Health,NHS Sheffield CCG,3/31/2020,C&M-PMS PCN DES Participation,PRC DELEGATED CO-COMMISSIONING,SOTHALL MEDICAL CENTRE,31387511,"1,351.91",PRC DELEGATED CO-COMMISSIONING,S20 1HQ
Department of Health,NHS Sheffield CCG,3/31/2020,C&M-PMS PCO Seniority,PRC DELEGATED CO-COMMISSIONING,SOTHALL MEDICAL CENTRE,31387511,"2,668.74",PRC DELEGATED CO-COMMISSIONING,S20 1HQ
Department of Health,NHS Sheffield CCG,3/31/2020,C&M-PMS Prem Notional Rent,PRC DELEGATED CO-COMMISSIONING,SOTHALL MEDICAL CENTRE,31387511,"5,116.67",PRC DELEGATED CO-COMMISSIONING,S20 1HQ
Department of Health,NHS Sheffield CCG,3/31/2020,C&M-PMS QOF Aspiration,PRC DELEGATED CO-COMMISSIONING,SOTHALL MEDICAL CENTRE,31387511,"8,630.52",PRC DELEGATED CO-COMMISSIONING,S20 1HQ
Department of Health,NHS Sheffield CCG,3/31/2020,Clinical&Medical-Voluntary Sector,MENTAL HEALTH SERVICES - COLLABORATIVE COMMISSIONING,SOUTH YORKSHIRE EATING DISORDERS ASSOCIATION,31514649,"72,799.00",MENTAL HEALTH SERVICES - COLLABORATIVE COMMISSIONING,S6 3BT
Department of Health,NHS Sheffield CCG,3/31/2020,Cont Care- Adult 100% Fully Funded,CHC ADULT FULLY FUNDED,SOUTH YORKSHIRE HOUSING ASSOCIATION LTD,31514667,"233,147.00",CHC ADULT FULLY FUNDED,S1 4HF
Department of Health,NHS Sheffield CCG,3/31/2020,Cont Care- Adult 100% Fully Funded,CHC ADULT FULLY FUNDED,SOUTH YORKSHIRE HOUSING ASSOCIATION LTD,31514804,"46,763.59",CHC ADULT FULLY FUNDED,S1 4HF
Department of Health,NHS Sheffield CCG,3/31/2020,Cont Care-Physical Disab (<65),CHC ADULT FULLY FUNDED,SOUTH YORKSHIRE HOUSING ASSOCIATION LTD,31550065,"64,437.46",CHC ADULT FULLY FUNDED,S35 1RQ
Department of Health,NHS Sheffield CCG,3/31/2020,Cont Care- Adult 100% Fully Funded,CHC ADULT FULLY FUNDED,SOUTH YORKSHIRE HOUSING ASSOCIATION LTD,31569880,"26,261.60",CHC ADULT FULLY FUNDED,S1 4HF
Department of Health,NHS Sheffield CCG,3/31/2020,Cont Care- Adult 100% Fully Funded,CHC ADULT FULLY FUNDED,SOUTH YORKSHIRE HOUSING ASSOCIATION LTD,31569886,"25,500.00",CHC ADULT FULLY FUNDED,S1 4HF
Department of Health,NHS Sheffield CCG,3/31/2020,Clinical&Medical-Independent Sector,MENTAL HEALTH CONTRACTS,SOUTH YORKSHIRE HOUSING ASSOCIATION LTD,31590277,"275,469.12",MENTAL HEALTH CONTRACTS,S1 4EB
Department of Health,NHS Sheffield CCG,3/31/2020,Clinical&Medical-Independent Sector,MENTAL HEALTH CONTRACTS,SOUTH YORKSHIRE HOUSING ASSOCIATION LTD,31672704,"34,435.00",MENTAL HEALTH CONTRACTS,S1 4HF
Department of Health,NHS Sheffield CCG,3/31/2020,Clinical&Medical-Voluntary Sector,COLLABORATIVE COMMISSIONING,SOUTH YORKSHIRE HOUSING ASSOCIATION LTD,31704337,"139,149.72",COLLABORATIVE COMMISSIONING,S1 4EB
Department of Health,NHS Sheffield CCG,3/31/2020,Clinical&Medical-Voluntary Sector,COLLABORATIVE COMMISSIONING,SOUTH YORKSHIRE HOUSING ASSOCIATION LTD,31704352,"352,321.55",COLLABORATIVE COMMISSIONING,S1 4EB
Department of Health,NHS Sheffield CCG,3/31/2020,C&M-PMS Contract Value,PRC DELEGATED CO-COMMISSIONING,SOUTHEY GREEN MEDICAL CENTRE,31387513,"25,342.38",PRC DELEGATED CO-COMMISSIONING,S5 7QB
Department of Health,NHS Sheffield CCG,3/31/2020,C&M-PMS GP Statutory Levy,PRC DELEGATED CO-COMMISSIONING,SOUTHEY GREEN MEDICAL CENTRE,31387513,203.64,PRC DELEGATED CO-COMMISSIONING,S5 7QB
Department of Health,NHS Sheffield CCG,3/31/2020,C&M-PMS Out of Hours Opt Outs,PRC DELEGATED CO-COMMISSIONING,SOUTHEY GREEN MEDICAL CENTRE,31387513,8.62,PRC DELEGATED CO-COMMISSIONING,S5 7QB
Department of Health,NHS Sheffield CCG,3/31/2020,C&M-PMS PCN DES Participation,PRC DELEGATED CO-COMMISSIONING,SOUTHEY GREEN MEDICAL CENTRE,31387513,475.68,PRC DELEGATED CO-COMMISSIONING,S5 7QB
Department of Health,NHS Sheffield CCG,3/31/2020,C&M-PMS PCO Seniority,PRC DELEGATED CO-COMMISSIONING,SOUTHEY GREEN MEDICAL CENTRE,31387513,787.69,PRC DELEGATED CO-COMMISSIONING,S5 7QB
Department of Health,NHS Sheffield CCG,3/31/2020,C&M-PMS Prem Notional Rent,PRC DELEGATED CO-COMMISSIONING,SOUTHEY GREEN MEDICAL CENTRE,31387513,"3,362.50",PRC DELEGATED CO-COMMISSIONING,S5 7QB
Department of Health,NHS Sheffield CCG,3/31/2020,C&M-PMS QOF Aspiration,PRC DELEGATED CO-COMMISSIONING,SOUTHEY GREEN MEDICAL CENTRE,31387513,"2,668.69",PRC DELEGATED CO-COMMISSIONING,S5 7QB
Department of Health,NHS Sheffield CCG,3/31/2020,Clinical&Medical-Independent Sector,ACUTE COMMISSIONING,SPAMEDICA LTD,31590004,"146,546.34",https://nww.einvoice-prod.sbs.nhs.uk:8179/invoicepdf/b0c7baa9-a0c7-51c3-8524-0ffc2cf9c36c,M15 4SQ
Department of Health,NHS Sheffield CCG,3/31/2020,Clinical&Medical-Voluntary Sector,PALLIATIVE CARE,ST LUKES HOSPICE,31514420,"67,000.00",PALLIATIVE CARE,S11 9NE
Department of Health,NHS Sheffield CCG,3/31/2020,Clinical&Medical-Voluntary Sector,PALLIATIVE CARE,ST LUKES HOSPICE,31514428,"75,000.00",PALLIATIVE CARE,S11 9NE
Department of Health,NHS Sheffield CCG,3/31/2020,C&M-GMS IT Comm Servs -GP Practices,PRIMARY CARE IT,ST LUKES HOSPICE,31550113,"30,000.00",PRIMARY CARE IT,S11 9NE
Department of Health,NHS Sheffield CCG,3/31/2020,C&M-GMS Global Sum,PRC DELEGATED CO-COMMISSIONING,STANNINGTON MEDICAL CENTRE,31647788,"26,155.43",PRC DELEGATED CO-COMMISSIONING,S6 6BX
Department of Health,NHS Sheffield CCG,3/31/2020,C&M-GMS PCO Seniority,PRC DELEGATED CO-COMMISSIONING,STANNINGTON MEDICAL CENTRE,31647788,903.37,PRC DELEGATED CO-COMMISSIONING,S6 6BX
Department of Health,NHS Sheffield CCG,3/31/2020,C&M-GMS Prem Notional Rent,PRC DELEGATED CO-COMMISSIONING,STANNINGTON MEDICAL CENTRE,31647788,"2,575.00",PRC DELEGATED CO-COMMISSIONING,S6 6BX
Department of Health,NHS Sheffield CCG,3/31/2020,C&M-GMS QOF Aspiration,PRC DELEGATED CO-COMMISSIONING,STANNINGTON MEDICAL CENTRE,31647788,"2,881.70",PRC DELEGATED CO-COMMISSIONING,S6 6BX
Department of Health,NHS Sheffield CCG,3/31/2020,C&M-GMS Cost of Drugs -Prescribing,LOCAL ENHANCED SERVICES,STONECROFT MEDICAL CENTRE,31647786,296.94,LOCAL ENHANCED SERVICES,S12 2LJ
Department of Health,NHS Sheffield CCG,3/31/2020,C&M-GMS Global Sum,PRC DELEGATED CO-COMMISSIONING,STONECROFT MEDICAL CENTRE,31647786,"32,533.46",PRC DELEGATED CO-COMMISSIONING,S12 2LJ
Department of Health,NHS Sheffield CCG,3/31/2020,C&M-GMS MPIG Correction Factor,PRC DELEGATED CO-COMMISSIONING,STONECROFT MEDICAL CENTRE,31647786,309.13,PRC DELEGATED CO-COMMISSIONING,S12 2LJ
Department of Health,NHS Sheffield CCG,3/31/2020,C&M-GMS PCN DES Participation,PRC DELEGATED CO-COMMISSIONING,STONECROFT MEDICAL CENTRE,31647786,657.55,PRC DELEGATED CO-COMMISSIONING,S12 2LJ
Department of Health,NHS Sheffield CCG,3/31/2020,C&M-GMS PCO Seniority,PRC DELEGATED CO-COMMISSIONING,STONECROFT MEDICAL CENTRE,31647786,"1,553.15",PRC DELEGATED CO-COMMISSIONING,S12 2LJ
Department of Health,NHS Sheffield CCG,3/31/2020,C&M-GMS Prem Notional Rent,PRC DELEGATED CO-COMMISSIONING,STONECROFT MEDICAL CENTRE,31647786,"2,808.33",PRC DELEGATED CO-COMMISSIONING,S12 2LJ
Department of Health,NHS Sheffield CCG,3/31/2020,C&M-GMS Prof Fees Prescribing,PRC DELEGATED CO-COMMISSIONING,STONECROFT MEDICAL CENTRE,31647786,78.62,PRC DELEGATED CO-COMMISSIONING,S12 2LJ
Department of Health,NHS Sheffield CCG,3/31/2020,C&M-GMS QOF Aspiration,PRC DELEGATED CO-COMMISSIONING,STONECROFT MEDICAL CENTRE,31647786,"4,228.40",PRC DELEGATED CO-COMMISSIONING,S12 2LJ
Department of Health,NHS Sheffield CCG,3/31/2020,Clinical&Medical-Independent Sector,MENTAL HEALTH CONTRACTS,SUSASH GB LTD T/A EAGLE HOUSE,31672707,"30,092.00",MENTAL HEALTH CONTRACTS,S11 8NP
Department of Health,NHS Sheffield CCG,3/31/2020,C&M-GMS Cost of Drugs -Prescribing,LOCAL ENHANCED SERVICES,TOTLEY RISE MEDICAL CENTRE,31647790,"1,021.94",LOCAL ENHANCED SERVICES,S17 4DQ
Department of Health,NHS Sheffield CCG,3/31/2020,C&M-GMS Global Sum,PRC DELEGATED CO-COMMISSIONING,TOTLEY RISE MEDICAL CENTRE,31647790,"25,904.58",PRC DELEGATED CO-COMMISSIONING,S17 4DQ
Department of Health,NHS Sheffield CCG,3/31/2020,C&M-GMS MPIG Correction Factor,PRC DELEGATED CO-COMMISSIONING,TOTLEY RISE MEDICAL CENTRE,31647790,51.57,PRC DELEGATED CO-COMMISSIONING,S17 4DQ
Department of Health,NHS Sheffield CCG,3/31/2020,C&M-GMS PCN DES Participation,PRC DELEGATED CO-COMMISSIONING,TOTLEY RISE MEDICAL CENTRE,31647790,504.35,PRC DELEGATED CO-COMMISSIONING,S17 4DQ
Department of Health,NHS Sheffield CCG,3/31/2020,C&M-GMS PCO Seniority,PRC DELEGATED CO-COMMISSIONING,TOTLEY RISE MEDICAL CENTRE,31647790,"1,127.85",PRC DELEGATED CO-COMMISSIONING,S17 4DQ
Department of Health,NHS Sheffield CCG,3/31/2020,C&M-GMS Prem Notional Rent,PRC DELEGATED CO-COMMISSIONING,TOTLEY RISE MEDICAL CENTRE,31647790,"1,604.17",PRC DELEGATED CO-COMMISSIONING,S17 4DQ
Department of Health,NHS Sheffield CCG,3/31/2020,C&M-GMS Prof Fees Prescribing,PRC DELEGATED CO-COMMISSIONING,TOTLEY RISE MEDICAL CENTRE,31647790,113.79,PRC DELEGATED CO-COMMISSIONING,S17 4DQ
Department of Health,NHS Sheffield CCG,3/31/2020,C&M-GMS QOF Aspiration,PRC DELEGATED CO-COMMISSIONING,TOTLEY RISE MEDICAL CENTRE,31647790,"2,304.18",PRC DELEGATED CO-COMMISSIONING,S17 4DQ
Department of Health,NHS Sheffield CCG,3/31/2020,C&M-GMS Cost of Drugs -Prescribing,LOCAL ENHANCED SERVICES,TRAMWAYS MEDICAL CENTRE,31647792,"2,158.07",LOCAL ENHANCED SERVICES,S6 4JQ
Department of Health,NHS Sheffield CCG,3/31/2020,C&M-GMS Global Sum,PRC DELEGATED CO-COMMISSIONING,TRAMWAYS MEDICAL CENTRE,31647792,"61,153.02",PRC DELEGATED CO-COMMISSIONING,S6 4JQ
Department of Health,NHS Sheffield CCG,3/31/2020,C&M-GMS PCN DES Participation,PRC DELEGATED CO-COMMISSIONING,TRAMWAYS MEDICAL CENTRE,31647792,"1,263.94",PRC DELEGATED CO-COMMISSIONING,S6 4JQ
Department of Health,NHS Sheffield CCG,3/31/2020,C&M-GMS PCO Seniority,PRC DELEGATED CO-COMMISSIONING,TRAMWAYS MEDICAL CENTRE,31647792,"3,204.18",PRC DELEGATED CO-COMMISSIONING,S6 4JQ
Department of Health,NHS Sheffield CCG,3/31/2020,C&M-GMS Prem Cost Rent,PRC DELEGATED CO-COMMISSIONING,TRAMWAYS MEDICAL CENTRE,31647792,"4,012.75",PRC DELEGATED CO-COMMISSIONING,S6 4JQ
Department of Health,NHS Sheffield CCG,3/31/2020,C&M-GMS Prof Fees Prescribing,PRC DELEGATED CO-COMMISSIONING,TRAMWAYS MEDICAL CENTRE,31647792,273.11,PRC DELEGATED CO-COMMISSIONING,S6 4JQ
Department of Health,NHS Sheffield CCG,3/31/2020,C&M-GMS QOF Aspiration,PRC DELEGATED CO-COMMISSIONING,TRAMWAYS MEDICAL CENTRE,31647792,"5,645.42",PRC DELEGATED CO-COMMISSIONING,S6 4JQ
Department of Health,NHS Sheffield CCG,3/31/2020,Hcare Srv Rec NHS Trust-Contract Baseline,ACUTE COMMISSIONING,UNITED LINCOLNSHIRE HOSPITALS NHS TRUST,31417076,"26,180.60",https://nww.einvoice-prod.sbs.nhs.uk:8179/invoicepdf/baebefa1-c667-53df-af60-e58997d44748,LN2 5QY
Department of Health,NHS Sheffield CCG,3/31/2020,NHS Payables <1Yr-Non PO Accruals,ACUTE CHILDRENS SERVICES,UNITED LINCOLNSHIRE HOSPITALS NHS TRUST,31709573,"27,985.26",ACUTE CHILDRENS SERVICES,LN2 5QY
Department of Health,NHS Sheffield CCG,3/31/2020,C&M-PMS Contract Value,PRC DELEGATED CO-COMMISSIONING,UNIVERSITY HEALTH SERVICE,31387516,"-16,310.35",PRC DELEGATED CO-COMMISSIONING,S3 7QP
Department of Health,NHS Sheffield CCG,3/31/2020,C&M-PMS DES Extended Hours Access,PRC DELEGATED CO-COMMISSIONING,UNIVERSITY HEALTH SERVICE,31387516,"-4,573.92",PRC DELEGATED CO-COMMISSIONING,S3 7QP
Department of Health,NHS Sheffield CCG,3/31/2020,C&M-PMS GP Statutory Levy,PRC DELEGATED CO-COMMISSIONING,UNIVERSITY HEALTH SERVICE,31387516,"-4,283.37",PRC DELEGATED CO-COMMISSIONING,S3 7QP
Department of Health,NHS Sheffield CCG,3/31/2020,C&M-PMS Out of Hours Opt Outs,PRC DELEGATED CO-COMMISSIONING,UNIVERSITY HEALTH SERVICE,31387516,"-10,308.61",PRC DELEGATED CO-COMMISSIONING,S3 7QP
Department of Health,NHS Sheffield CCG,3/31/2020,C&M-PMS PCN DES Clinical Director,PRC DELEGATED CO-COMMISSIONING,UNIVERSITY HEALTH SERVICE,31387516,"-2,139.21",PRC DELEGATED CO-COMMISSIONING,S3 7QP
Department of Health,NHS Sheffield CCG,3/31/2020,C&M-PMS PCN DES PCN support,LOCAL ENHANCED SERVICES,UNIVERSITY HEALTH SERVICE,31387516,"-4,682.13",LOCAL ENHANCED SERVICES,S3 7QP
Department of Health,NHS Sheffield CCG,3/31/2020,C&M-PMS Contract Value,PRC DELEGATED CO-COMMISSIONING,UNIVERSITY HEALTH SERVICE,31387517,"213,839.78",PRC DELEGATED CO-COMMISSIONING,S3 7QP
Department of Health,NHS Sheffield CCG,3/31/2020,C&M-PMS DES Extended Hours Access,PRC DELEGATED CO-COMMISSIONING,UNIVERSITY HEALTH SERVICE,31387517,"4,573.92",PRC DELEGATED CO-COMMISSIONING,S3 7QP
Department of Health,NHS Sheffield CCG,3/31/2020,C&M-PMS DES Minor Surgery,PRC DELEGATED CO-COMMISSIONING,UNIVERSITY HEALTH SERVICE,31387517,"2,890.00",PRC DELEGATED CO-COMMISSIONING,S3 7QP
Department of Health,NHS Sheffield CCG,3/31/2020,C&M-PMS GP Statutory Levy,PRC DELEGATED CO-COMMISSIONING,UNIVERSITY HEALTH SERVICE,31387517,"2,448.26",PRC DELEGATED CO-COMMISSIONING,S3 7QP
Department of Health,NHS Sheffield CCG,3/31/2020,C&M-PMS Out of Hours Opt Outs,PRC DELEGATED CO-COMMISSIONING,UNIVERSITY HEALTH SERVICE,31387517,790.20,PRC DELEGATED CO-COMMISSIONING,S3 7QP
Department of Health,NHS Sheffield CCG,3/31/2020,C&M-PMS PCN DES Clinical Director,PRC DELEGATED CO-COMMISSIONING,UNIVERSITY HEALTH SERVICE,31387517,"2,139.21",PRC DELEGATED CO-COMMISSIONING,S3 7QP
Department of Health,NHS Sheffield CCG,3/31/2020,C&M-PMS PCN DES PCN support,LOCAL ENHANCED SERVICES,UNIVERSITY HEALTH SERVICE,31387517,"4,682.13",LOCAL ENHANCED SERVICES,S3 7QP
Department of Health,NHS Sheffield CCG,3/31/2020,C&M-PMS PCN DES Participation,PRC DELEGATED CO-COMMISSIONING,UNIVERSITY HEALTH SERVICE,31387517,"3,535.52",PRC DELEGATED CO-COMMISSIONING,S3 7QP
Department of Health,NHS Sheffield CCG,3/31/2020,C&M-PMS PCO Seniority,PRC DELEGATED CO-COMMISSIONING,UNIVERSITY HEALTH SERVICE,31387517,"3,156.21",PRC DELEGATED CO-COMMISSIONING,S3 7QP
Department of Health,NHS Sheffield CCG,3/31/2020,C&M-PMS Prem Notional Rent,PRC DELEGATED CO-COMMISSIONING,UNIVERSITY HEALTH SERVICE,31387517,"15,833.33",PRC DELEGATED CO-COMMISSIONING,S3 7QP
Department of Health,NHS Sheffield CCG,3/31/2020,C&M-PMS QOF Aspiration,PRC DELEGATED CO-COMMISSIONING,UNIVERSITY HEALTH SERVICE,31387517,"4,031.41",PRC DELEGATED CO-COMMISSIONING,S3 7QP
Department of Health,NHS Sheffield CCG,3/31/2020,Other Gen Supplies & Srv,BEREAVEMENT SERVICE,UNIVERSITY OF SHEFFIELD,31332160,"30,000.00",BEREAVEMENT SERVICE,S10 2TN
Department of Health,NHS Sheffield CCG,3/31/2020,C&M-GMS Cost of Drugs -Prescribing,LOCAL ENHANCED SERVICES,UPPERTHORPE MEDICAL CENTRE,31647795,"5,069.21",LOCAL ENHANCED SERVICES,S6 3FT
Department of Health,NHS Sheffield CCG,3/31/2020,C&M-GMS Global Sum,PRC DELEGATED CO-COMMISSIONING,UPPERTHORPE MEDICAL CENTRE,31647795,"84,954.72",PRC DELEGATED CO-COMMISSIONING,S6 3FT
Department of Health,NHS Sheffield CCG,3/31/2020,C&M-GMS MPIG Correction Factor,PRC DELEGATED CO-COMMISSIONING,UPPERTHORPE MEDICAL CENTRE,31647795,662.87,PRC DELEGATED CO-COMMISSIONING,S6 3FT
Department of Health,NHS Sheffield CCG,3/31/2020,C&M-GMS PCN DES Participation,PRC DELEGATED CO-COMMISSIONING,UPPERTHORPE MEDICAL CENTRE,31647795,"1,681.95",PRC DELEGATED CO-COMMISSIONING,S6 3FT
Department of Health,NHS Sheffield CCG,3/31/2020,C&M-GMS PCO Locum Sickness,PRC DELEGATED CO-COMMISSIONING,UPPERTHORPE MEDICAL CENTRE,31647795,"5,714.90",PRC DELEGATED CO-COMMISSIONING,S6 3FT
Department of Health,NHS Sheffield CCG,3/31/2020,C&M-GMS PCO Seniority,PRC DELEGATED CO-COMMISSIONING,UPPERTHORPE MEDICAL CENTRE,31647795,"2,505.51",PRC DELEGATED CO-COMMISSIONING,S6 3FT
Department of Health,NHS Sheffield CCG,3/31/2020,C&M-GMS Prem Actual Rent,PRC DELEGATED CO-COMMISSIONING,UPPERTHORPE MEDICAL CENTRE,31647795,"29,475.00",PRC DELEGATED CO-COMMISSIONING,S6 3FT
Department of Health,NHS Sheffield CCG,3/31/2020,C&M-GMS Prem Notional Rent,PRC DELEGATED CO-COMMISSIONING,UPPERTHORPE MEDICAL CENTRE,31647795,"2,547.83",PRC DELEGATED CO-COMMISSIONING,S6 3FT
Department of Health,NHS Sheffield CCG,3/31/2020,C&M-GMS Prof Fees Prescribing,PRC DELEGATED CO-COMMISSIONING,UPPERTHORPE MEDICAL CENTRE,31647795,428.27,PRC DELEGATED CO-COMMISSIONING,S6 3FT
Department of Health,NHS Sheffield CCG,3/31/2020,C&M-GMS QOF Aspiration,PRC DELEGATED CO-COMMISSIONING,UPPERTHORPE MEDICAL CENTRE,31647795,"9,072.83",PRC DELEGATED CO-COMMISSIONING,S6 3FT
Department of Health,NHS Sheffield CCG,3/31/2020,C&M-PMS Contract Value,PRC DELEGATED CO-COMMISSIONING,UPWELL STREET SURGERY,31387519,"37,734.18",PRC DELEGATED CO-COMMISSIONING,S4 8AN
Department of Health,NHS Sheffield CCG,3/31/2020,C&M-PMS DES Learn Dsblty Hlth Chk,PRC DELEGATED CO-COMMISSIONING,UPWELL STREET SURGERY,31387519,140.00,PRC DELEGATED CO-COMMISSIONING,S4 8AN
Department of Health,NHS Sheffield CCG,3/31/2020,C&M-PMS DES Minor Surgery,PRC DELEGATED CO-COMMISSIONING,UPWELL STREET SURGERY,31387519,610.00,PRC DELEGATED CO-COMMISSIONING,S4 8AN
Department of Health,NHS Sheffield CCG,3/31/2020,C&M-PMS GP Statutory Levy,PRC DELEGATED CO-COMMISSIONING,UPWELL STREET SURGERY,31387519,335.16,PRC DELEGATED CO-COMMISSIONING,S4 8AN
Department of Health,NHS Sheffield CCG,3/31/2020,C&M-PMS Out of Hours Opt Outs,PRC DELEGATED CO-COMMISSIONING,UPWELL STREET SURGERY,31387519,64.17,PRC DELEGATED CO-COMMISSIONING,S4 8AN
Department of Health,NHS Sheffield CCG,3/31/2020,C&M-PMS PCN DES Participation,PRC DELEGATED CO-COMMISSIONING,UPWELL STREET SURGERY,31387519,713.41,PRC DELEGATED CO-COMMISSIONING,S4 8AN
Department of Health,NHS Sheffield CCG,3/31/2020,C&M-PMS PCO Seniority,PRC DELEGATED CO-COMMISSIONING,UPWELL STREET SURGERY,31387519,809.71,PRC DELEGATED CO-COMMISSIONING,S4 8AN
Department of Health,NHS Sheffield CCG,3/31/2020,C&M-PMS Prem Notional Rent,PRC DELEGATED CO-COMMISSIONING,UPWELL STREET SURGERY,31387519,"8,137.50",PRC DELEGATED CO-COMMISSIONING,S4 8AN
Department of Health,NHS Sheffield CCG,3/31/2020,C&M-PMS Prem Rates,PRC DELEGATED CO-COMMISSIONING,UPWELL STREET SURGERY,31387519,"1,340.00",PRC DELEGATED CO-COMMISSIONING,S4 8AN
Department of Health,NHS Sheffield CCG,3/31/2020,C&M-PMS QOF Aspiration,PRC DELEGATED CO-COMMISSIONING,UPWELL STREET SURGERY,31387519,"4,056.38",PRC DELEGATED CO-COMMISSIONING,S4 8AN
Department of Health,NHS Sheffield CCG,3/31/2020,C&M-PMS Contract Value,PRC DELEGATED CO-COMMISSIONING,VALLEY MEDICAL CENTRE,31387521,"79,516.07",PRC DELEGATED CO-COMMISSIONING,S36 1BX
Department of Health,NHS Sheffield CCG,3/31/2020,C&M-PMS DES Extended Hours Access,PRC DELEGATED CO-COMMISSIONING,VALLEY MEDICAL CENTRE,31387521,"2,533.07",PRC DELEGATED CO-COMMISSIONING,S36 1BX
Department of Health,NHS Sheffield CCG,3/31/2020,C&M-PMS DES Minor Surgery,PRC DELEGATED CO-COMMISSIONING,VALLEY MEDICAL CENTRE,31387521,"1,835.00",PRC DELEGATED CO-COMMISSIONING,S36 1BX
Department of Health,NHS Sheffield CCG,3/31/2020,C&M-PMS GP Statutory Levy,PRC DELEGATED CO-COMMISSIONING,VALLEY MEDICAL CENTRE,31387521,672.92,PRC DELEGATED CO-COMMISSIONING,S36 1BX
Department of Health,NHS Sheffield CCG,3/31/2020,C&M-PMS Out of Hours Opt Outs,PRC DELEGATED CO-COMMISSIONING,VALLEY MEDICAL CENTRE,31387521,24.82,PRC DELEGATED CO-COMMISSIONING,S36 1BX
Department of Health,NHS Sheffield CCG,3/31/2020,C&M-PMS PCN DES Clinical Director,PRC DELEGATED CO-COMMISSIONING,VALLEY MEDICAL CENTRE,31387521,"1,184.71",PRC DELEGATED CO-COMMISSIONING,S36 1BX
Department of Health,NHS Sheffield CCG,3/31/2020,C&M-PMS PCN DES PCN support,LOCAL ENHANCED SERVICES,VALLEY MEDICAL CENTRE,31387521,"2,593.00",LOCAL ENHANCED SERVICES,S36 1BX
Department of Health,NHS Sheffield CCG,3/31/2020,C&M-PMS PCN DES Participation,PRC DELEGATED CO-COMMISSIONING,VALLEY MEDICAL CENTRE,31387521,"1,492.89",PRC DELEGATED CO-COMMISSIONING,S36 1BX
Department of Health,NHS Sheffield CCG,3/31/2020,C&M-PMS PCO Seniority,PRC DELEGATED CO-COMMISSIONING,VALLEY MEDICAL CENTRE,31387521,"3,246.98",PRC DELEGATED CO-COMMISSIONING,S36 1BX
Department of Health,NHS Sheffield CCG,3/31/2020,C&M-PMS Prem Actual Rent,PRC DELEGATED CO-COMMISSIONING,VALLEY MEDICAL CENTRE,31387521,"25,468.75",PRC DELEGATED CO-COMMISSIONING,S36 1BX
Department of Health,NHS Sheffield CCG,3/31/2020,C&M-PMS QOF Aspiration,PRC DELEGATED CO-COMMISSIONING,VALLEY MEDICAL CENTRE,31387521,"8,453.91",PRC DELEGATED CO-COMMISSIONING,S36 1BX
Department of Health,NHS Sheffield CCG,3/31/2020,Cont Care-Physical Disab (<65),CHC ADULT FULLY FUNDED,VALORUM CARE LTD,31550015,"52,258.18",CHC ADULT FULLY FUNDED,LS19 7RW
Department of Health,NHS Sheffield CCG,3/31/2020,External Consultancy Fees,CLINICAL LEADS,VOLUNTARY ACTION ROTHERHAM,31339345,"50,000.00",Cancer Alliance - Kite Mark Funding,S60 2HX
Department of Health,NHS Sheffield CCG,3/31/2020,Clinical&Medical-Voluntary Sector,BEREAVEMENT SERVICE,VOLUNTARY ACTION ROTHERHAM,31569894,"50,000.00",BEREAVEMENT SERVICE,S60 2HX
Department of Health,NHS Sheffield CCG,3/31/2020,C&M-GMS Cost of Drugs -Prescribing,LOCAL ENHANCED SERVICES,WALKLEY HOUSE MEDICAL CENTRE,31647800,"2,852.32",LOCAL ENHANCED SERVICES,S6 3TN
Department of Health,NHS Sheffield CCG,3/31/2020,C&M-GMS Global Sum,PRC DELEGATED CO-COMMISSIONING,WALKLEY HOUSE MEDICAL CENTRE,31647800,"85,597.10",PRC DELEGATED CO-COMMISSIONING,S6 3TN
Department of Health,NHS Sheffield CCG,3/31/2020,C&M-GMS PCN DES Participation,PRC DELEGATED CO-COMMISSIONING,WALKLEY HOUSE MEDICAL CENTRE,31647800,"1,749.49",PRC DELEGATED CO-COMMISSIONING,S6 3TN
Department of Health,NHS Sheffield CCG,3/31/2020,C&M-GMS PCO Seniority,PRC DELEGATED CO-COMMISSIONING,WALKLEY HOUSE MEDICAL CENTRE,31647800,"1,298.70",PRC DELEGATED CO-COMMISSIONING,S6 3TN
Department of Health,NHS Sheffield CCG,3/31/2020,C&M-GMS Prem Notional Rent,PRC DELEGATED CO-COMMISSIONING,WALKLEY HOUSE MEDICAL CENTRE,31647800,"5,635.50",PRC DELEGATED CO-COMMISSIONING,S6 3TN
Department of Health,NHS Sheffield CCG,3/31/2020,C&M-GMS Prem Water Rates,PRC DELEGATED CO-COMMISSIONING,WALKLEY HOUSE MEDICAL CENTRE,31647800,148.37,PRC DELEGATED CO-COMMISSIONING,S6 3TN
Department of Health,NHS Sheffield CCG,3/31/2020,C&M-GMS Prof Fees Prescribing,PRC DELEGATED CO-COMMISSIONING,WALKLEY HOUSE MEDICAL CENTRE,31647800,333.11,PRC DELEGATED CO-COMMISSIONING,S6 3TN
Department of Health,NHS Sheffield CCG,3/31/2020,C&M-GMS QOF Aspiration,PRC DELEGATED CO-COMMISSIONING,WALKLEY HOUSE MEDICAL CENTRE,31647800,"8,602.90",PRC DELEGATED CO-COMMISSIONING,S6 3TN
Department of Health,NHS Sheffield CCG,3/31/2020,C&M-GMS Cost of Drugs -Prescribing,LOCAL ENHANCED SERVICES,WHITE HOUSE SURGERY SHEFFIELD,31647798,"2,218.31",LOCAL ENHANCED SERVICES,S2 1SL
Department of Health,NHS Sheffield CCG,3/31/2020,C&M-GMS Global Sum,PRC DELEGATED CO-COMMISSIONING,WHITE HOUSE SURGERY SHEFFIELD,31647798,"51,680.56",PRC DELEGATED CO-COMMISSIONING,S2 1SL
Department of Health,NHS Sheffield CCG,3/31/2020,C&M-GMS MPIG Correction Factor,PRC DELEGATED CO-COMMISSIONING,WHITE HOUSE SURGERY SHEFFIELD,31647798,695.65,PRC DELEGATED CO-COMMISSIONING,S2 1SL
Department of Health,NHS Sheffield CCG,3/31/2020,C&M-GMS PCN DES Participation,PRC DELEGATED CO-COMMISSIONING,WHITE HOUSE SURGERY SHEFFIELD,31647798,"1,038.45",PRC DELEGATED CO-COMMISSIONING,S2 1SL
Department of Health,NHS Sheffield CCG,3/31/2020,C&M-GMS PCO Seniority,PRC DELEGATED CO-COMMISSIONING,WHITE HOUSE SURGERY SHEFFIELD,31647798,"1,298.12",PRC DELEGATED CO-COMMISSIONING,S2 1SL
Department of Health,NHS Sheffield CCG,3/31/2020,C&M-GMS Prem Notional Rent,PRC DELEGATED CO-COMMISSIONING,WHITE HOUSE SURGERY SHEFFIELD,31647798,"9,412.50",PRC DELEGATED CO-COMMISSIONING,S2 1SL
Department of Health,NHS Sheffield CCG,3/31/2020,C&M-GMS Prem Water Rates,PRC DELEGATED CO-COMMISSIONING,WHITE HOUSE SURGERY SHEFFIELD,31647798,222.70,PRC DELEGATED CO-COMMISSIONING,S2 1SL
Department of Health,NHS Sheffield CCG,3/31/2020,C&M-GMS Prof Fees Prescribing,PRC DELEGATED CO-COMMISSIONING,WHITE HOUSE SURGERY SHEFFIELD,31647798,488.28,PRC DELEGATED CO-COMMISSIONING,S2 1SL
Department of Health,NHS Sheffield CCG,3/31/2020,C&M-GMS QOF Aspiration,PRC DELEGATED CO-COMMISSIONING,WHITE HOUSE SURGERY SHEFFIELD,31647798,"6,233.52",PRC DELEGATED CO-COMMISSIONING,S2 1SL
Department of Health,NHS Sheffield CCG,3/31/2020,Cont Care-Physical Disab (<65),CHC ADULT FULLY FUNDED,WILLOWBECK HEALTH CARE LTD,31550023,"150,183.47",CHC ADULT FULLY FUNDED,S4 8AR
Department of Health,NHS Sheffield CCG,3/31/2020,C&M-PMS Contract Value,PRC DELEGATED CO-COMMISSIONING,WINCOBANK MEDICAL CENTRE,31387525,"63,053.05",PRC DELEGATED CO-COMMISSIONING,S9 1DJ
Department of Health,NHS Sheffield CCG,3/31/2020,C&M-PMS DES Minor Surgery,PRC DELEGATED CO-COMMISSIONING,WINCOBANK MEDICAL CENTRE,31387525,"1,000.00",PRC DELEGATED CO-COMMISSIONING,S9 1DJ
Department of Health,NHS Sheffield CCG,3/31/2020,C&M-PMS GP Statutory Levy,PRC DELEGATED CO-COMMISSIONING,WINCOBANK MEDICAL CENTRE,31387525,535.92,PRC DELEGATED CO-COMMISSIONING,S9 1DJ
Department of Health,NHS Sheffield CCG,3/31/2020,C&M-PMS Out of Hours Opt Outs,PRC DELEGATED CO-COMMISSIONING,WINCOBANK MEDICAL CENTRE,31387525,21.02,PRC DELEGATED CO-COMMISSIONING,S9 1DJ
Department of Health,NHS Sheffield CCG,3/31/2020,C&M-PMS PCN DES Participation,PRC DELEGATED CO-COMMISSIONING,WINCOBANK MEDICAL CENTRE,31387525,"1,179.69",PRC DELEGATED CO-COMMISSIONING,S9 1DJ
Department of Health,NHS Sheffield CCG,3/31/2020,C&M-PMS PCO Seniority,PRC DELEGATED CO-COMMISSIONING,WINCOBANK MEDICAL CENTRE,31387525,809.71,PRC DELEGATED CO-COMMISSIONING,S9 1DJ
Department of Health,NHS Sheffield CCG,3/31/2020,C&M-PMS Prem Healthcentre Rent,PRC DELEGATED CO-COMMISSIONING,WINCOBANK MEDICAL CENTRE,31387525,"45,121.79",PRC DELEGATED CO-COMMISSIONING,S9 1DJ
Department of Health,NHS Sheffield CCG,3/31/2020,C&M-PMS QOF Aspiration,PRC DELEGATED CO-COMMISSIONING,WINCOBANK MEDICAL CENTRE,31387525,"6,283.36",PRC DELEGATED CO-COMMISSIONING,S9 1DJ
Department of Health,NHS Sheffield CCG,3/31/2020,C&M-PMS Contract Value,PRC DELEGATED CO-COMMISSIONING,WOODHOUSE HEALTH CENTRE,31387523,"101,457.37",PRC DELEGATED CO-COMMISSIONING,S13 7LY
Department of Health,NHS Sheffield CCG,3/31/2020,C&M-PMS DES Minor Surgery,PRC DELEGATED CO-COMMISSIONING,WOODHOUSE HEALTH CENTRE,31387523,"2,440.00",PRC DELEGATED CO-COMMISSIONING,S13 7LY
Department of Health,NHS Sheffield CCG,3/31/2020,C&M-PMS GP Statutory Levy,PRC DELEGATED CO-COMMISSIONING,WOODHOUSE HEALTH CENTRE,31387523,857.64,PRC DELEGATED CO-COMMISSIONING,S13 7LY
Department of Health,NHS Sheffield CCG,3/31/2020,C&M-PMS Out of Hours Opt Outs,PRC DELEGATED CO-COMMISSIONING,WOODHOUSE HEALTH CENTRE,31387523,28.97,PRC DELEGATED CO-COMMISSIONING,S13 7LY
Department of Health,NHS Sheffield CCG,3/31/2020,C&M-PMS PCN DES Participation,PRC DELEGATED CO-COMMISSIONING,WOODHOUSE HEALTH CENTRE,31387523,"1,906.58",PRC DELEGATED CO-COMMISSIONING,S13 7LY
Department of Health,NHS Sheffield CCG,3/31/2020,C&M-PMS PCO Seniority,PRC DELEGATED CO-COMMISSIONING,WOODHOUSE HEALTH CENTRE,31387523,"3,780.10",PRC DELEGATED CO-COMMISSIONING,S13 7LY
Department of Health,NHS Sheffield CCG,3/31/2020,C&M-PMS Prem Notional Rent,PRC DELEGATED CO-COMMISSIONING,WOODHOUSE HEALTH CENTRE,31387523,"6,338.58",PRC DELEGATED CO-COMMISSIONING,S13 7LY
Department of Health,NHS Sheffield CCG,3/31/2020,C&M-PMS Prem Water Rates,PRC DELEGATED CO-COMMISSIONING,WOODHOUSE HEALTH CENTRE,31387523,626.28,PRC DELEGATED CO-COMMISSIONING,S13 7LY
Department of Health,NHS Sheffield CCG,3/31/2020,C&M-PMS QOF Aspiration,PRC DELEGATED CO-COMMISSIONING,WOODHOUSE HEALTH CENTRE,31387523,"13,912.30",PRC DELEGATED CO-COMMISSIONING,S13 7LY
Department of Health,NHS Sheffield CCG,3/31/2020,C&M-PMS Contract Value,PRC DELEGATED CO-COMMISSIONING,WOODSEATS MEDICAL CENTRE,31413028,"78,771.55",PRC DELEGATED CO-COMMISSIONING,S8 0SH
Department of Health,NHS Sheffield CCG,3/31/2020,C&M-PMS DES Minor Surgery,PRC DELEGATED CO-COMMISSIONING,WOODSEATS MEDICAL CENTRE,31413028,"4,870.00",PRC DELEGATED CO-COMMISSIONING,S8 0SH
Department of Health,NHS Sheffield CCG,3/31/2020,C&M-PMS GP Statutory Levy,PRC DELEGATED CO-COMMISSIONING,WOODSEATS MEDICAL CENTRE,31413028,720.72,PRC DELEGATED CO-COMMISSIONING,S8 0SH
Department of Health,NHS Sheffield CCG,3/31/2020,C&M-PMS Out of Hours Opt Outs,PRC DELEGATED CO-COMMISSIONING,WOODSEATS MEDICAL CENTRE,31413028,5.08,PRC DELEGATED CO-COMMISSIONING,S8 0SH
Department of Health,NHS Sheffield CCG,3/31/2020,C&M-PMS PCN DES Participation,PRC DELEGATED CO-COMMISSIONING,WOODSEATS MEDICAL CENTRE,31413028,"1,439.13",PRC DELEGATED CO-COMMISSIONING,S8 0SH
Department of Health,NHS Sheffield CCG,3/31/2020,C&M-PMS PCO Locum Sickness,PRC DELEGATED CO-COMMISSIONING,WOODSEATS MEDICAL CENTRE,31413028,"8,762.52",PRC DELEGATED CO-COMMISSIONING,S8 0SH
Department of Health,NHS Sheffield CCG,3/31/2020,C&M-PMS PCO Seniority,PRC DELEGATED CO-COMMISSIONING,WOODSEATS MEDICAL CENTRE,31413028,493.61,PRC DELEGATED CO-COMMISSIONING,S8 0SH
Department of Health,NHS Sheffield CCG,3/31/2020,C&M-PMS Prem Notional Rent,PRC DELEGATED CO-COMMISSIONING,WOODSEATS MEDICAL CENTRE,31413028,"11,666.67",PRC DELEGATED CO-COMMISSIONING,S8 0SH
Department of Health,NHS Sheffield CCG,3/31/2020,C&M-PMS QOF Aspiration,PRC DELEGATED CO-COMMISSIONING,WOODSEATS MEDICAL CENTRE,31413028,"8,242.64",PRC DELEGATED CO-COMMISSIONING,S8 0SH
Department of Health,NHS Sheffield CCG,3/31/2020,NHS Payables <1Yr-Non PO Accruals,ACUTE CHILDRENS SERVICES,YORK TEACHING HOSPITAL NHS FOUNDATION TRUST,31709576,"29,013.29",ACUTE CHILDRENS SERVICES,YO30 4RY
Department of Health,NHS Sheffield CCG,3/31/2020,Hcare Srv Rec NHS Trust-Contract Baseline,NHS 111,YORKSHIRE AMBULANCE SERVICE NHS TRUST,31361576,"133,605.27",https://nww.einvoice-prod.sbs.nhs.uk:8179/invoicepdf/3bf89933-3759-52b9-8009-0e63b32ba8ad,WF2 0XQ
Department of Health,NHS Sheffield CCG,3/31/2020,Hcare Srv Rec NHS Trust-Contract Baseline,PATIENT TRANSPORT,YORKSHIRE AMBULANCE SERVICE NHS TRUST,31361580,"267,243.94",https://nww.einvoice-prod.sbs.nhs.uk:8179/invoicepdf/88032e55-05be-5988-92a1-87d9ddd699f2,WF2 0XQ
Department of Health,NHS Sheffield CCG,3/31/2020,Hcare Srv Rec NHS Trust-Contract Baseline,AMBULANCE SERVICES,YORKSHIRE AMBULANCE SERVICE NHS TRUST,31361582,"127,348.75",https://nww.einvoice-prod.sbs.nhs.uk:8179/invoicepdf/2e794391-ff45-5b53-8139-2872abf54824,WF2 0XQ
Department of Health,NHS Sheffield CCG,3/31/2020,Hcare Srv Rec NHS Trust-Contract Baseline,AMBULANCE SERVICES,YORKSHIRE AMBULANCE SERVICE NHS TRUST,31361586,"1,674,240.00",https://nww.einvoice-prod.sbs.nhs.uk:8179/invoicepdf/fd685079-a56c-56a5-9718-5380d2084b8f,WF2 0XQ
Department of Health,NHS Sheffield CCG,3/31/2020,NHS Payables <1Yr-Non PO Accruals,ACUTE CHILDRENS SERVICES,YORKSHIRE AMBULANCE SERVICE NHS TRUST,31709568,"2,317,179.62",ACUTE CHILDRENS SERVICES,WF2 0XQ
